Local authority department which incurred the expenditure,Service Division,Cost Centre,Summary of the Purpose of Expenditure,Expense Type,Expense Code,Detailed Expense Type,Date of Transaction,Transaction Number,Beneficiary,Merchant Category Number,Merchant Category,Gross Amount,VAT,Net Amount
Children and Young Peoples Services,Head of Childrens Social Care,085342,16 Hickstead Rise (previously 9 Cedar Ave),Supplies and Services,304403,Equipment and Materials,01-Feb-2023,000008641502734,AMZNMKTPLACE AMAZON.CO,5999,Other consumables,8.51,0.00,8.51
Children and Young Peoples Services,Head of Early Help Inclusion & Vulnerable Children.,085801,CDYJS - Support,Supplies and Services,304403,Equipment and Materials,01-Feb-2023,000008641503318,AMZNMKTPLACE AMAZON.CO,5999,Other consumables,22.88,3.81,19.07
Neighbourhoods and Climate Change,Community Protection,010809,Community Protection Management,Supplies and Services,352001,Conference Expenses,01-Feb-2023,000008641503824,TVLICENSING.CO.UK,7392,Conferencesseminars fees etc,159.00,0.00,159.00
Regeneration Economy and Growth,Planning & Housing,031701,Care Connect All Localities,Supplies and Services,304259,Equipment and Materials,01-Feb-2023,000008641504206,FARNELL,5065,Equipment-purchase and rental,460.80,0.00,460.80
Children and Young Peoples Services,Head of Childrens Social Care,085334,West Rainton Satelite Home,Supplies and Services,304403,Equipment and Materials,01-Feb-2023,000008641504420,AMZNMKTPLACE AMAZON.CO,5999,Other consumables,15.99,0.00,15.99
Children and Young Peoples Services,Head of Early Help Inclusion & Vulnerable Children.,079050,SENSS-Sensory,Supplies and Services,312009,Newspapers books and periodicals E312,01-Feb-2023,000008648592758,OXFORDUNIVERSITYPR,5942,Newspapers books and periodicals,20.70,0.00,20.70
Resources BK0010,Digital Services,065335,School Services - Implementations,Supplies and Services,304639,Equipment and Materials,01-Feb-2023,000008648593552,PAYPAL QKY TECH,7372,Technicians-supplies,68.04,0.00,68.04
Dedicated Schools Grant BG0015,DSG Schools Block,231104,Peases West Primary 2311 - General Curriculum,Supplies and Services,312011,Newspapers books and periodicals E312,01-Feb-2023,000010656291159,Amazon.co.uk 1O4AK62R4,5969,Books-school library,12.92,0.00,12.92
Regeneration Economy and Growth,Business Durham CL0850,030689,Inward Investment and Aftercare,Supplies and Services,336005,Advertising E336,01-Feb-2023,000010661484561,Google ADS6853017821,7311,Advertising other than for staff,55.49,0.00,55.49
Regeneration Economy and Growth,Business Durham CL0850,030689,Inward Investment and Aftercare,Supplies and Services,336005,Advertising E336,01-Feb-2023,000010661484563,LinkedIn 8702451884,7311,Advertising other than for staff,4.73,0.00,4.73
Children and Young Peoples Services,Head of Childrens Social Care,085611,Families First Stanley,Supplies and Services,364301,Grants to Voluntary Organisations,01-Feb-2023,000010661484565,ARGOS LTD,5310,Hardship,203.95,0.00,203.95
Children and Young Peoples Services,Head of Childrens Social Care,085611,Families First Stanley,Supplies and Services,364301,Grants to Voluntary Organisations,01-Feb-2023,000010661484567,ARGOS LTD,5310,Hardship,39.95,0.00,39.95
Children and Young Peoples Services,Head of Childrens Social Care,085365,Children Looked After Team 2,Supplies and Services,338045,Services,01-Feb-2023,000010661484573,HM PASSPORT OFFICE,9399,Legal expenses 338045,49.00,0.00,49.00
Children and Young Peoples Services,Head of Childrens Social Care,085366,Children Looked After Team 3,Supplies and Services,338045,Services,01-Feb-2023,000010661484575,DEPARTM-DOM,9399,Legal expenses 338045,15.00,0.00,15.00
Children and Young Peoples Services,Head of Childrens Social Care,085366,Children Looked After Team 3,Supplies and Services,338045,Services,01-Feb-2023,000010661484577,GEN REGISTER OFFICE,9399,Legal expenses 338045,11.00,0.00,11.00
Children and Young Peoples Services,Head of Childrens Social Care,085364,Children Looked After Team 1,Supplies and Services,338045,Services,01-Feb-2023,000010661484579,GEN REGISTER OFFICE,9399,Legal expenses 338045,11.00,0.00,11.00
Children and Young Peoples Services,Head of Education and Skills,071801,Selby Cottage Childcare Centre,Supplies and Services,324117,Provisions E324,01-Feb-2023,000010661484581,TESCO STORES 2278,5411,Catering costs - provisions,13.20,0.00,13.20
Regeneration Economy and Growth,Planning & Housing,031581,Prevention Fund,Supplies and Services,364320,Grants to Voluntary Organisations,01-Feb-2023,000010661484585,WWW BELIEVEHOUSING CO,9399,Accommodation assistance,183.74,0.00,183.74
Children and Young Peoples Services,Head of Education and Skills,075034,Youth Futures Foundation,Supplies and Services,364301,Grants to Voluntary Organisations,01-Feb-2023,000010661484593,DURHAM COUNTY COUNCIL,9399,Hardship,11.00,0.00,11.00
Children and Young Peoples Services,Head of Education and Skills,075034,Youth Futures Foundation,Supplies and Services,364301,Grants to Voluntary Organisations,01-Feb-2023,000010661484595,AMZNMKTPLACE AMAZON.CO,5999,Hardship,6.98,1.16,5.82
Children and Young Peoples Services,Head of Childrens Social Care,085341,High Etherley Satelite Home,Supplies and Services,324117,Provisions E324,01-Feb-2023,000010661484601,ASDA STORES LTD,5411,Catering costs - provisions,9.30,0.00,9.30
Children and Young Peoples Services,Head of Childrens Social Care,085347,Solo Home The Manse,Supplies and Services,324117,Provisions E324,01-Feb-2023,000010661484603,LIDL GB LANGLEY MOOR,5411,Catering costs - provisions,31.36,0.00,31.36
Regeneration Economy and Growth,Culture Sport and Tourism,011056,AAP Funding - Sport & Leisure,Supplies and Services,304403,Equipment and Materials,01-Feb-2023,000010661484605,AMZNMktplace,5999,Other consumables,11.76,1.96,9.80
Regeneration Economy and Growth,Culture Sport and Tourism,011056,AAP Funding - Sport & Leisure,Supplies and Services,304403,Equipment and Materials,01-Feb-2023,000010661484607,AMZNMktplace,5999,Other consumables,7.90,1.32,6.58
Regeneration Economy and Growth,Culture Sport and Tourism,011056,AAP Funding - Sport & Leisure,Supplies and Services,304403,Equipment and Materials,01-Feb-2023,000010661484609,AMZNMktplace,5999,Other consumables,5.59,0.93,4.66
Regeneration Economy and Growth,Culture Sport and Tourism,011056,AAP Funding - Sport & Leisure,Supplies and Services,304403,Equipment and Materials,01-Feb-2023,000010661484611,AMZNMktplace,5999,Other consumables,31.18,5.20,25.98
Regeneration Economy and Growth,Culture Sport and Tourism,011056,AAP Funding - Sport & Leisure,Supplies and Services,304403,Equipment and Materials,01-Feb-2023,000010661484613,AMZNMktplace,5999,Other consumables,5.70,0.95,4.75
Regeneration Economy and Growth,Culture Sport and Tourism,011056,AAP Funding - Sport & Leisure,Supplies and Services,304403,Equipment and Materials,01-Feb-2023,000010661484613 - 1,AMZNMktplace,5999,Other consumables,0.03,,0.03
Regeneration Economy and Growth,Culture Sport and Tourism,011056,AAP Funding - Sport & Leisure,Supplies and Services,304403,Equipment and Materials,01-Feb-2023,000010661484615,AMZNMktplace,5999,Other consumables,20.73,3.46,17.27
Regeneration Economy and Growth,Culture Sport and Tourism,011056,AAP Funding - Sport & Leisure,Supplies and Services,304403,Equipment and Materials,01-Feb-2023,000010661484617,AMZNMktplace,5999,Other consumables,31.64,8.72,22.92
Regeneration Economy and Growth,Planning & Housing,031576,B& B - Temp Accom,Supplies and Services,364320,Grants to Voluntary Organisations,01-Feb-2023,000010661484661,Roadchef Durham,7011,Accommodation assistance,30.00,0.00,30.00
Adult and Health Services,Head of Adults,055807,Newton Aycliffe Pathways,Supplies and Services,324117,Provisions E324,01-Feb-2023,000010661484679,TESCO STORES 2916,5411,Catering costs - provisions,50.56,0.00,50.56
Children and Young Peoples Services,Head of Early Help Inclusion & Vulnerable Children.,088113,Seaham & Laurel Avenue Family Centre,Supplies and Services,384302,Miscellaneous Expenses,01-Feb-2023,000010661484691,AMZNMktplace,5999,Activity expenses,404.63,0.00,404.63
Children and Young Peoples Services,Head of Childrens Social Care,085358,Orchard House Sacriston Solo Home,Transport,235005,Public Transport,01-Feb-2023,000010661484695,J MULLIGAN ASSOCIATES,7538,Contract tickets,300.00,0.00,300.00
Children and Young Peoples Services,Head of Childrens Social Care,085358,Orchard House Sacriston Solo Home,Supplies and Services,304403,Equipment and Materials,01-Feb-2023,000010661484697,FIRSTAID4LESS.CO.UK,5999,Other consumables,34.38,0.00,34.38
Children and Young Peoples Services,Head of Childrens Social Care,085358,Orchard House Sacriston Solo Home,Supplies and Services,328041,Clothing uniforms and laundry E328,01-Feb-2023,000010661484699,NEXT DIRECTORY,5651,Clothing uniforms and laundry,96.00,0.00,96.00
Neighbourhoods and Climate Change,Environmental Services,010864,Fleet - Hackworth Road Fleet,Transport,215013,Running Costs of Vehicles,01-Feb-2023,000010661484703,DVLA VEHICLE TAX,9311,Vehicle Excise Duty (VED),302.50,0.00,302.50
Neighbourhoods and Climate Change,Environmental Services,010864,Fleet - Hackworth Road Fleet,Transport,215013,Running Costs of Vehicles,01-Feb-2023,000010661484705,DVLA VEHICLE TAX,9311,Vehicle Excise Duty (VED),302.50,0.00,302.50
Neighbourhoods and Climate Change,Environmental Services,010864,Fleet - Hackworth Road Fleet,Transport,215013,Running Costs of Vehicles,01-Feb-2023,000010661484707,DVLA VEHICLE TAX,9311,Vehicle Excise Duty (VED),302.50,0.00,302.50
Neighbourhoods and Climate Change,Environmental Services,010864,Fleet - Hackworth Road Fleet,Transport,215013,Running Costs of Vehicles,01-Feb-2023,000010661484709,DVLA VEHICLE TAX,9311,Vehicle Excise Duty (VED),302.50,0.00,302.50
Children and Young Peoples Services,Head of Early Help Inclusion & Vulnerable Children.,085801,CDYJS - Support,Third Party Payments,430100,Rendered by Private Contractors,01-Feb-2023,000010661484711,VOUCHER EXPRESS,7399,Payments to sub-contractors,150.00,0.00,150.00
Resources BK0010,Transactional & Customer Services,065190,County Durham Outreach and Support Services,Supplies and Services,304221,Equipment and Materials,01-Feb-2023,000010661484721,B&Q MARKETPLACE,5211,Direct materials,113.94,0.00,113.94
Children and Young Peoples Services,Head of Early Help Inclusion & Vulnerable Children.,085957,Secure Management,Supplies and Services,324117,Provisions E324,01-Feb-2023,000010661484757,AMZNMktplace,5999,Catering costs - provisions,71.16,0.00,71.16
Children and Young Peoples Services,Head of Childrens Social Care,085347,Solo Home The Manse,Supplies and Services,324117,Provisions E324,01-Feb-2023,000010661484765,STANHOPE SUPERMARKET,5411,Catering costs - provisions,3.59,0.00,3.59
Children and Young Peoples Services,Head of Childrens Social Care,085347,Solo Home The Manse,Supplies and Services,348037,Subsistence E348,01-Feb-2023,000010661484767,ROOTS OF INDIA,5812,Subsistence,16.20,0.00,16.20
Children and Young Peoples Services,Head of Childrens Social Care,085347,Solo Home The Manse,Supplies and Services,324117,Provisions E324,01-Feb-2023,000010661484769,SHELL WOLSINGHAM,5541,Catering costs - provisions,4.64,0.00,4.64
Children and Young Peoples Services,Head of Childrens Social Care,085347,Solo Home The Manse,Supplies and Services,324117,Provisions E324,01-Feb-2023,000010661484771,SCOTMID CO-OP STANHOPE,5411,Catering costs - provisions,1.80,0.00,1.80
Children and Young Peoples Services,Head of Childrens Social Care,085347,Solo Home The Manse,Supplies and Services,324117,Provisions E324,01-Feb-2023,000010661484773,SCOTMID CO-OP STANHOPE,5411,Catering costs - provisions,6.50,0.00,6.50
Children and Young Peoples Services,Head of Childrens Social Care,085364,Children Looked After Team 1,Transport,230005,Contract Hire,01-Feb-2023,000010661484783,PULMAN RENT A CAR VW,7512,Short Term Spot Hire of Vehicles,163.98,0.00,163.98
Children and Young Peoples Services,Head of Childrens Social Care,085364,Children Looked After Team 1,Supplies and Services,304999,Equipment and Materials,01-Feb-2023,000010661484785,EVERYONE ACTIVE-DOM,7032,Misc equipment tools and materials,199.90,0.00,199.90
Children and Young Peoples Services,Head of Childrens Social Care,085364,Children Looked After Team 1,Supplies and Services,304259,Equipment and Materials,01-Feb-2023,000010661484787,DARLINGTON BOROUGH COU,9399,Equipment-purchase and rental,11.00,0.00,11.00
Children and Young Peoples Services,Head of Early Help Inclusion & Vulnerable Children.,085957,Secure Management,Supplies and Services,340001,Postages E340,01-Feb-2023,000010661484789,TSB Returns Ltd,4215,Postages,1.79,0.00,1.79
Children and Young Peoples Services,Head of Early Help Inclusion & Vulnerable Children.,085956,Lumley,Transfer Payments,515002,Social Services Clients,01-Feb-2023,000010661484793,AMZNMKTPLACE AMAZON.CO,5999,Pocket money,5.49,0.92,4.57
Children and Young Peoples Services,Head of Early Help Inclusion & Vulnerable Children.,085962,Aycliffe Secure - Durham,Supplies and Services,324117,Provisions E324,01-Feb-2023,000010661484795,TESCO STORES 6329,5411,Catering costs - provisions,85.11,0.00,85.11
Children and Young Peoples Services,Head of Early Help Inclusion & Vulnerable Children.,085957,Secure Management,Supplies and Services,332047,Printing Stationery and Gen Off Exps,01-Feb-2023,000010661484797,Amazon.co.uk 1O4T447R4,5969,Stationery,14.02,2.34,11.68
Children and Young Peoples Services,Head of Early Help Inclusion & Vulnerable Children.,085956,Lumley,Transfer Payments,515002,Social Services Clients,01-Feb-2023,000010661484799,AMZNMktplace,5999,Pocket money,22.98,3.84,19.14
Resources BK0010,HR & Employee Services,010984,Training and Development,Supplies and Services,384999,Miscellaneous Expenses,01-Feb-2023,000010661484849,NPORS LTD,8211,Other expenses,24.00,0.00,24.00
Children and Young Peoples Services,Head of Childrens Social Care,085331,New Lea Childrens Home,Supplies and Services,304999,Equipment and Materials,01-Feb-2023,000010661484867,MAIN BROTHERS,5251,Misc equipment tools and materials,9.97,0.00,9.97
Children and Young Peoples Services,Head of Childrens Social Care,085331,New Lea Childrens Home,Supplies and Services,304999,Equipment and Materials,01-Feb-2023,000010661484869,HOME BARGAINS,5251,Misc equipment tools and materials,9.81,0.00,9.81
Children and Young Peoples Services,Head of Childrens Social Care,085331,New Lea Childrens Home,Supplies and Services,328041,Clothing uniforms and laundry E328,01-Feb-2023,000010661484871,SHEIN.COM,5691,Clothing uniforms and laundry,38.47,0.00,38.47
Children and Young Peoples Services,Head of Childrens Social Care,085331,New Lea Childrens Home,Supplies and Services,304403,Equipment and Materials,01-Feb-2023,000010661484873,Zettle_ Phone Palace M,5999,Other consumables,65.00,0.00,65.00
Neighbourhoods and Climate Change,Environmental Services,010367,C&G - South Grounds Maintenance,Supplies and Services,304221,Equipment and Materials,01-Feb-2023,000010661484931,WINDLESTONE NURSERY LT,5261,Direct materials,500.00,0.00,500.00
Neighbourhoods and Climate Change,Environmental Services,010367,C&G - South Grounds Maintenance,Supplies and Services,304221,Equipment and Materials,01-Feb-2023,000010661484933,WINDLESTONE NURSERY LT,5261,Direct materials,500.00,0.00,500.00
Neighbourhoods and Climate Change,Environmental Services,010367,C&G - South Grounds Maintenance,Supplies and Services,304221,Equipment and Materials,01-Feb-2023,000010661484935,WINDLESTONE NURSERY LT,5261,Direct materials,112.40,0.00,112.40
Adult and Health Services,Head of Adults,055643,Hawthorn House LD Respite Unit,Supplies and Services,304403,Equipment and Materials,01-Feb-2023,000010661484943,AMZNMktplace,5999,Other consumables,11.40,1.90,9.50
Adult and Health Services,Head of Adults,055643,Hawthorn House LD Respite Unit,Supplies and Services,304403,Equipment and Materials,01-Feb-2023,000010661484943 - 1,AMZNMktplace,5999,Other consumables,0.04,,0.04
Children and Young Peoples Services,Head of Education and Skills,075033,DurhamWorks 3,Supplies and Services,364301,Grants to Voluntary Organisations,01-Feb-2023,000010661484957,WWW.GONORTHEAST.CO.UK,4111,Hardship,4.70,0.00,4.70
Children and Young Peoples Services,Head of Education and Skills,075035,DurhamDirections Re-engagement,Supplies and Services,364301,Grants to Voluntary Organisations,01-Feb-2023,000010661484959,WWW.GONORTHEAST.CO.UK,4111,Hardship,4.90,0.00,4.90
Neighbourhoods and Climate Change,Environmental Services,031233,North Pennines - Pennine Peatlife,Transport,235057,Public Transport,01-Feb-2023,000010661484975,SQ SEA DEW BED AND BR,4722,Staff travelling,335.59,0.00,335.59
Neighbourhoods and Climate Change,Environmental Services,031233,North Pennines - Pennine Peatlife,Supplies and Services,348037,Subsistence E348,01-Feb-2023,000010661484977,THE QUAYS RESTAURANT,5812,Subsistence,57.52,0.00,57.52
Neighbourhoods and Climate Change,Environmental Services,031233,North Pennines - Pennine Peatlife,Transport,215995,Running Costs of Vehicles,01-Feb-2023,000010661484979,MAXOL SSTN RICHMOND RD,5541,Vehicle running expenses,41.52,0.00,41.52
Children and Young Peoples Services,Head of Childrens Social Care,085363,Childrens Permanence Team,Supplies and Services,338045,Services,01-Feb-2023,000010661485015,DURHAM COUNTY COUNCIL,9399,Legal expenses 338045,22.00,0.00,22.00
Children and Young Peoples Services,Head of Childrens Social Care,085363,Childrens Permanence Team,Supplies and Services,338045,Services,01-Feb-2023,000010661485017,DARLINGTON BOROUGH COU,9399,Legal expenses 338045,22.00,0.00,22.00
Children and Young Peoples Services,Head of Childrens Social Care,085363,Childrens Permanence Team,Supplies and Services,338045,Services,01-Feb-2023,000010661485019,DARLINGTON BOROUGH COU,9399,Legal expenses 338045,22.00,0.00,22.00
Resources BK0010,Procurement Sales & Business Services,065502,Business Support - Crook,Supplies and Services,338045,Services,01-Feb-2023,000010661485021,LONDON BOROUGH OF HAVE,9399,Legal expenses 338045,27.00,0.00,27.00
Children and Young Peoples Services,Head of Early Help Inclusion & Vulnerable Children.,088103,Stanley & Moorside Family Centre,Supplies and Services,384302,Miscellaneous Expenses,01-Feb-2023,000010661485023,ASDA GROCERIES ONLINE,5411,Activity expenses,26.98,0.00,26.98
Children and Young Peoples Services,Head of Early Help Inclusion & Vulnerable Children.,088115,Young Parents Programme 088115,Supplies and Services,384302,Miscellaneous Expenses,01-Feb-2023,000010661485025,AMZNMktplace,5999,Activity expenses,246.48,41.08,205.40
Children and Young Peoples Services,Head of Early Help Inclusion & Vulnerable Children.,088115,Young Parents Programme 088115,Supplies and Services,384302,Miscellaneous Expenses,01-Feb-2023,000010661485025 - 1,AMZNMktplace,5999,Activity expenses,0.26,,0.26
Children and Young Peoples Services,Head of Early Help Inclusion & Vulnerable Children.,088115,Young Parents Programme 088115,Supplies and Services,384302,Miscellaneous Expenses,01-Feb-2023,000010661485027,ASDA GROCERIES ONLINE,5411,Activity expenses,-3.00,0.00,-3.00
Resources BK0010,Digital Services,065335,School Services - Implementations,Supplies and Services,304639,Equipment and Materials,01-Feb-2023,000010661485043,PAYPAL LAPTOP-LCD,5732,Technicians-supplies,124.08,0.00,124.08
Resources BK0010,Digital Services,065323,Operations - Installations,Supplies and Services,304639,Equipment and Materials,01-Feb-2023,000010661485045,TOOLSTATION UK,5251,Technicians-supplies,18.12,0.00,18.12
Resources BK0010,Digital Services,065335,School Services - Implementations,Supplies and Services,304639,Equipment and Materials,01-Feb-2023,000010661485047,WWW.ALIEXPRESS.COM,5964,Technicians-supplies,72.34,0.00,72.34
Dedicated Schools Grant BG0015,DSG Schools Block,231104,Peases West Primary 2311 - General Curriculum,Supplies and Services,304403,Equipment and Materials,01-Feb-2023,000010661485057,eBay O 18-09650-34948,5311,Other consumables,10.04,1.67,8.37
Dedicated Schools Grant BG0015,DSG Schools Block,231104,Peases West Primary 2311 - General Curriculum,Supplies and Services,304403,Equipment and Materials,01-Feb-2023,000010661485059,SAMPLES FOR SCHOOLS.CO,5499,Other consumables,29.95,0.00,29.95
Children and Young Peoples Services,Head of Early Help Inclusion & Vulnerable Children.,085957,Secure Management,Supplies and Services,304259,Equipment and Materials,01-Feb-2023,000010661485061,AMZNMktplace,5999,Equipment-purchase and rental,19.99,0.00,19.99
Children and Young Peoples Services,Head of Early Help Inclusion & Vulnerable Children.,085957,Secure Management,Supplies and Services,304403,Equipment and Materials,01-Feb-2023,000010661485063,A2B OFFICE SUPPLIES,5399,Other consumables,6.82,0.00,6.82
Children and Young Peoples Services,Head of Early Help Inclusion & Vulnerable Children.,085957,Secure Management,Supplies and Services,304259,Equipment and Materials,01-Feb-2023,000010661485065,AMZNMKTPLACE AMAZON.CO,5999,Equipment-purchase and rental,15.99,0.00,15.99
Dedicated Schools Grant BG0015,DSG High Needs Block,079040,HNB Management and support,Supplies and Services,324117,Provisions E324,01-Feb-2023,000010661485067,ASDA GROCERIES ONLINE,5411,Catering costs - provisions,29.18,0.00,29.18
Dedicated Schools Grant BG0015,DSG Schools Block,703428,Evergreen - Pupil Premium,Supplies and Services,332047,Printing Stationery and Gen Off Exps,01-Feb-2023,000010661485089,DURHAM MUSIC TRUST,8398,Stationery,80.00,0.00,80.00
Children and Young Peoples Services,Head of Childrens Social Care,085351,Framwellgate Moor CU,Supplies and Services,308011,Furniture,01-Feb-2023,000010661485091,SIESTA BLINDS LTD,5714,Furniture repair and replacement,65.00,0.00,65.00
Children and Young Peoples Services,Head of Childrens Social Care,085351,Framwellgate Moor CU,Supplies and Services,308011,Furniture,01-Feb-2023,000010661485093,SIESTA BLINDS LTD,5714,Furniture repair and replacement,500.00,0.00,500.00
Children and Young Peoples Services,Head of Childrens Social Care,085351,Framwellgate Moor CU,Supplies and Services,324117,Provisions E324,01-Feb-2023,000010661485095,SAINSBURYS LOCAL,5411,Catering costs - provisions,3.15,0.00,3.15
Children and Young Peoples Services,Head of Childrens Social Care,085333,Coxhoe Satelite Home,Supplies and Services,324117,Provisions E324,01-Feb-2023,000010661485101,SAINSBURY`S S/MKT,5411,Catering costs - provisions,78.49,0.00,78.49
Children and Young Peoples Services,Head of Education and Skills,071802,Louisa Cent Nursery,Supplies and Services,324117,Provisions E324,01-Feb-2023,000010661485103,WM MORRISONS STORE,5411,Catering costs - provisions,5.75,0.00,5.75
Regeneration Economy and Growth,Economic Development Level C,030772,CLLD South,Transport,235057,Public Transport,01-Feb-2023,000010661485113,WALKERGATE CAR PAR,7523,Staff travelling,2.00,0.33,1.67
Children and Young Peoples Services,Head of Childrens Social Care,085334,West Rainton Satelite Home,Supplies and Services,304999,Equipment and Materials,01-Feb-2023,000010661485153,Amazon Prime 1O0AV52J4,5968,Misc equipment tools and materials,0.99,0.00,0.99
Resources BK0010,Digital Services,065481,Technical Services 065481,Supplies and Services,304403,Equipment and Materials,01-Feb-2023,000010661485155,AMZNMktplace,5999,Other consumables,59.95,10.00,49.95
Regeneration Economy and Growth,Planning & Housing,031001,Spatial Policy 031001,Employees,040149,Recruitment Instruction and Training,01-Feb-2023,000010661485157,CLR CIHT,8398,Training-all costs,60.00,0.00,60.00
Children and Young Peoples Services,Head of Early Help Inclusion & Vulnerable Children.,088113,Seaham & Laurel Avenue Family Centre,Supplies and Services,384302,Miscellaneous Expenses,01-Feb-2023,000010661485171,LEEDS ANIMATION,8999,Activity expenses,60.00,0.00,60.00
Neighbourhoods and Climate Change,Environmental Services,010367,C&G - South Grounds Maintenance,Supplies and Services,304221,Equipment and Materials,01-Feb-2023,000010661485173,S&A BUILDERS MERCHANTS,5211,Direct materials,65.21,0.00,65.21
Regeneration Economy and Growth,Communications Management,060270,Communications and Marketing,Supplies and Services,336005,Advertising E336,01-Feb-2023,000010661485177,FACEBK SQB4GLP4B2,7311,Advertising other than for staff,97.89,0.00,97.89
Regeneration Economy and Growth,Communications Management,060270,Communications and Marketing,Supplies and Services,336005,Advertising E336,01-Feb-2023,000010661485179,LINKEDIN ADS 1413224,7311,Advertising other than for staff,28.94,0.00,28.94
Neighbourhoods and Climate Change,Environmental Services,010367,C&G - South Grounds Maintenance,Supplies and Services,304221,Equipment and Materials,01-Feb-2023,000010661485217,CARRS BILLINGTON SPENN,5599,Direct materials,61.84,0.00,61.84
Regeneration Economy and Growth,Economic Development Level C,030770,Durham Advance,Transport,235057,Public Transport,01-Feb-2023,000010661485223,PRINCE BISHOP SHOPPING,7523,Staff travelling,2.10,0.35,1.75
Adult and Health Services,Head of Adults,055309,Peterlee Pathways,Supplies and Services,328041,Clothing uniforms and laundry E328,01-Feb-2023,000010661485225,WWW.ARGOS.CO.UK,5311,Clothing uniforms and laundry,53.00,0.00,53.00
Regeneration Economy and Growth,Planning & Housing,031576,B& B - Temp Accom,Supplies and Services,364320,Grants to Voluntary Organisations,01-Feb-2023,000010661485263,Hotel at Booking.com,7011,Accommodation assistance,256.00,0.00,256.00
Regeneration Economy and Growth,Planning & Housing,031581,Prevention Fund,Transport,235057,Public Transport,01-Feb-2023,000010661485265,UBER TRIP,4121,Staff travelling,15.93,0.00,15.93
Regeneration Economy and Growth,Planning & Housing,031581,Prevention Fund,Transport,235057,Public Transport,01-Feb-2023,000010661485267,UBER TRIP,4121,Staff travelling,5.44,0.00,5.44
Children and Young Peoples Services,Head of Early Help Inclusion & Vulnerable Children.,088111,Easington Horden & Seascape Family Centre,Supplies and Services,384999,Miscellaneous Expenses,01-Feb-2023,000010661485273,Amazon.co.uk 1O78C47P4,5969,Other expenses,319.91,0.00,319.91
Regeneration Economy and Growth,Corporate Property and Land,010525,Catering - Green Lane,Supplies and Services,324117,Provisions E324,01-Feb-2023,000010661551911,JR HOLLAND FOODSERVICE,5499,Catering costs - provisions,123.17,0.00,123.17
Regeneration Economy and Growth,Culture Sport and Tourism,054235,Bishop Auckland Town Hall Cafe,Supplies and Services,324117,Provisions E324,01-Feb-2023,000010661551915,JR HOLLAND FOODSERVICE,5499,Catering costs - provisions,567.06,0.00,567.06
Adult and Health Services,Head of Adults,055643,Hawthorn House LD Respite Unit,Supplies and Services,324117,Provisions E324,01-Feb-2023,000010661551917,JR HOLLAND FOODSERVICE,5499,Catering costs - provisions,15.69,0.00,15.69
Regeneration Economy and Growth,Corporate Property and Land,021234,Catering - Locomotion,Supplies and Services,324117,Provisions E324,01-Feb-2023,000010661551923,JR HOLLAND FOODSERVICE,5499,Catering costs - provisions,101.57,0.00,101.57
Regeneration Economy and Growth,Culture Sport and Tourism,011263,Louisa Centre 011263,Supplies and Services,324117,Provisions E324,01-Feb-2023,000010661551927,JR HOLLAND FOODSERVICE,5499,Catering costs - provisions,37.81,0.00,37.81
Regeneration Economy and Growth,Culture Sport and Tourism,054812,Gala Theatre - Catering etc,Supplies and Services,324117,Provisions E324,01-Feb-2023,000010661551929,JR HOLLAND FOODSERVICE,5499,Catering costs - provisions,61.05,0.00,61.05
Regeneration Economy and Growth,Corporate Property and Land,021242,Catering - County Hall,Supplies and Services,324117,Provisions E324,01-Feb-2023,000010661551931,JR HOLLAND FOODSERVICE,5499,Catering costs - provisions,18.44,0.00,18.44
Children and Young Peoples Services,Head of Childrens Social Care,085358,Orchard House Sacriston Solo Home,Supplies and Services,328041,Clothing uniforms and laundry E328,01-Feb-2023,000010686376093,NEXT DIRECTORY,5651,Clothing uniforms and laundry,-36.00,0.00,-36.00
Regeneration Economy and Growth,Business Durham CL0850,030689,Inward Investment and Aftercare,Supplies and Services,304403,Equipment and Materials,02-Feb-2023,000008641502558,ADOBE CREATIVE CLOUD,5734,Other consumables,51.98,0.00,51.98
Children and Young Peoples Services,Head of Childrens Social Care,085364,Children Looked After Team 1,Supplies and Services,340001,Postages E340,02-Feb-2023,000008641502598,POST OFFICE COUNTER,9402,Postages,2.45,0.00,2.45
Children and Young Peoples Services,Head of Childrens Social Care,085366,Children Looked After Team 3,Supplies and Services,338045,Services,02-Feb-2023,000008641502602,GEN REGISTER OFFICE,9399,Legal expenses 338045,33.00,0.00,33.00
Children and Young Peoples Services,Head of Education and Skills,071801,Selby Cottage Childcare Centre,Supplies and Services,324117,Provisions E324,02-Feb-2023,000008641502612,SAINSBURYS S/MKTS,5411,Catering costs - provisions,3.75,0.00,3.75
Children and Young Peoples Services,Head of Education and Skills,071801,Selby Cottage Childcare Centre,Supplies and Services,324117,Provisions E324,02-Feb-2023,000008641502618,WILKO RETAIL LIMITED,5399,Catering costs - provisions,8.00,0.00,8.00
Children and Young Peoples Services,Head of Education and Skills,071801,Selby Cottage Childcare Centre,Supplies and Services,324117,Provisions E324,02-Feb-2023,000008641502624,TESCO STORES 2278,5411,Catering costs - provisions,18.40,0.00,18.40
Resources BK0010,Transactional & Customer Services,065180,Collections,Supplies and Services,338048,Services,02-Feb-2023,000008641502646,WWW.HMCOURT-SERVIC,9222,Court costs 338048,188.00,0.00,188.00
Children and Young Peoples Services,Head of Education and Skills,075034,Youth Futures Foundation,Supplies and Services,364301,Grants to Voluntary Organisations,02-Feb-2023,000008641502714,DVLA DRIVER ONLINE,9399,Hardship,34.00,0.00,34.00
Children and Young Peoples Services,Head of Education and Skills,075034,Youth Futures Foundation,Supplies and Services,364301,Grants to Voluntary Organisations,02-Feb-2023,000008641502720,AMZNMKTPLACE AMAZON.CO,5999,Hardship,9.98,1.66,8.32
Children and Young Peoples Services,Head of Childrens Social Care,085342,16 Hickstead Rise (previously 9 Cedar Ave),Supplies and Services,328041,Clothing uniforms and laundry E328,02-Feb-2023,000008641502726,WWW.ARGOS.CO.UK,5311,Clothing uniforms and laundry,27.49,0.00,27.49
Children and Young Peoples Services,Head of Childrens Social Care,085341,High Etherley Satelite Home,Supplies and Services,348037,Subsistence E348,02-Feb-2023,000008641502748,CASTLEGATE CAFE,5812,Subsistence,26.75,0.00,26.75
Children and Young Peoples Services,Head of Childrens Social Care,085347,Solo Home The Manse,Supplies and Services,304999,Equipment and Materials,02-Feb-2023,000008641502796,HOME BARGAINS SKIPPING,5251,Misc equipment tools and materials,31.81,0.00,31.81
Children and Young Peoples Services,Head of Childrens Social Care,085347,Solo Home The Manse,Supplies and Services,304999,Equipment and Materials,02-Feb-2023,000008641502802,HOME BARGAINS SKIPPING,5251,Misc equipment tools and materials,40.89,0.00,40.89
Neighbourhoods and Climate Change,Environmental Services,010367,C&G - South Grounds Maintenance,Supplies and Services,304259,Equipment and Materials,02-Feb-2023,000008641502808,DVLA DRIVERS TACHOGRAP,9399,Equipment-purchase and rental,32.00,0.00,32.00
Neighbourhoods and Climate Change,Environmental Services,010367,C&G - South Grounds Maintenance,Supplies and Services,304259,Equipment and Materials,02-Feb-2023,000008641502812,DVLA DRIVERS TACHOGRAP,9399,Equipment-purchase and rental,32.00,0.00,32.00
Neighbourhoods and Climate Change,Environmental Services,010367,C&G - South Grounds Maintenance,Supplies and Services,304259,Equipment and Materials,02-Feb-2023,000008641502816,DVLA DRIVERS TACHOGRAP,9399,Equipment-purchase and rental,32.00,0.00,32.00
Neighbourhoods and Climate Change,Environmental Services,010367,C&G - South Grounds Maintenance,Supplies and Services,304259,Equipment and Materials,02-Feb-2023,000008641502820,DVLA DRIVERS TACHOGRAP,9399,Equipment-purchase and rental,32.00,0.00,32.00
Neighbourhoods and Climate Change,Environmental Services,010367,C&G - South Grounds Maintenance,Supplies and Services,304259,Equipment and Materials,02-Feb-2023,000008641502824,DVLA DRIVERS TACHOGRAP,9399,Equipment-purchase and rental,32.00,0.00,32.00
Children and Young Peoples Services,Head of Childrens Social Care,085342,16 Hickstead Rise (previously 9 Cedar Ave),Supplies and Services,324117,Provisions E324,02-Feb-2023,000008641502896,STARBUCKS BISHOP AUCKL,5499,Catering costs - provisions,6.75,0.00,6.75
Children and Young Peoples Services,Head of Childrens Social Care,085342,16 Hickstead Rise (previously 9 Cedar Ave),Supplies and Services,324117,Provisions E324,02-Feb-2023,000008641502928,B&M 585 - RYHOPE,5399,Catering costs - provisions,34.46,0.00,34.46
Regeneration Economy and Growth,Planning & Housing,031634,LOCAL LETTINGS AGENCY,Employees,040149,Recruitment Instruction and Training,02-Feb-2023,000008641502978,CITIZENCARD,8699,Training-all costs,30.00,0.00,30.00
Children and Young Peoples Services,Head of Early Help Inclusion & Vulnerable Children.,085956,Lumley,Supplies and Services,348037,Subsistence E348,02-Feb-2023,000008641502996,Domino s Pizza,5812,Subsistence,93.43,0.00,93.43
Children and Young Peoples Services,Head of Early Help Inclusion & Vulnerable Children.,071441,Bishop Auckland One Point Hub,Supplies and Services,304259,Equipment and Materials,02-Feb-2023,000008641503032,HOME BARGAINS,5251,Equipment-purchase and rental,19.19,0.00,19.19
Children and Young Peoples Services,Head of Childrens Social Care,085380,Service Manager CLA Fostering,Third Party Payments,430100,Rendered by Private Contractors,02-Feb-2023,000008641503052,VOUCHER EXPRESS,7399,Payments to sub-contractors,447.50,0.00,447.50
Neighbourhoods and Climate Change,Environmental Services,010367,C&G - South Grounds Maintenance,Supplies and Services,304221,Equipment and Materials,02-Feb-2023,000008641503076,BTL TIMBER AND COUNTRY,5211,Direct materials,136.89,0.00,136.89
Children and Young Peoples Services,Head of Childrens Social Care,085511,Emergency Duty Team,Transport,235057,Public Transport,02-Feb-2023,000008641503124,BOOKING #3931470,4121,Staff travelling,9.20,0.00,9.20
Children and Young Peoples Services,Head of Childrens Social Care,085511,Emergency Duty Team,Supplies and Services,352001,Conference Expenses,02-Feb-2023,000008641503128,TRAVELODGE,3615,Conferencesseminars fees etc,43.84,0.00,43.84
Regeneration Economy and Growth,Economic Development Level C,030771,Durham Advance Flexible Fund,Supplies and Services,384700,Miscellaneous Expenses,02-Feb-2023,000008641503140,DURHAM COUNTY COUNCIL,9399,Miscellaneous grants,11.00,0.00,11.00
Resources BK0010,HR & Employee Services,066895,Advice & Guidance,Supplies and Services,304403,Equipment and Materials,02-Feb-2023,000008641503168,AMZNMktplace,5999,Other consumables,137.70,0.00,137.70
Resources BK0010,HR & Employee Services,066895,Advice & Guidance,Supplies and Services,304403,Equipment and Materials,02-Feb-2023,000008641503174,AMZNMktplace,5999,Other consumables,266.00,44.33,221.67
Resources BK0010,HR & Employee Services,066895,Advice & Guidance,Supplies and Services,304403,Equipment and Materials,02-Feb-2023,000008641503176,AMZNMktplace,5999,Other consumables,10.99,1.83,9.16
Resources BK0010,HR & Employee Services,066895,Advice & Guidance,Supplies and Services,304403,Equipment and Materials,02-Feb-2023,000008641503182,AMZNMktplace,5999,Other consumables,98.99,16.50,82.49
Resources BK0010,HR & Employee Services,066895,Advice & Guidance,Supplies and Services,304403,Equipment and Materials,02-Feb-2023,000008641503186,AMZNMktplace,5999,Other consumables,22.58,3.76,18.82
Regeneration Economy and Growth,Planning & Housing,031576,B& B - Temp Accom,Supplies and Services,364320,Grants to Voluntary Organisations,02-Feb-2023,000008641503246,Roadchef Durham,7011,Accommodation assistance,30.00,0.00,30.00
Children and Young Peoples Services,Head of Childrens Social Care,085358,Orchard House Sacriston Solo Home,Supplies and Services,324117,Provisions E324,02-Feb-2023,000008641503268,SAINSBURY`S S/MKT,5411,Catering costs - provisions,28.85,0.00,28.85
Children and Young Peoples Services,Head of Childrens Social Care,085358,Orchard House Sacriston Solo Home,Supplies and Services,324117,Provisions E324,02-Feb-2023,000008641503274,WILKO RETAIL LIMITED,5399,Catering costs - provisions,59.50,0.00,59.50
Regeneration Economy and Growth,Culture Sport and Tourism,054813,Gala Theatre - Technical,Supplies and Services,304259,Equipment and Materials,02-Feb-2023,000008641503364,SPOTIFY,5815,Equipment-purchase and rental,9.99,0.00,9.99
Neighbourhoods and Climate Change,Environmental Services,026591,C&G - Hardwick Park,Supplies and Services,304337,Equipment and Materials,02-Feb-2023,000008641503416,WWW.PETSATHOME.COM,5995,Consumables/items for resale,69.73,0.00,69.73
Children and Young Peoples Services,Head of Early Help Inclusion & Vulnerable Children.,085962,Aycliffe Secure - Durham,Supplies and Services,304403,Equipment and Materials,02-Feb-2023,000008641503450,AMZNMktplace,5999,Other consumables,9.49,1.58,7.91
Children and Young Peoples Services,Head of Early Help Inclusion & Vulnerable Children.,085962,Aycliffe Secure - Durham,Third Party Payments,430100,Rendered by Private Contractors,02-Feb-2023,000008641503456,DMN/LANE7DURHAM,7399,Payments to sub-contractors,19.80,0.00,19.80
Children and Young Peoples Services,Head of Early Help Inclusion & Vulnerable Children.,085957,Secure Management,Supplies and Services,304259,Equipment and Materials,02-Feb-2023,000008641503526,Amazon.co.uk 1O20E6UP4,5969,Equipment-purchase and rental,15.63,0.00,15.63
Children and Young Peoples Services,Head of Early Help Inclusion & Vulnerable Children.,085957,Secure Management,Supplies and Services,304259,Equipment and Materials,02-Feb-2023,000008641503532,Amazon.co.uk 1O6MM6IZ4,5969,Equipment-purchase and rental,42.91,7.15,35.76
Children and Young Peoples Services,Head of Early Help Inclusion & Vulnerable Children.,085957,Secure Management,Supplies and Services,304259,Equipment and Materials,02-Feb-2023,000008641503538,AMZNMktplace,5999,Equipment-purchase and rental,4.19,0.00,4.19
Children and Young Peoples Services,Head of Early Help Inclusion & Vulnerable Children.,085957,Secure Management,Supplies and Services,304259,Equipment and Materials,02-Feb-2023,000008641503542,WWW.DATA.ORG.UK,8699,Equipment-purchase and rental,198.00,0.00,198.00
Children and Young Peoples Services,Head of Early Help Inclusion & Vulnerable Children.,085957,Secure Management,Supplies and Services,304259,Equipment and Materials,02-Feb-2023,000008641503546,AMZNMktplace,5999,Equipment-purchase and rental,8.25,1.38,6.87
Children and Young Peoples Services,Head of Early Help Inclusion & Vulnerable Children.,085957,Secure Management,Supplies and Services,304259,Equipment and Materials,02-Feb-2023,000008641503550,AMZNMktplace,5999,Equipment-purchase and rental,15.90,2.65,13.25
Children and Young Peoples Services,Head of Early Help Inclusion & Vulnerable Children.,085957,Secure Management,Supplies and Services,304259,Equipment and Materials,02-Feb-2023,000008641503550 - 1,AMZNMktplace,5999,Equipment-purchase and rental,12.11,,12.11
Neighbourhoods and Climate Change,Environmental Services,010301,C&G - North Grounds Maintenance,Supplies and Services,304221,Equipment and Materials,02-Feb-2023,000008641503562,TOOLSTATION LIMITED,5211,Direct materials,49.99,0.00,49.99
Regeneration Economy and Growth,Business Durham CL0850,030714,Salvus House,Supplies and Services,324117,Provisions E324,02-Feb-2023,000008641503614,AMZ Ringtons Ltd,5499,Catering costs - provisions,27.90,0.00,27.90
Regeneration Economy and Growth,Economic Development Level C,030771,Durham Advance Flexible Fund,Transport,235057,Public Transport,02-Feb-2023,000008641503662,WWW.GONORTHEAST.CO.UK,4111,Staff travelling,30.00,0.00,30.00
Children and Young Peoples Services,Head of Childrens Social Care,085364,Children Looked After Team 1,Transport,235057,Public Transport,02-Feb-2023,000008641503682,NEXUS TRAVEL SHOP,4131,Staff travelling,53.90,0.00,53.90
Children and Young Peoples Services,Head of Childrens Social Care,085364,Children Looked After Team 1,Supplies and Services,304259,Equipment and Materials,02-Feb-2023,000008641503686,GATESHEAD COUNCIL INT,9399,Equipment-purchase and rental,11.00,0.00,11.00
Children and Young Peoples Services,Head of Early Help Inclusion & Vulnerable Children.,085955,Auckland,Supplies and Services,324117,Provisions E324,02-Feb-2023,000008641503698,TESCO STORES 6329,5411,Catering costs - provisions,8.50,0.00,8.50
Children and Young Peoples Services,Head of Childrens Social Care,085334,West Rainton Satelite Home,Supplies and Services,324117,Provisions E324,02-Feb-2023,000008641503716,TESCO STORES 2371,5411,Catering costs - provisions,60.00,0.00,60.00
Children and Young Peoples Services,Head of Education and Skills,070169,Durham SSP,Supplies and Services,304999,Equipment and Materials,02-Feb-2023,000008641503718,Microsoft Subscription,5816,Misc equipment tools and materials,7.99,1.33,6.66
Children and Young Peoples Services,Head of Childrens Social Care,085650,Pre Birth Team,Supplies and Services,364340,Grants to Voluntary Organisations,02-Feb-2023,000008641503742,trainline,4112,Contact expenses,9.26,0.00,9.26
Children and Young Peoples Services,Head of Childrens Social Care,085650,Pre Birth Team,Supplies and Services,364340,Grants to Voluntary Organisations,02-Feb-2023,000008641503748,Trainline.COM,4112,Contact expenses,9.26,0.00,9.26
Children and Young Peoples Services,Head of Childrens Social Care,085331,New Lea Childrens Home,Supplies and Services,324117,Provisions E324,02-Feb-2023,000008641503754,ASDA SUPERSTORE,5411,Catering costs - provisions,18.00,0.00,18.00
Regeneration Economy and Growth,Economic Development Level C,030771,Durham Advance Flexible Fund,Supplies and Services,348037,Subsistence E348,02-Feb-2023,000008641503758,CHESTER LE STREET,5814,Subsistence,3.50,0.00,3.50
Neighbourhoods and Climate Change,Environmental Services,010301,C&G - North Grounds Maintenance,Supplies and Services,304999,Equipment and Materials,02-Feb-2023,000008641503802,GUSTHARTS,5072,Misc equipment tools and materials,20.16,0.00,20.16
Regeneration Economy and Growth,Economic Development Level C,030771,Durham Advance Flexible Fund,Supplies and Services,348037,Subsistence E348,02-Feb-2023,000008641503806,DURHAM TEA ROOM,9399,Subsistence,4.40,0.00,4.40
Children and Young Peoples Services,Head of Education and Skills,075035,DurhamDirections Re-engagement,Supplies and Services,364301,Grants to Voluntary Organisations,02-Feb-2023,000008641503938,WWW.GONORTHEAST.CO.UK,4111,Hardship,18.00,0.00,18.00
Children and Young Peoples Services,Head of Education and Skills,075035,DurhamDirections Re-engagement,Supplies and Services,364301,Grants to Voluntary Organisations,02-Feb-2023,000008641503940,WWW.SCREWFIX.COM,5211,Hardship,21.96,3.66,18.30
Children and Young Peoples Services,Head of Education and Skills,075035,DurhamDirections Re-engagement,Supplies and Services,364301,Grants to Voluntary Organisations,02-Feb-2023,000008641503940 - 1,WWW.SCREWFIX.COM,5211,Hardship,20.02,,20.02
Children and Young Peoples Services,Head of Education and Skills,075035,DurhamDirections Re-engagement,Supplies and Services,364301,Grants to Voluntary Organisations,02-Feb-2023,000008641503944,MACHINE MART WEB,7394,Hardship,248.51,41.42,207.09
Children and Young Peoples Services,Head of Education and Skills,075035,DurhamDirections Re-engagement,Supplies and Services,364301,Grants to Voluntary Organisations,02-Feb-2023,000008641503950,INTELLIGENT E LEARNING,8299,Hardship,12.00,2.00,10.00
Children and Young Peoples Services,Head of Education and Skills,075035,DurhamDirections Re-engagement,Supplies and Services,364301,Grants to Voluntary Organisations,02-Feb-2023,000008641503952,ASDA GEORGE COM LEEDS,5411,Hardship,104.15,0.00,104.15
Regeneration Economy and Growth,Culture Sport and Tourism,011264,Consett Leisure Centre,Supplies and Services,332047,Printing Stationery and Gen Off Exps,02-Feb-2023,000008641504062,AMZNMKTPLACE AMAZON.CO,5999,Stationery,11.75,1.96,9.79
Neighbourhoods and Climate Change,Environmental Services,031233,North Pennines - Pennine Peatlife,Supplies and Services,348037,Subsistence E348,02-Feb-2023,000008641504082,28392631 DUB MARKET 53,5812,Subsistence,13.09,0.00,13.09
Neighbourhoods and Climate Change,Environmental Services,031233,North Pennines - Pennine Peatlife,Supplies and Services,348037,Subsistence E348,02-Feb-2023,000008641504084,28391071 DUB BURGER KI,5812,Subsistence,7.94,0.00,7.94
Children and Young Peoples Services,Head of Early Help Inclusion & Vulnerable Children.,088102,Consett & Stanley Intensive Family Support Team,Supplies and Services,364301,Grants to Voluntary Organisations,02-Feb-2023,000008641504116,ASDA GROCERIES ONLINE,5411,Hardship,254.07,0.00,254.07
Dedicated Schools Grant BG0015,DSG Schools Block,231104,Peases West Primary 2311 - General Curriculum,Supplies and Services,312011,Newspapers books and periodicals E312,02-Feb-2023,000008641504184,AMZNMKTPLACE AMAZON.CO,5999,Books-school library,-3.83,0.00,-3.83
Children and Young Peoples Services,Head of Early Help Inclusion & Vulnerable Children.,085963,Maple House,Supplies and Services,304259,Equipment and Materials,02-Feb-2023,000008641504192,CURRYS ONLINE,5732,Equipment-purchase and rental,256.00,0.00,256.00
Children and Young Peoples Services,Head of Childrens Social Care,085329,Care Leavers UASC Team,Supplies and Services,384504,Miscellaneous Expenses,02-Feb-2023,000008641504202,WWW.ARGOS.CO.UK,5311,Assistance to asylum seekers,359.96,0.00,359.96
Children and Young Peoples Services,Head of Childrens Social Care,085351,Framwellgate Moor CU,Supplies and Services,324117,Provisions E324,02-Feb-2023,000008641504316,YOWZA DESSERTS,5499,Catering costs - provisions,4.85,0.00,4.85
Children and Young Peoples Services,Head of Childrens Social Care,085351,Framwellgate Moor CU,Supplies and Services,304259,Equipment and Materials,02-Feb-2023,000008641504318,J D SPORTS PLC,5941,Equipment-purchase and rental,52.20,0.00,52.20
Children and Young Peoples Services,Head of Childrens Social Care,085351,Framwellgate Moor CU,Supplies and Services,304403,Equipment and Materials,02-Feb-2023,000008641504322,FIRSTAID4LESS.CO.UK,5999,Other consumables,48.18,0.00,48.18
Children and Young Peoples Services,Head of Childrens Social Care,085351,Framwellgate Moor CU,Supplies and Services,308011,Furniture,02-Feb-2023,000008641504326,IKEA LTD 143 GATESHEAD,5712,Furniture repair and replacement,82.00,0.00,82.00
Children and Young Peoples Services,Head of Childrens Social Care,085351,Framwellgate Moor CU,Supplies and Services,308011,Furniture,02-Feb-2023,000008641504328,IKEA LTD 143 GATESHEAD,5712,Furniture repair and replacement,4.95,0.00,4.95
Children and Young Peoples Services,Head of Childrens Social Care,085333,Coxhoe Satelite Home,Supplies and Services,324117,Provisions E324,02-Feb-2023,000008641504330,WILKO RETAIL LIMITED,5399,Catering costs - provisions,21.00,0.00,21.00
Children and Young Peoples Services,Head of Childrens Social Care,085333,Coxhoe Satelite Home,Supplies and Services,324117,Provisions E324,02-Feb-2023,000008641504332,TESCO STORES 2916,5411,Catering costs - provisions,47.56,0.00,47.56
Children and Young Peoples Services,Head of Childrens Social Care,085333,Coxhoe Satelite Home,Supplies and Services,324117,Provisions E324,02-Feb-2023,000008641504336,TESCO STORES 2916,5411,Catering costs - provisions,62.28,0.00,62.28
Children and Young Peoples Services,Head of Education and Skills,071802,Louisa Cent Nursery,Supplies and Services,324117,Provisions E324,02-Feb-2023,000008641504344,ALDI 11 774,5411,Catering costs - provisions,18.21,0.00,18.21
Neighbourhoods and Climate Change,Environmental Services,031200,North Pennines Core,Supplies and Services,342053,Computers and Communications,02-Feb-2023,000008641504366,SMALLPDF,5045,Computer software,81.00,0.00,81.00
Regeneration Economy and Growth,Economic Development Level C,030554,International Relations 030554,Supplies and Services,304403,Equipment and Materials,02-Feb-2023,000008641504370,THE FLAG SHOP LTD,5999,Other consumables,33.01,0.00,33.01
Regeneration Economy and Growth,Economic Development Level C,030772,CLLD South,Supplies and Services,348037,Subsistence E348,02-Feb-2023,000008641504374,Cafe Montalbano,5812,Subsistence,5.95,0.00,5.95
Regeneration Economy and Growth,Culture Sport and Tourism,011263,Louisa Centre 011263,Supplies and Services,324117,Provisions E324,02-Feb-2023,000008641504388,ASDA SUPERSTORE,5411,Catering costs - provisions,14.00,0.00,14.00
Children and Young Peoples Services,Head of Childrens Social Care,085501,Child Care Cases Legal Expenses,Supplies and Services,304259,Equipment and Materials,02-Feb-2023,000008641504424,GEN REGISTER OFFICE,9399,Equipment-purchase and rental,11.00,0.00,11.00
Children and Young Peoples Services,Head of Childrens Social Care,085501,Child Care Cases Legal Expenses,Supplies and Services,304259,Equipment and Materials,02-Feb-2023,000008641504426,GEN REGISTER OFFICE,9399,Equipment-purchase and rental,33.00,0.00,33.00
Neighbourhoods and Climate Change,Environmental Services,010367,C&G - South Grounds Maintenance,Supplies and Services,304221,Equipment and Materials,02-Feb-2023,000008641504436,S&A BUILDERS MERCHANTS,5211,Direct materials,32.60,0.00,32.60
Resources BK0010,Procurement Sales & Business Services,065501,Business Support - Executive Support,Supplies and Services,332047,Printing Stationery and Gen Off Exps,02-Feb-2023,000008641504438,AMZNMktplace,5999,Stationery,63.02,10.50,52.52
Regeneration Economy and Growth,Economic Development Level C,030771,Durham Advance Flexible Fund,Supplies and Services,304221,Equipment and Materials,02-Feb-2023,000008641504502,WWW.SCREWFIX.COM,5211,Direct materials,78.97,0.00,78.97
Regeneration Economy and Growth,Economic Development Level C,030771,Durham Advance Flexible Fund,Third Party Payments,430100,Rendered by Private Contractors,02-Feb-2023,000008641504506,CS MORRISONS GIFT CARD,7399,Payments to sub-contractors,50.00,0.00,50.00
Children and Young Peoples Services,Head of Childrens Social Care,085331,New Lea Childrens Home,Supplies and Services,304403,Equipment and Materials,02-Feb-2023,000008641504510,Zettle_ JAX FIRST AID,5999,Other consumables,22.45,0.00,22.45
Regeneration Economy and Growth,Planning & Housing,031576,B& B - Temp Accom,Supplies and Services,364320,Grants to Voluntary Organisations,02-Feb-2023,000008641504554,Hotel at Booking.com,7011,Accommodation assistance,211.00,0.00,211.00
Regeneration Economy and Growth,Planning & Housing,031576,B& B - Temp Accom,Supplies and Services,364320,Grants to Voluntary Organisations,02-Feb-2023,000008641504560,Roadchef Durham,7011,Accommodation assistance,207.00,0.00,207.00
Regeneration Economy and Growth,Planning & Housing,031576,B& B - Temp Accom,Supplies and Services,364320,Grants to Voluntary Organisations,02-Feb-2023,000008641504562,Roadchef Durham,7011,Accommodation assistance,207.00,0.00,207.00
Regeneration Economy and Growth,Planning & Housing,031576,B& B - Temp Accom,Supplies and Services,364320,Grants to Voluntary Organisations,02-Feb-2023,000008641504564,Roadchef Durham,7011,Accommodation assistance,30.00,0.00,30.00
Regeneration Economy and Growth,Planning & Housing,031576,B& B - Temp Accom,Supplies and Services,364320,Grants to Voluntary Organisations,02-Feb-2023,000008641504566,Roadchef Durham,7011,Accommodation assistance,211.00,0.00,211.00
Regeneration Economy and Growth,Planning & Housing,031576,B& B - Temp Accom,Supplies and Services,364320,Grants to Voluntary Organisations,02-Feb-2023,000008641504570,Roadchef Durham,7011,Accommodation assistance,60.00,0.00,60.00
Regeneration Economy and Growth,Planning & Housing,031576,B& B - Temp Accom,Supplies and Services,364320,Grants to Voluntary Organisations,02-Feb-2023,000008641504572,Roadchef Durham,7011,Accommodation assistance,45.00,0.00,45.00
Regeneration Economy and Growth,Planning & Housing,031576,B& B - Temp Accom,Supplies and Services,364320,Grants to Voluntary Organisations,02-Feb-2023,000008641504574,Roadchef Durham,7011,Accommodation assistance,7.50,0.00,7.50
Regeneration Economy and Growth,Planning & Housing,031576,B& B - Temp Accom,Supplies and Services,364320,Grants to Voluntary Organisations,02-Feb-2023,000008641504576,Roadchef Durham,7011,Accommodation assistance,30.00,0.00,30.00
Regeneration Economy and Growth,Planning & Housing,031576,B& B - Temp Accom,Supplies and Services,364320,Grants to Voluntary Organisations,02-Feb-2023,000008641504578,Roadchef Durham,7011,Accommodation assistance,207.00,0.00,207.00
Regeneration Economy and Growth,Planning & Housing,031576,B& B - Temp Accom,Supplies and Services,364320,Grants to Voluntary Organisations,02-Feb-2023,000008641504582,Roadchef Durham,7011,Accommodation assistance,15.00,0.00,15.00
Regeneration Economy and Growth,Corporate Property and Land,030691,Catering - Durham Dales Centre,Supplies and Services,324117,Provisions E324,02-Feb-2023,000008641567976,JR HOLLAND FOODSERVICE,5499,Catering costs - provisions,183.76,0.00,183.76
Regeneration Economy and Growth,Corporate Property and Land,030691,Catering - Durham Dales Centre,Supplies and Services,324117,Provisions E324,02-Feb-2023,000008641567978,JR HOLLAND FOODSERVICE,5499,Catering costs - provisions,-59.35,0.00,-59.35
Neighbourhoods and Climate Change,Environmental Services,011060,C&G - Hardwick Park Catering,Supplies and Services,324117,Provisions E324,02-Feb-2023,000008641567980,JR HOLLAND FOODSERVICE,5499,Catering costs - provisions,138.28,0.00,138.28
Regeneration Economy and Growth,Corporate Property and Land,021234,Catering - Locomotion,Supplies and Services,324117,Provisions E324,02-Feb-2023,000008641567982,JR HOLLAND FOODSERVICE,5499,Catering costs - provisions,58.21,0.00,58.21
Regeneration Economy and Growth,Culture Sport and Tourism,011263,Louisa Centre 011263,Supplies and Services,324117,Provisions E324,02-Feb-2023,000008641567984,JR HOLLAND FOODSERVICE,5499,Catering costs - provisions,25.07,0.00,25.07
Regeneration Economy and Growth,Culture Sport and Tourism,054812,Gala Theatre - Catering etc,Supplies and Services,384999,Miscellaneous Expenses,02-Feb-2023,000008641567986,G M PACKAGING UK LIMIT,5046,Other expenses,290.41,0.00,290.41
Regeneration Economy and Growth,Culture Sport and Tourism,054812,Gala Theatre - Catering etc,Supplies and Services,324117,Provisions E324,02-Feb-2023,000008641567988,JR HOLLAND FOODSERVICE,5499,Catering costs - provisions,21.98,0.00,21.98
Regeneration Economy and Growth,Business Durham CL0850,030689,Inward Investment and Aftercare,Supplies and Services,342222,Computers and Communications,02-Feb-2023,000008648592608,FASTHOSTS,4816,Comp hardware purch-network servers,63.00,0.00,63.00
Regeneration Economy and Growth,Business Durham CL0850,030689,Inward Investment and Aftercare,Supplies and Services,342222,Computers and Communications,02-Feb-2023,000008648592610,FASTHOSTS,4816,Comp hardware purch-network servers,105.06,0.00,105.06
Children and Young Peoples Services,Head of Childrens Social Care,085358,Orchard House Sacriston Solo Home,Supplies and Services,304403,Equipment and Materials,02-Feb-2023,000008648593020,AMZNMKTPLACE AMAZON.CO,5999,Other consumables,2.95,0.49,2.46
Resources BK0010,Digital Services,065335,School Services - Implementations,Supplies and Services,304639,Equipment and Materials,02-Feb-2023,000008648593554,PAYPAL GREENPOWERS,5732,Technicians-supplies,55.15,0.00,55.15
Children and Young Peoples Services,Head of Childrens Social Care,085379,Care Leavers Team 2,Supplies and Services,364354,Grants to Voluntary Organisations,02-Feb-2023,000008648593582,TVLICENSING.CO.UK,7392,Supervised Spend - Setting Up Home Allowance,159.00,0.00,159.00
Children and Young Peoples Services,Head of Childrens Social Care,085351,Framwellgate Moor CU,Supplies and Services,328041,Clothing uniforms and laundry E328,02-Feb-2023,000008648593626,PRIMARK 670 GATESHEAD,5651,Clothing uniforms and laundry,14.00,0.00,14.00
Resources BK0010,Digital Services,065481,Technical Services 065481,Supplies and Services,304403,Equipment and Materials,02-Feb-2023,000008648593738,AMZNMKTPLACE AMAZON.CO,5999,Other consumables,59.95,10.00,49.95
Regeneration Economy and Growth,Corporate Property and Land,011296,Catering - Dunes,Supplies and Services,324117,Provisions E324,02-Feb-2023,000008648680936,BESTWAY WHOLESALE,5300,Catering costs - provisions,33.66,5.61,28.05
Regeneration Economy and Growth,Corporate Property and Land,011296,Catering - Dunes,Supplies and Services,324117,Provisions E324,02-Feb-2023,000008648680936 - 1,BESTWAY WHOLESALE,5300,Catering costs - provisions,78.37,,78.37
Neighbourhoods and Climate Change,Environmental Services,011060,C&G - Hardwick Park Catering,Supplies and Services,324117,Provisions E324,02-Feb-2023,000008648680950,BESTWAY WHOLESALE,5300,Catering costs - provisions,340.14,56.69,283.45
Neighbourhoods and Climate Change,Environmental Services,011060,C&G - Hardwick Park Catering,Supplies and Services,324117,Provisions E324,02-Feb-2023,000008648680950 - 1,BESTWAY WHOLESALE,5300,Catering costs - provisions,280.17,,280.17
Regeneration Economy and Growth,Culture Sport and Tourism,030712,VCD - Project Delivery,Supplies and Services,384199,Miscellaneous Expenses,02-Feb-2023,000010661484621,Mailchimp,5818,Other hired and contracted services,356.30,0.00,356.30
Children and Young Peoples Services,Head of Childrens Social Care,085342,16 Hickstead Rise (previously 9 Cedar Ave),Supplies and Services,304403,Equipment and Materials,02-Feb-2023,000010661484623,AMZNMktplace,5999,Other consumables,22.63,0.00,22.63
Neighbourhoods and Climate Change,Environmental Services,031202,North Pennines - Peatscapes,Transport,235057,Public Transport,02-Feb-2023,000010661484981,SQ SEA DEW BED AND BR,4722,Staff travelling,9.23,0.00,9.23
Neighbourhoods and Climate Change,Environmental Services,031202,North Pennines - Peatscapes,Transport,215995,Running Costs of Vehicles,02-Feb-2023,000010661484983,MAXOL SSTN RICHMOND RD,5541,Vehicle running expenses,1.14,0.00,1.14
Neighbourhoods and Climate Change,Environmental Services,031078,E&D - Portable Antiquities Scheme 031078,Supplies and Services,332047,Printing Stationery and Gen Off Exps,02-Feb-2023,000010661485181,AMZNMktplace,5999,Stationery,16.66,0.00,16.66
Children and Young Peoples Services,Head of Childrens Social Care,085501,Child Care Cases Legal Expenses,Supplies and Services,304259,Equipment and Materials,03-Feb-2023,000008641503190,BIRMINGHAM REGISTER,9399,Equipment-purchase and rental,-4.00,0.00,-4.00
Children and Young Peoples Services,Head of Education and Skills,071732,Dean Bank Childcare,Supplies and Services,304403,Equipment and Materials,03-Feb-2023,000008641503350,AMZNMktplace,5999,Other consumables,36.95,0.00,36.95
Children and Young Peoples Services,Head of Early Help Inclusion & Vulnerable Children.,085962,Aycliffe Secure - Durham,Supplies and Services,304403,Equipment and Materials,03-Feb-2023,000008641503466,AMZNMktplace,5999,Other consumables,11.49,1.92,9.57
Children and Young Peoples Services,Head of Childrens Social Care,085347,Solo Home The Manse,Supplies and Services,384999,Miscellaneous Expenses,03-Feb-2023,000008641503656,Amazon.co.uk 1Q9MX4CO4,5969,Other expenses,24.49,0.00,24.49
Neighbourhoods and Climate Change,Environmental Services,031202,North Pennines - Peatscapes,Supplies and Services,348037,Subsistence E348,03-Feb-2023,000008641504086,28392631 DUB MARKET 53,5812,Subsistence,0.36,0.00,0.36
Neighbourhoods and Climate Change,Environmental Services,031202,North Pennines - Peatscapes,Supplies and Services,348037,Subsistence E348,03-Feb-2023,000008641504088,28391071 DUB BURGER KI,5812,Subsistence,0.22,0.00,0.22
Children and Young Peoples Services,Head of Childrens Social Care,085611,Families First Stanley,Supplies and Services,364340,Grants to Voluntary Organisations,03-Feb-2023,000008648592626,WWW.GONORTHEAST.CO.UK,4111,Contact expenses,7.00,0.00,7.00
Children and Young Peoples Services,Head of Childrens Social Care,085611,Families First Stanley,Supplies and Services,364340,Grants to Voluntary Organisations,03-Feb-2023,000008648592628,WWW.GONORTHEAST.CO.UK,4111,Contact expenses,7.00,0.00,7.00
Children and Young Peoples Services,Head of Childrens Social Care,085611,Families First Stanley,Supplies and Services,364340,Grants to Voluntary Organisations,03-Feb-2023,000008648592632,WWW.GONORTHEAST.CO.UK,4111,Contact expenses,7.00,0.00,7.00
Children and Young Peoples Services,Head of Education and Skills,071801,Selby Cottage Childcare Centre,Supplies and Services,324117,Provisions E324,03-Feb-2023,000008648592636,TESCO STORES 2278,5411,Catering costs - provisions,5.97,0.00,5.97
Dedicated Schools Grant BG0015,DSG Schools Block,110013,The Woodlands 1100 - Primary,Supplies and Services,304403,Equipment and Materials,03-Feb-2023,000008648592642,AMZNMktplace,5999,Other consumables,58.98,9.84,49.14
Children and Young Peoples Services,Head of Childrens Social Care,085342,16 Hickstead Rise (previously 9 Cedar Ave),Supplies and Services,304403,Equipment and Materials,03-Feb-2023,000008648592668,AMZNMktplace,5999,Other consumables,29.90,0.00,29.90
Children and Young Peoples Services,Head of Childrens Social Care,085342,16 Hickstead Rise (previously 9 Cedar Ave),Supplies and Services,308011,Furniture,03-Feb-2023,000008648592670,The Range,5719,Furniture repair and replacement,42.46,0.00,42.46
Children and Young Peoples Services,Head of Childrens Social Care,085342,16 Hickstead Rise (previously 9 Cedar Ave),Supplies and Services,324117,Provisions E324,03-Feb-2023,000008648592672,B&M 681 - DURHAM,5399,Catering costs - provisions,62.18,0.00,62.18
Children and Young Peoples Services,Head of Childrens Social Care,085342,16 Hickstead Rise (previously 9 Cedar Ave),Supplies and Services,324117,Provisions E324,03-Feb-2023,000008648592676,TESCO STORES 6329,5411,Catering costs - provisions,10.00,0.00,10.00
Children and Young Peoples Services,Head of Childrens Social Care,085342,16 Hickstead Rise (previously 9 Cedar Ave),Supplies and Services,324117,Provisions E324,03-Feb-2023,000008648592678,TESCO STORES 6329,5411,Catering costs - provisions,10.90,0.00,10.90
Children and Young Peoples Services,Head of Childrens Social Care,085342,16 Hickstead Rise (previously 9 Cedar Ave),Supplies and Services,308011,Furniture,03-Feb-2023,000008648592680,DUNELM LTD,5714,Furniture repair and replacement,126.50,0.00,126.50
Children and Young Peoples Services,Head of Childrens Social Care,085342,16 Hickstead Rise (previously 9 Cedar Ave),Supplies and Services,304259,Equipment and Materials,03-Feb-2023,000008648592684,SPORTSDIRECT 264,5941,Equipment-purchase and rental,197.16,0.00,197.16
Children and Young Peoples Services,Head of Childrens Social Care,085347,Solo Home The Manse,Supplies and Services,304403,Equipment and Materials,03-Feb-2023,000008648592700,AMZNMKTPLACE AMAZON.CO,5999,Other consumables,22.96,0.00,22.96
Children and Young Peoples Services,Head of Childrens Social Care,085332,Middlestone Moor CU,Supplies and Services,324117,Provisions E324,03-Feb-2023,000008648592768,TESCO STORES 2371,5411,Catering costs - provisions,91.53,0.00,91.53
Neighbourhoods and Climate Change,Environmental Services,031260,North Pennines - Nature for Climate 2,Supplies and Services,304999,Equipment and Materials,03-Feb-2023,000008648592830,SP HEADTORCHUK,5691,Misc equipment tools and materials,121.41,0.00,121.41
Neighbourhoods and Climate Change,Environmental Services,031260,North Pennines - Nature for Climate 2,Supplies and Services,304999,Equipment and Materials,03-Feb-2023,000008648592832,MEDTREE,5999,Misc equipment tools and materials,101.95,16.99,84.96
Neighbourhoods and Climate Change,Environmental Services,031249,North Pennines - Nature for Climate,Supplies and Services,304999,Equipment and Materials,03-Feb-2023,000008648592834,ADVENTURE RESOURCES LI,5655,Misc equipment tools and materials,39.68,6.61,33.07
Children and Young Peoples Services,Head of Early Help Inclusion & Vulnerable Children.,088109,Dean Bank and Tudhoe Family Centre,Supplies and Services,364301,Grants to Voluntary Organisations,03-Feb-2023,000008648592868,Express Beds Ltd,5712,Hardship,349.00,0.00,349.00
Children and Young Peoples Services,Head of Childrens Social Care,085380,Service Manager CLA Fostering,Supplies and Services,384199,Miscellaneous Expenses,03-Feb-2023,000008648592870,ELIZA BLOOMS GIFTS LTD,5992,Other hired and contracted services,39.00,0.00,39.00
Children and Young Peoples Services,Head of Childrens Social Care,085342,16 Hickstead Rise (previously 9 Cedar Ave),Supplies and Services,344033,Telephones,03-Feb-2023,000008648592992,giffgaff,4814,Telephones general-all costs,10.00,0.00,10.00
Children and Young Peoples Services,Head of Childrens Social Care,085342,16 Hickstead Rise (previously 9 Cedar Ave),Transport,215995,Running Costs of Vehicles,03-Feb-2023,000008648592994,TESCO PAY AT PUMP 4088,5542,Vehicle running expenses,59.10,0.00,59.10
Children and Young Peoples Services,Head of Childrens Social Care,085342,16 Hickstead Rise (previously 9 Cedar Ave),Supplies and Services,324117,Provisions E324,03-Feb-2023,000008648592996,SAINSBURYS AYCLIFF,5411,Catering costs - provisions,5.80,0.00,5.80
Neighbourhoods and Climate Change,Environmental Services,011060,C&G - Hardwick Park Catering,Supplies and Services,304083,Equipment and Materials,03-Feb-2023,000008648593052,AMZNMKTPLACE AMAZON.CO,5999,Catering equipment,59.96,10.00,49.96
Neighbourhoods and Climate Change,Environmental Services,026591,C&G - Hardwick Park,Premises,120037,Energy Costs,03-Feb-2023,000008648593058,WWW.CALOR.CO.UK,4900,Other fuels,"1,909.10",0.00,1909.10
Children and Young Peoples Services,Head of Childrens Social Care,085341,High Etherley Satelite Home,Supplies and Services,324117,Provisions E324,03-Feb-2023,000008648593088,TESCO STORES 6329,5411,Catering costs - provisions,1.70,0.00,1.70
Children and Young Peoples Services,Head of Childrens Social Care,085341,High Etherley Satelite Home,Supplies and Services,324117,Provisions E324,03-Feb-2023,000008648593092,774 026,5411,Catering costs - provisions,107.45,0.00,107.45
Children and Young Peoples Services,Head of Early Help Inclusion & Vulnerable Children.,085957,Secure Management,Supplies and Services,304259,Equipment and Materials,03-Feb-2023,000008648593152,SMYTHS TOYS,5399,Equipment-purchase and rental,35.98,0.00,35.98
Children and Young Peoples Services,Head of Early Help Inclusion & Vulnerable Children.,085957,Secure Management,Supplies and Services,304259,Equipment and Materials,03-Feb-2023,000008648593156,NEWITTS.COM,5941,Equipment-purchase and rental,299.75,0.00,299.75
Children and Young Peoples Services,Head of Early Help Inclusion & Vulnerable Children.,085957,Secure Management,Supplies and Services,304259,Equipment and Materials,03-Feb-2023,000008648593158,SP BISHOPSPORT.CO.UK,5941,Equipment-purchase and rental,196.62,0.00,196.62
Children and Young Peoples Services,Head of Early Help Inclusion & Vulnerable Children.,085957,Secure Management,Supplies and Services,304259,Equipment and Materials,03-Feb-2023,000008648593162,AMZNMktplace,5999,Equipment-purchase and rental,9.94,1.66,8.28
Children and Young Peoples Services,Head of Early Help Inclusion & Vulnerable Children.,085957,Secure Management,Supplies and Services,312011,Newspapers books and periodicals E312,03-Feb-2023,000008648593164,AMZNMktplace,5999,Books-school library,4.73,0.00,4.73
Children and Young Peoples Services,Head of Early Help Inclusion & Vulnerable Children.,085957,Secure Management,Supplies and Services,304259,Equipment and Materials,03-Feb-2023,000008648593166,AMZNMktplace,5999,Equipment-purchase and rental,21.24,3.54,17.70
Children and Young Peoples Services,Head of Early Help Inclusion & Vulnerable Children.,085957,Secure Management,Supplies and Services,304259,Equipment and Materials,03-Feb-2023,000008648593166 - 1,AMZNMktplace,5999,Equipment-purchase and rental,0.12,,0.12
Children and Young Peoples Services,Head of Early Help Inclusion & Vulnerable Children.,085957,Secure Management,Transfer Payments,515002,Social Services Clients,03-Feb-2023,000008648593172,JD Sports Fashion PLC,5655,Pocket money,-83.00,0.00,-83.00
Children and Young Peoples Services,Head of Early Help Inclusion & Vulnerable Children.,085963,Maple House,Supplies and Services,324117,Provisions E324,03-Feb-2023,000008648593216,TESCO STORES 2916,5411,Catering costs - provisions,10.40,0.00,10.40
Regeneration Economy and Growth,Economic Development Level C,030771,Durham Advance Flexible Fund,Transport,235057,Public Transport,03-Feb-2023,000008648593220,WALKERGATE CAR PAR,7523,Staff travelling,3.10,0.52,2.58
Children and Young Peoples Services,Head of Early Help Inclusion & Vulnerable Children.,085965,Barnard,Supplies and Services,324117,Provisions E324,03-Feb-2023,000008648593228,TESCO STORES 6329,5411,Catering costs - provisions,142.65,0.00,142.65
Neighbourhoods and Climate Change,Environmental Services,031200,North Pennines Core,Supplies and Services,348037,Subsistence E348,03-Feb-2023,000008648593284,KINGS ARMS REETH,5812,Subsistence,33.45,0.00,33.45
Children and Young Peoples Services,Head of Childrens Social Care,085552,Services for Disabled Children,Supplies and Services,364301,Grants to Voluntary Organisations,03-Feb-2023,000008648593322,Euroflorist UK Ltd,5992,Hardship,25.98,0.00,25.98
Children and Young Peoples Services,Head of Childrens Social Care,085551,Short Break Services-Park Hse Sher,Supplies and Services,324117,Provisions E324,03-Feb-2023,000008648593398,TESCO STORES 2371,5411,Catering costs - provisions,76.24,0.00,76.24
Children and Young Peoples Services,Head of Early Help Inclusion & Vulnerable Children.,085963,Maple House,Supplies and Services,324117,Provisions E324,03-Feb-2023,000008648593400,TESCO STORES 2916,5411,Catering costs - provisions,3.00,0.00,3.00
Adult and Health Services,Head of Adults,055643,Hawthorn House LD Respite Unit,Supplies and Services,304403,Equipment and Materials,03-Feb-2023,000008648593456,AMZNMktplace,5999,Other consumables,17.96,3.00,14.96
Adult and Health Services,Head of Adults,055643,Hawthorn House LD Respite Unit,Supplies and Services,324117,Provisions E324,03-Feb-2023,000008648593458,WILKO RETAIL LIMITED,5399,Catering costs - provisions,34.65,0.00,34.65
Adult and Health Services,Head of Adults,055643,Hawthorn House LD Respite Unit,Supplies and Services,304403,Equipment and Materials,03-Feb-2023,000008648593460,AMZNMKTPLACE AMAZON.CO,5999,Other consumables,7.95,1.33,6.62
Adult and Health Services,Head of Adults,055643,Hawthorn House LD Respite Unit,Supplies and Services,304403,Equipment and Materials,03-Feb-2023,000008648593462,AMZNMktplace,5999,Other consumables,13.95,0.00,13.95
Adult and Health Services,Head of Adults,055643,Hawthorn House LD Respite Unit,Supplies and Services,304403,Equipment and Materials,03-Feb-2023,000008648593464,AMZNMktplace,5999,Other consumables,14.99,0.00,14.99
Adult and Health Services,Head of Adults,055643,Hawthorn House LD Respite Unit,Supplies and Services,304403,Equipment and Materials,03-Feb-2023,000008648593466,AMZNMKTPLACE AMAZON.CO,5999,Other consumables,8.20,1.37,6.83
Adult and Health Services,Head of Adults,055643,Hawthorn House LD Respite Unit,Supplies and Services,304403,Equipment and Materials,03-Feb-2023,000008648593468,AMZNMKTPLACE AMAZON.CO,5999,Other consumables,11.99,2.00,9.99
Adult and Health Services,Head of Adults,055643,Hawthorn House LD Respite Unit,Supplies and Services,304403,Equipment and Materials,03-Feb-2023,000008648593470,AMZNMKTPLACE AMAZON.CO,5999,Other consumables,3.46,0.58,2.88
Adult and Health Services,Head of Adults,055643,Hawthorn House LD Respite Unit,Supplies and Services,304403,Equipment and Materials,03-Feb-2023,000008648593472,AMZNMKTPLACE AMAZON.CO,5999,Other consumables,5.99,1.00,4.99
Children and Young Peoples Services,Head of Education and Skills,071802,Louisa Cent Nursery,Supplies and Services,324117,Provisions E324,03-Feb-2023,000008648593480,ALDI STORES,5411,Catering costs - provisions,3.88,0.00,3.88
Regeneration Economy and Growth,Corporate Property and Land,020041,Bldg Serv - Business Development - General,Transport,235057,Public Transport,03-Feb-2023,000008648593482,MIDDLESBROUGH COUNCIL,9399,Staff travelling,0.30,0.05,0.25
Regeneration Economy and Growth,Corporate Property and Land,020041,Bldg Serv - Business Development - General,Transport,235057,Public Transport,03-Feb-2023,000008648593482 - 1,MIDDLESBROUGH COUNCIL,9399,Staff travelling,3.50,,3.50
Children and Young Peoples Services,Head of Childrens Social Care,085342,16 Hickstead Rise (previously 9 Cedar Ave),Supplies and Services,348037,Subsistence E348,03-Feb-2023,000008648593492,BRINKBURN,5813,Subsistence,27.57,0.00,27.57
Children and Young Peoples Services,Head of Education and Skills,075035,DurhamDirections Re-engagement,Supplies and Services,364301,Grants to Voluntary Organisations,03-Feb-2023,000008648593494,WWW.GONORTHEAST.CO.UK,4111,Hardship,4.70,0.00,4.70
Children and Young Peoples Services,Head of Education and Skills,075035,DurhamDirections Re-engagement,Supplies and Services,364301,Grants to Voluntary Organisations,03-Feb-2023,000008648593496,WWW.GONORTHEAST.CO.UK,4111,Hardship,18.00,0.00,18.00
Children and Young Peoples Services,Head of Education and Skills,075035,DurhamDirections Re-engagement,Supplies and Services,364301,Grants to Voluntary Organisations,03-Feb-2023,000008648593498,WWW.GONORTHEAST.CO.UK,4111,Hardship,4.70,0.00,4.70
Children and Young Peoples Services,Head of Education and Skills,075035,DurhamDirections Re-engagement,Supplies and Services,364301,Grants to Voluntary Organisations,03-Feb-2023,000008648593500,AMZNMktplace,5999,Hardship,28.99,4.83,24.16
Children and Young Peoples Services,Head of Education and Skills,075035,DurhamDirections Re-engagement,Supplies and Services,364301,Grants to Voluntary Organisations,03-Feb-2023,000008648593502,AMZNMktplace,5999,Hardship,17.98,3.00,14.98
Regeneration Economy and Growth,Culture Sport and Tourism,011264,Consett Leisure Centre,Supplies and Services,332047,Printing Stationery and Gen Off Exps,03-Feb-2023,000008648593524,AMZNMKTPLACE AMAZON.CO,5999,Stationery,69.84,11.64,58.20
Regeneration Economy and Growth,Culture Sport and Tourism,011264,Consett Leisure Centre,Supplies and Services,332047,Printing Stationery and Gen Off Exps,03-Feb-2023,000008648593526,AMZNMKTPLACE AMAZON.CO,5999,Stationery,25.92,4.32,21.60
Neighbourhoods and Climate Change,Environmental Services,031202,North Pennines - Peatscapes,Transport,235057,Public Transport,03-Feb-2023,000008648593528,Weardale Motor Service,4111,Staff travelling,68.70,0.00,68.70
Children and Young Peoples Services,Head of Childrens Social Care,085331,New Lea Childrens Home,Supplies and Services,324117,Provisions E324,03-Feb-2023,000008648593534,TESCO STORES 6329,5411,Catering costs - provisions,7.85,0.00,7.85
Children and Young Peoples Services,Head of Childrens Social Care,085363,Childrens Permanence Team,Supplies and Services,338045,Services,03-Feb-2023,000008648593540,STOCKTON BOROUGH COUNC,9399,Legal expenses 338045,22.00,0.00,22.00
Children and Young Peoples Services,Head of Childrens Social Care,085363,Childrens Permanence Team,Supplies and Services,338045,Services,03-Feb-2023,000008648593544,DURHAM COUNTY COUNCIL,9399,Legal expenses 338045,-22.00,0.00,-22.00
Children and Young Peoples Services,Head of Early Help Inclusion & Vulnerable Children.,085965,Barnard,Supplies and Services,304403,Equipment and Materials,03-Feb-2023,000008648593548,AMZNMKTPLACE AMAZON.CO,5999,Other consumables,46.54,0.00,46.54
Dedicated Schools Grant BG0015,DSG Schools Block,231104,Peases West Primary 2311 - General Curriculum,Supplies and Services,304403,Equipment and Materials,03-Feb-2023,000008648593558,AMZNMktplace,5999,Other consumables,15.98,2.66,13.32
Children and Young Peoples Services,Head of Early Help Inclusion & Vulnerable Children.,085963,Maple House,Supplies and Services,304259,Equipment and Materials,03-Feb-2023,000008648593564,AMZNMktplace,5999,Equipment-purchase and rental,21.87,3.65,18.22
Children and Young Peoples Services,Head of Early Help Inclusion & Vulnerable Children.,085963,Maple House,Supplies and Services,304259,Equipment and Materials,03-Feb-2023,000008648593566,AMZNMktplace,5999,Equipment-purchase and rental,10.99,1.83,9.16
Children and Young Peoples Services,Head of Childrens Social Care,085329,Care Leavers UASC Team,Supplies and Services,384504,Miscellaneous Expenses,03-Feb-2023,000008648593584,WWW.ARGOS.CO.UK,5311,Assistance to asylum seekers,179.98,0.00,179.98
Neighbourhoods and Climate Change,Environmental Services,010367,C&G - South Grounds Maintenance,Supplies and Services,304221,Equipment and Materials,03-Feb-2023,000008648593608,SCREWFIX DIR. LTD,5211,Direct materials,12.49,0.00,12.49
Children and Young Peoples Services,Head of Childrens Social Care,085333,Coxhoe Satelite Home,Supplies and Services,324117,Provisions E324,03-Feb-2023,000008648593632,ASDA STORES LTD 4313,5411,Catering costs - provisions,147.85,0.00,147.85
Children and Young Peoples Services,Head of Childrens Social Care,085333,Coxhoe Satelite Home,Supplies and Services,324117,Provisions E324,03-Feb-2023,000008648593634,SAINSBURY`S S/MKT,5411,Catering costs - provisions,47.83,0.00,47.83
Children and Young Peoples Services,Head of Childrens Social Care,085333,Coxhoe Satelite Home,Supplies and Services,324117,Provisions E324,03-Feb-2023,000008648593636,SAINSBURYS LOCAL,5411,Catering costs - provisions,4.45,0.00,4.45
Children and Young Peoples Services,Head of Education and Skills,071802,Louisa Cent Nursery,Supplies and Services,324117,Provisions E324,03-Feb-2023,000008648593640,ASDA GROCERIES ONLINE,5411,Catering costs - provisions,237.57,0.00,237.57
Children and Young Peoples Services,Head of Education and Skills,071802,Louisa Cent Nursery,Supplies and Services,324117,Provisions E324,03-Feb-2023,000008648593642,ASDA GROCERIES ONLINE,5411,Catering costs - provisions,-1.68,0.00,-1.68
Children and Young Peoples Services,Head of Childrens Social Care,085347,Solo Home The Manse,Supplies and Services,328041,Clothing uniforms and laundry E328,03-Feb-2023,000008648593660,SP GYMKING,5655,Clothing uniforms and laundry,18.99,0.00,18.99
Children and Young Peoples Services,Head of Childrens Social Care,085347,Solo Home The Manse,Supplies and Services,324117,Provisions E324,03-Feb-2023,000008648593662,TESCO STORES 2371,5411,Catering costs - provisions,30.73,0.00,30.73
Regeneration Economy and Growth,Culture Sport and Tourism,010664,Freemans Quay Leisure Centre,Supplies and Services,384999,Miscellaneous Expenses,03-Feb-2023,000008648593730,Amazon.co.uk 1Q9KJ6O44,5969,Other expenses,225.92,0.00,225.92
Children and Young Peoples Services,Head of Childrens Social Care,085380,Service Manager CLA Fostering,Supplies and Services,328041,Clothing uniforms and laundry E328,03-Feb-2023,000008648593742,ARGOS LTD,5310,Clothing uniforms and laundry,153.95,0.00,153.95
Resources BK0010,Digital Services,011103,Digital Solutions,Supplies and Services,304335,Equipment and Materials,03-Feb-2023,000008648593754,DRI MSP360TM,5734,ICT supplies etc,28.80,0.00,28.80
Children and Young Peoples Services,Head of Childrens Social Care,085611,Families First Stanley,Supplies and Services,340001,Postages E340,03-Feb-2023,000008648593756,ROYAL MAIL ONLINE SHOP,9402,Postages,49.93,0.00,49.93
Children and Young Peoples Services,Head of Childrens Social Care,085363,Childrens Permanence Team,Supplies and Services,340001,Postages E340,03-Feb-2023,000008648593758,ROYAL MAIL ONLINE SHOP,9402,Postages,40.85,0.00,40.85
Regeneration Economy and Growth,Transport and Contracted Services,032061,Traffic 032061,Supplies and Services,304403,Equipment and Materials,03-Feb-2023,000008648593760,AMZNMktplace,5999,Other consumables,44.99,7.50,37.49
Regeneration Economy and Growth,Planning & Housing,031634,LOCAL LETTINGS AGENCY,Supplies and Services,304221,Equipment and Materials,03-Feb-2023,000008648593784,B & Q 1343,5200,Direct materials,54.00,0.00,54.00
Regeneration Economy and Growth,Planning & Housing,031634,LOCAL LETTINGS AGENCY,Supplies and Services,324117,Provisions E324,03-Feb-2023,000008648593786,B&M 681 - DURHAM,5399,Catering costs - provisions,15.95,0.00,15.95
Regeneration Economy and Growth,Planning & Housing,031634,LOCAL LETTINGS AGENCY,Supplies and Services,304259,Equipment and Materials,03-Feb-2023,000008648593808,GEN REGISTER OFFICE,9399,Equipment-purchase and rental,22.00,0.00,22.00
Children and Young Peoples Services,Head of Early Help Inclusion & Vulnerable Children.,088101,Bullion Lane & Brandon Family Centre,Supplies and Services,384999,Miscellaneous Expenses,03-Feb-2023,000008648593854,BAKER ROSS,5970,Other expenses,458.69,0.00,458.69
Regeneration Economy and Growth,Economic Development Level C,030770,Durham Advance,Supplies and Services,324117,Provisions E324,03-Feb-2023,000008648593882,WM Morrisons Store,5411,Catering costs - provisions,10.00,0.00,10.00
Regeneration Economy and Growth,Planning & Housing,031576,B& B - Temp Accom,Supplies and Services,364320,Grants to Voluntary Organisations,03-Feb-2023,000008648593896,Hotel at Booking.com,7011,Accommodation assistance,118.00,0.00,118.00
Regeneration Economy and Growth,Planning & Housing,031576,B& B - Temp Accom,Supplies and Services,364320,Grants to Voluntary Organisations,03-Feb-2023,000008648593898,Hotel at Booking.com,7011,Accommodation assistance,159.00,0.00,159.00
Regeneration Economy and Growth,Planning & Housing,031576,B& B - Temp Accom,Supplies and Services,364320,Grants to Voluntary Organisations,03-Feb-2023,000008648593900,Hotel at Booking.com,7011,Accommodation assistance,168.00,0.00,168.00
Regeneration Economy and Growth,Planning & Housing,031576,B& B - Temp Accom,Supplies and Services,364320,Grants to Voluntary Organisations,03-Feb-2023,000008648593902,H52STANLEY,7011,Accommodation assistance,180.00,0.00,180.00
Regeneration Economy and Growth,Planning & Housing,031576,B& B - Temp Accom,Supplies and Services,364320,Grants to Voluntary Organisations,03-Feb-2023,000008648593904,Roadchef Durham,7011,Accommodation assistance,22.50,0.00,22.50
Regeneration Economy and Growth,Planning & Housing,031576,B& B - Temp Accom,Supplies and Services,364320,Grants to Voluntary Organisations,03-Feb-2023,000008648593906,Roadchef Durham,7011,Accommodation assistance,22.50,0.00,22.50
Regeneration Economy and Growth,Planning & Housing,031576,B& B - Temp Accom,Supplies and Services,364320,Grants to Voluntary Organisations,03-Feb-2023,000008648593908,Roadchef Durham,7011,Accommodation assistance,45.00,0.00,45.00
Regeneration Economy and Growth,Planning & Housing,031576,B& B - Temp Accom,Supplies and Services,364320,Grants to Voluntary Organisations,03-Feb-2023,000008648593910,Roadchef Durham,7011,Accommodation assistance,15.00,0.00,15.00
Children and Young Peoples Services,Head of Early Help Inclusion & Vulnerable Children.,088111,Easington Horden & Seascape Family Centre,Supplies and Services,384999,Miscellaneous Expenses,03-Feb-2023,000008648593918,AMZ Amazon.co.uk,5969,Other expenses,-1.25,0.00,-1.25
Children and Young Peoples Services,Head of Early Help Inclusion & Vulnerable Children.,088111,Easington Horden & Seascape Family Centre,Supplies and Services,384999,Miscellaneous Expenses,03-Feb-2023,000008648593920,AMZ Amazon.co.uk,5969,Other expenses,-1.87,0.00,-1.87
Children and Young Peoples Services,Head of Early Help Inclusion & Vulnerable Children.,088111,Easington Horden & Seascape Family Centre,Supplies and Services,384999,Miscellaneous Expenses,03-Feb-2023,000008648593922,AMZ Amazon.co.uk,5969,Other expenses,-1.87,0.00,-1.87
Regeneration Economy and Growth,Corporate Property and Land,010525,Catering - Green Lane,Supplies and Services,324117,Provisions E324,03-Feb-2023,000008648680928,HOPWELLS LTD,5811,Catering costs - provisions,93.76,0.00,93.76
Regeneration Economy and Growth,Corporate Property and Land,011296,Catering - Dunes,Supplies and Services,324117,Provisions E324,03-Feb-2023,000008648680930,HOPWELLS LTD,5811,Catering costs - provisions,24.84,4.14,20.70
Regeneration Economy and Growth,Corporate Property and Land,011296,Catering - Dunes,Supplies and Services,324117,Provisions E324,03-Feb-2023,000008648680930 - 1,HOPWELLS LTD,5811,Catering costs - provisions,131.27,,131.27
Regeneration Economy and Growth,Corporate Property and Land,011296,Catering - Dunes,Supplies and Services,324117,Provisions E324,03-Feb-2023,000008648680932,HOPWELLS LTD,5811,Catering costs - provisions,283.34,0.00,283.34
Regeneration Economy and Growth,Corporate Property and Land,011296,Catering - Dunes,Supplies and Services,324117,Provisions E324,03-Feb-2023,000008648680934,JR HOLLAND FOODSERVICE,5499,Catering costs - provisions,125.01,0.00,125.01
Regeneration Economy and Growth,Corporate Property and Land,030691,Catering - Durham Dales Centre,Supplies and Services,324117,Provisions E324,03-Feb-2023,000008648680938,HOPWELLS LTD,5811,Catering costs - provisions,248.03,0.00,248.03
Regeneration Economy and Growth,Culture Sport and Tourism,054235,Bishop Auckland Town Hall Cafe,Supplies and Services,324117,Provisions E324,03-Feb-2023,000008648680940,HOPWELLS LTD,5811,Catering costs - provisions,207.76,0.00,207.76
Regeneration Economy and Growth,Culture Sport and Tourism,054235,Bishop Auckland Town Hall Cafe,Supplies and Services,324117,Provisions E324,03-Feb-2023,000008648680942,HOPWELLS LTD,5811,Catering costs - provisions,233.88,0.00,233.88
Adult and Health Services,Head of Adults,055643,Hawthorn House LD Respite Unit,Supplies and Services,324117,Provisions E324,03-Feb-2023,000008648680944,JR HOLLAND FOODSERVICE,5499,Catering costs - provisions,16.28,0.00,16.28
Neighbourhoods and Climate Change,Environmental Services,011060,C&G - Hardwick Park Catering,Supplies and Services,324117,Provisions E324,03-Feb-2023,000008648680946,HOPWELLS LTD,5811,Catering costs - provisions,160.06,0.00,160.06
Neighbourhoods and Climate Change,Environmental Services,011060,C&G - Hardwick Park Catering,Supplies and Services,324117,Provisions E324,03-Feb-2023,000008648680948,JR HOLLAND FOODSERVICE,5499,Catering costs - provisions,42.34,0.00,42.34
Regeneration Economy and Growth,Corporate Property and Land,021234,Catering - Locomotion,Supplies and Services,324117,Provisions E324,03-Feb-2023,000008648680952,HOPWELLS LTD,5811,Catering costs - provisions,342.72,0.00,342.72
Regeneration Economy and Growth,Corporate Property and Land,021235,Catering - Wharton Park,Supplies and Services,324117,Provisions E324,03-Feb-2023,000008648680954,HOPWELLS LTD,5811,Catering costs - provisions,39.72,6.62,33.10
Regeneration Economy and Growth,Corporate Property and Land,021235,Catering - Wharton Park,Supplies and Services,324117,Provisions E324,03-Feb-2023,000008648680954 - 1,HOPWELLS LTD,5811,Catering costs - provisions,69.17,,69.17
Regeneration Economy and Growth,Culture Sport and Tourism,011263,Louisa Centre 011263,Supplies and Services,324117,Provisions E324,03-Feb-2023,000008648680956,JR HOLLAND FOODSERVICE,5499,Catering costs - provisions,30.31,0.00,30.31
Regeneration Economy and Growth,Culture Sport and Tourism,054812,Gala Theatre - Catering etc,Supplies and Services,324117,Provisions E324,03-Feb-2023,000008648680958,JR HOLLAND FOODSERVICE,5499,Catering costs - provisions,46.76,0.00,46.76
Regeneration Economy and Growth,Corporate Property and Land,021242,Catering - County Hall,Supplies and Services,324117,Provisions E324,03-Feb-2023,000008648680960,HOPWELLS LTD,5811,Catering costs - provisions,202.02,0.00,202.02
Regeneration Economy and Growth,Corporate Property and Land,021242,Catering - County Hall,Supplies and Services,324117,Provisions E324,03-Feb-2023,000008648680962,HOPWELLS LTD,5811,Catering costs - provisions,305.91,0.00,305.91
Regeneration Economy and Growth,Corporate Property and Land,021242,Catering - County Hall,Supplies and Services,324117,Provisions E324,03-Feb-2023,000008648680964,JR HOLLAND FOODSERVICE,5499,Catering costs - provisions,134.64,0.00,134.64
Regeneration Economy and Growth,Corporate Property and Land,021242,Catering - County Hall,Supplies and Services,324117,Provisions E324,03-Feb-2023,000008648680966,JR HOLLAND FOODSERVICE,5499,Catering costs - provisions,11.82,0.00,11.82
Regeneration Economy and Growth,Corporate Property and Land,021242,Catering - County Hall,Supplies and Services,324117,Provisions E324,03-Feb-2023,000008648680968,JR HOLLAND FOODSERVICE,5499,Catering costs - provisions,11.20,0.00,11.20
Regeneration Economy and Growth,Corporate Property and Land,021324,Catering - Meadowfield,Supplies and Services,324117,Provisions E324,03-Feb-2023,000008648680970,HOPWELLS LTD,5811,Catering costs - provisions,115.02,0.00,115.02
Regeneration Economy and Growth,Corporate Property and Land,021324,Catering - Meadowfield,Supplies and Services,324117,Provisions E324,03-Feb-2023,000008648680972,JR HOLLAND FOODSERVICE,5499,Catering costs - provisions,128.72,0.00,128.72
Regeneration Economy and Growth,Corporate Property and Land,010525,Catering - Green Lane,Supplies and Services,324117,Provisions E324,03-Feb-2023,000008656568468,BESTWAY WHOLESALE,5300,Catering costs - provisions,113.76,18.96,94.80
Regeneration Economy and Growth,Corporate Property and Land,010525,Catering - Green Lane,Supplies and Services,324117,Provisions E324,03-Feb-2023,000008656568468 - 1,BESTWAY WHOLESALE,5300,Catering costs - provisions,55.92,,55.92
Regeneration Economy and Growth,Corporate Property and Land,010525,Catering - Green Lane,Supplies and Services,324117,Provisions E324,03-Feb-2023,000008656568470,BESTWAY WHOLESALE,5300,Catering costs - provisions,31.32,0.00,31.32
Regeneration Economy and Growth,Business Durham CL0850,030689,Inward Investment and Aftercare,Supplies and Services,304403,Equipment and Materials,04-Feb-2023,000008648592614,PROFESSIONAL-MEMBERSHI,5734,Other consumables,164.99,0.00,164.99
Regeneration Economy and Growth,Business Durham CL0850,030689,Inward Investment and Aftercare,Supplies and Services,342222,Computers and Communications,04-Feb-2023,000008648592616,FASTHOSTS,4816,Comp hardware purch-network servers,7.54,0.00,7.54
Children and Young Peoples Services,Head of Childrens Social Care,085341,High Etherley Satelite Home,Supplies and Services,304999,Equipment and Materials,04-Feb-2023,000008648592622,TESCO STORES 6329,5411,Misc equipment tools and materials,19.00,0.00,19.00
Children and Young Peoples Services,Head of Childrens Social Care,085341,High Etherley Satelite Home,Supplies and Services,324117,Provisions E324,04-Feb-2023,000008648592624,TESCO STORES 6329,5411,Catering costs - provisions,11.75,0.00,11.75
Children and Young Peoples Services,Head of Childrens Social Care,085347,Solo Home The Manse,Supplies and Services,308011,Furniture,04-Feb-2023,000008648592696,THE RANGE,5719,Furniture repair and replacement,31.61,0.00,31.61
Children and Young Peoples Services,Head of Childrens Social Care,085347,Solo Home The Manse,Supplies and Services,304403,Equipment and Materials,04-Feb-2023,000008648592702,AMZNMKTPLACE AMAZON.CO,5999,Other consumables,-7.99,0.00,-7.99
Regeneration Economy and Growth,Culture Sport and Tourism,054040,Shildon Sid Chaplain Library,Supplies and Services,304252,Equipment and Materials,04-Feb-2023,000008648592750,AMZNMktplace,5999,Equipment-repairsserviceinsurance,3.89,0.65,3.24
Children and Young Peoples Services,Head of Childrens Social Care,085342,16 Hickstead Rise (previously 9 Cedar Ave),Supplies and Services,324117,Provisions E324,04-Feb-2023,000008648592756,TESCO STORES 2916,5411,Catering costs - provisions,111.46,0.00,111.46
Children and Young Peoples Services,Head of Early Help Inclusion & Vulnerable Children.,085956,Lumley,Supplies and Services,348037,Subsistence E348,04-Feb-2023,000008648592812,Domino s Pizza,5812,Subsistence,35.96,0.00,35.96
Children and Young Peoples Services,Head of Early Help Inclusion & Vulnerable Children.,085956,Lumley,Supplies and Services,348037,Subsistence E348,04-Feb-2023,000008648592816,Domino s Pizza,5812,Subsistence,73.77,0.00,73.77
Regeneration Economy and Growth,Corporate Property and Land,021242,Catering - County Hall,Supplies and Services,342033,Computers and Communications,04-Feb-2023,000008648592930,WWW.NISBETS.COM,5964,Computer hardware,151.91,0.00,151.91
Children and Young Peoples Services,Head of Childrens Social Care,085358,Orchard House Sacriston Solo Home,Supplies and Services,344033,Telephones,04-Feb-2023,000008648593022,giffgaff,4814,Telephones general-all costs,10.00,0.00,10.00
Children and Young Peoples Services,Head of Education and Skills,071732,Dean Bank Childcare,Supplies and Services,324117,Provisions E324,04-Feb-2023,000008648593034,CO-OP GROUP 010503,5411,Catering costs - provisions,16.64,0.00,16.64
Children and Young Peoples Services,Head of Early Help Inclusion & Vulnerable Children.,085957,Secure Management,Transfer Payments,515002,Social Services Clients,04-Feb-2023,000008648593168,AMZNMktplace,5999,Pocket money,205.10,0.00,205.10
Children and Young Peoples Services,Head of Early Help Inclusion & Vulnerable Children.,085956,Lumley,Supplies and Services,324117,Provisions E324,04-Feb-2023,000008648593232,TESCO STORES 6329,5411,Catering costs - provisions,138.65,0.00,138.65
Children and Young Peoples Services,Head of Early Help Inclusion & Vulnerable Children.,085954,Walworth,Supplies and Services,384302,Miscellaneous Expenses,04-Feb-2023,000008648593234,AMZ Amazon Business UK,5999,Activity expenses,-49.45,-3.49,-45.96
Children and Young Peoples Services,Head of Childrens Social Care,085331,New Lea Childrens Home,Transport,215995,Running Costs of Vehicles,04-Feb-2023,000008648593324,KIP HILL SERVICES,5541,Vehicle running expenses,5.53,0.00,5.53
Children and Young Peoples Services,Head of Childrens Social Care,085331,New Lea Childrens Home,Supplies and Services,348037,Subsistence E348,04-Feb-2023,000008648593330,MCDONALDS 1555,5814,Subsistence,20.43,0.00,20.43
Children and Young Peoples Services,Head of Education and Skills,075035,DurhamDirections Re-engagement,Supplies and Services,364301,Grants to Voluntary Organisations,04-Feb-2023,000008648593504,AMZNMktplace,5999,Hardship,20.00,3.33,16.67
Children and Young Peoples Services,Head of Early Help Inclusion & Vulnerable Children.,088115,Young Parents Programme 088115,Supplies and Services,384302,Miscellaneous Expenses,04-Feb-2023,000008648593542,AMZNMKTPLACE AMAZON.CO,5999,Activity expenses,23.90,3.98,19.92
Children and Young Peoples Services,Head of Childrens Social Care,085351,Framwellgate Moor CU,Supplies and Services,338099,Services,04-Feb-2023,000008648593628,WWW.STANWIX.COM,7033,Other services,302.00,0.00,302.00
Children and Young Peoples Services,Head of Childrens Social Care,085347,Solo Home The Manse,Transport,215995,Running Costs of Vehicles,04-Feb-2023,000008648593644,Shell Durham A1(M),5541,Vehicle running expenses,20.15,0.00,20.15
Children and Young Peoples Services,Head of Childrens Social Care,085334,West Rainton Satelite Home,Supplies and Services,324117,Provisions E324,04-Feb-2023,000008648593732,TESCO STORES 2371,5411,Catering costs - provisions,20.30,0.00,20.30
Children and Young Peoples Services,Head of Childrens Social Care,085334,West Rainton Satelite Home,Supplies and Services,324117,Provisions E324,04-Feb-2023,000008648593734,TESCO STORES 2371,5411,Catering costs - provisions,37.35,0.00,37.35
Children and Young Peoples Services,Head of Childrens Social Care,085334,West Rainton Satelite Home,Supplies and Services,324117,Provisions E324,04-Feb-2023,000008648593736,ALDI 12 774,5411,Catering costs - provisions,77.09,0.00,77.09
Regeneration Economy and Growth,Communications Management,060270,Communications and Marketing,Supplies and Services,336005,Advertising E336,04-Feb-2023,000008648593762,LinkedIn Ads 2969944,7311,Advertising other than for staff,127.86,0.00,127.86
Children and Young Peoples Services,Head of Early Help Inclusion & Vulnerable Children.,088101,Bullion Lane & Brandon Family Centre,Supplies and Services,304403,Equipment and Materials,04-Feb-2023,000008648593856,AMZNMktplace,5999,Other consumables,34.99,5.83,29.16
Regeneration Economy and Growth,Planning & Housing,031576,B& B - Temp Accom,Supplies and Services,364320,Grants to Voluntary Organisations,04-Feb-2023,000008648593912,Roadchef Durham,7011,Accommodation assistance,15.00,0.00,15.00
Regeneration Economy and Growth,Planning & Housing,031576,B& B - Temp Accom,Supplies and Services,364320,Grants to Voluntary Organisations,04-Feb-2023,000008648593914,Roadchef Durham,7011,Accommodation assistance,15.00,0.00,15.00
Children and Young Peoples Services,Head of Childrens Social Care,085347,Solo Home The Manse,Supplies and Services,308011,Furniture,05-Feb-2023,000008648592704,THE RANGE,5719,Furniture repair and replacement,39.83,0.00,39.83
Children and Young Peoples Services,Head of Childrens Social Care,085334,West Rainton Satelite Home,Supplies and Services,304999,Equipment and Materials,05-Feb-2023,000008648592774,Bandai Namco Europe,7929,Misc equipment tools and materials,25.85,0.00,25.85
Children and Young Peoples Services,Head of Childrens Social Care,085334,West Rainton Satelite Home,Supplies and Services,324117,Provisions E324,05-Feb-2023,000008648592776,B&M 681 - DURHAM,5399,Catering costs - provisions,16.72,0.00,16.72
Children and Young Peoples Services,Head of Childrens Social Care,085334,West Rainton Satelite Home,Supplies and Services,348037,Subsistence E348,05-Feb-2023,000008648592778,MCDONALDS,5814,Subsistence,6.06,0.00,6.06
Children and Young Peoples Services,Head of Early Help Inclusion & Vulnerable Children.,085956,Lumley,Supplies and Services,348037,Subsistence E348,05-Feb-2023,000008648592808,Just Eat,5814,Subsistence,88.40,0.00,88.40
Children and Young Peoples Services,Head of Early Help Inclusion & Vulnerable Children.,085956,Lumley,Supplies and Services,384999,Miscellaneous Expenses,05-Feb-2023,000008648592820,Amazon.co.uk 1Q7RF13N4,5969,Other expenses,29.98,0.00,29.98
Children and Young Peoples Services,Head of Early Help Inclusion & Vulnerable Children.,085956,Lumley,Supplies and Services,304403,Equipment and Materials,05-Feb-2023,000008648592824,AMZNMktplace,5999,Other consumables,13.99,0.00,13.99
Children and Young Peoples Services,Head of Early Help Inclusion & Vulnerable Children.,085956,Lumley,Supplies and Services,304403,Equipment and Materials,05-Feb-2023,000008648592828,AMZNMktplace,5999,Other consumables,9.99,0.00,9.99
Regeneration Economy and Growth,Corporate Property and Land,021242,Catering - County Hall,Supplies and Services,304403,Equipment and Materials,05-Feb-2023,000008648592924,shein.co.uk,5999,Other consumables,21.90,0.00,21.90
Regeneration Economy and Growth,Corporate Property and Land,021242,Catering - County Hall,Supplies and Services,328041,Clothing uniforms and laundry E328,05-Feb-2023,000008648592926,SHEIN.COM,5691,Clothing uniforms and laundry,39.98,0.00,39.98
Children and Young Peoples Services,Head of Childrens Social Care,085342,16 Hickstead Rise (previously 9 Cedar Ave),Supplies and Services,304221,Equipment and Materials,05-Feb-2023,000008648592998,B & Q 1343,5200,Direct materials,8.82,0.00,8.82
Children and Young Peoples Services,Head of Childrens Social Care,085342,16 Hickstead Rise (previously 9 Cedar Ave),Supplies and Services,308011,Furniture,05-Feb-2023,000008648593000,The Range,5719,Furniture repair and replacement,10.57,0.00,10.57
Children and Young Peoples Services,Head of Childrens Social Care,085342,16 Hickstead Rise (previously 9 Cedar Ave),Supplies and Services,308011,Furniture,05-Feb-2023,000008648593002,THE RANGE,5719,Furniture repair and replacement,106.95,0.00,106.95
Children and Young Peoples Services,Head of Childrens Social Care,085342,16 Hickstead Rise (previously 9 Cedar Ave),Supplies and Services,324117,Provisions E324,05-Feb-2023,000008648593004,B&M 681 - DURHAM,5399,Catering costs - provisions,14.99,0.00,14.99
Children and Young Peoples Services,Head of Childrens Social Care,085342,16 Hickstead Rise (previously 9 Cedar Ave),Transport,215995,Running Costs of Vehicles,05-Feb-2023,000008648593008,TESCO PAY AT PUMP 4053,5542,Vehicle running expenses,30.00,0.00,30.00
Children and Young Peoples Services,Head of Early Help Inclusion & Vulnerable Children.,085962,Aycliffe Secure - Durham,Supplies and Services,304403,Equipment and Materials,05-Feb-2023,000008648593072,AMZNMktplace,5999,Other consumables,3.25,0.54,2.71
Children and Young Peoples Services,Head of Early Help Inclusion & Vulnerable Children.,085962,Aycliffe Secure - Durham,Supplies and Services,304403,Equipment and Materials,05-Feb-2023,000008648593074,AMZNMktplace,5999,Other consumables,28.55,4.76,23.79
Children and Young Peoples Services,Head of Early Help Inclusion & Vulnerable Children.,085962,Aycliffe Secure - Durham,Supplies and Services,304403,Equipment and Materials,05-Feb-2023,000008648593076,AMZNMktplace,5999,Other consumables,10.58,1.76,8.82
Children and Young Peoples Services,Head of Early Help Inclusion & Vulnerable Children.,085957,Secure Management,Supplies and Services,304259,Equipment and Materials,05-Feb-2023,000008648593174,AMZNMktplace,5999,Equipment-purchase and rental,9.99,0.00,9.99
Children and Young Peoples Services,Head of Early Help Inclusion & Vulnerable Children.,085957,Secure Management,Supplies and Services,304259,Equipment and Materials,05-Feb-2023,000008648593176,AMZNMktplace,5999,Equipment-purchase and rental,21.95,3.66,18.29
Children and Young Peoples Services,Head of Early Help Inclusion & Vulnerable Children.,085957,Secure Management,Supplies and Services,304259,Equipment and Materials,05-Feb-2023,000008648593180,AMZNMKTPLACE AMAZON.CO,5999,Equipment-purchase and rental,36.00,6.00,30.00
Children and Young Peoples Services,Head of Early Help Inclusion & Vulnerable Children.,085954,Walworth,Supplies and Services,324117,Provisions E324,05-Feb-2023,000008648593236,TESCO STORES 6329,5411,Catering costs - provisions,117.40,0.00,117.40
Children and Young Peoples Services,Head of Childrens Social Care,085551,Short Break Services-Park Hse Sher,Supplies and Services,308011,Furniture,05-Feb-2023,000008648593288,THE RANGE,5719,Furniture repair and replacement,21.83,0.00,21.83
Adult and Health Services,Head of Adults,055643,Hawthorn House LD Respite Unit,Supplies and Services,324117,Provisions E324,05-Feb-2023,000008648593474,CO-OP GROUP 010465,5411,Catering costs - provisions,17.10,0.00,17.10
Children and Young Peoples Services,Head of Childrens Social Care,085331,New Lea Childrens Home,Supplies and Services,328041,Clothing uniforms and laundry E328,05-Feb-2023,000008648593536,POUNDSTRETCHER 692,5331,Clothing uniforms and laundry,7.50,0.00,7.50
Children and Young Peoples Services,Head of Childrens Social Care,085331,New Lea Childrens Home,Supplies and Services,324117,Provisions E324,05-Feb-2023,000008648593538,TESCO STORES 6329,5411,Catering costs - provisions,10.07,0.00,10.07
Children and Young Peoples Services,Head of Early Help Inclusion & Vulnerable Children.,088115,Young Parents Programme 088115,Supplies and Services,384302,Miscellaneous Expenses,05-Feb-2023,000008648593546,AMZNMKTPLACE AMAZON.CO,5999,Activity expenses,55.86,9.31,46.55
Children and Young Peoples Services,Head of Early Help Inclusion & Vulnerable Children.,088115,Young Parents Programme 088115,Supplies and Services,384302,Miscellaneous Expenses,05-Feb-2023,000008648593546 - 1,AMZNMKTPLACE AMAZON.CO,5999,Activity expenses,0.14,,0.14
Dedicated Schools Grant BG0015,DSG Schools Block,231104,Peases West Primary 2311 - General Curriculum,Supplies and Services,304403,Equipment and Materials,05-Feb-2023,000008648593560,AMZNMktplace,5999,Other consumables,7.97,1.33,6.64
Dedicated Schools Grant BG0015,DSG Schools Block,231101,Peases West Primary 2311 - Breakfast Club,Supplies and Services,304403,Equipment and Materials,05-Feb-2023,000008648593562,TESCO STORES 4358,5411,Other consumables,31.49,0.00,31.49
Children and Young Peoples Services,Head of Childrens Social Care,085347,Solo Home The Manse,Supplies and Services,344033,Telephones,05-Feb-2023,000008648593588,giffgaff,4814,Telephones general-all costs,10.00,0.00,10.00
Children and Young Peoples Services,Head of Childrens Social Care,085351,Framwellgate Moor CU,Supplies and Services,304403,Equipment and Materials,05-Feb-2023,000008648593630,AMZNBusiness 1Q22V9N94,5999,Other consumables,10.99,1.83,9.16
Children and Young Peoples Services,Head of Early Help Inclusion & Vulnerable Children.,088115,Young Parents Programme 088115,Supplies and Services,384302,Miscellaneous Expenses,05-Feb-2023,000008648593650,AMZNMktplace,5999,Activity expenses,39.52,6.64,32.88
Children and Young Peoples Services,Head of Early Help Inclusion & Vulnerable Children.,088115,Young Parents Programme 088115,Supplies and Services,384302,Miscellaneous Expenses,05-Feb-2023,000008648593652,AMZNMktplace,5999,Activity expenses,11.18,1.86,9.32
Regeneration Economy and Growth,Communications Management,060270,Communications and Marketing,Supplies and Services,336005,Advertising E336,05-Feb-2023,000008648593764,FACEBK H22VBKK4B2,7311,Advertising other than for staff,500.00,0.00,500.00
Children and Young Peoples Services,Head of Childrens Social Care,085331,New Lea Childrens Home,Supplies and Services,384999,Miscellaneous Expenses,05-Feb-2023,000008648593846,CINEWORLD CINEMAS,7922,Other expenses,34.90,0.00,34.90
Children and Young Peoples Services,Head of Childrens Social Care,085331,New Lea Childrens Home,Supplies and Services,324117,Provisions E324,05-Feb-2023,000008648593848,TESCO STORES 6334,5411,Catering costs - provisions,7.80,0.00,7.80
Children and Young Peoples Services,Head of Childrens Social Care,085331,New Lea Childrens Home,Supplies and Services,348037,Subsistence E348,05-Feb-2023,000008648593850,MCDONALDS,5814,Subsistence,25.21,0.00,25.21
Children and Young Peoples Services,Head of Early Help Inclusion & Vulnerable Children.,088101,Bullion Lane & Brandon Family Centre,Supplies and Services,304403,Equipment and Materials,05-Feb-2023,000008648593858,AMZNMktplace,5999,Other consumables,42.93,7.16,35.77
Children and Young Peoples Services,Head of Early Help Inclusion & Vulnerable Children.,088101,Bullion Lane & Brandon Family Centre,Supplies and Services,304403,Equipment and Materials,05-Feb-2023,000008648593860,AMZNMktplace,5999,Other consumables,16.32,2.72,13.60
Children and Young Peoples Services,Head of Early Help Inclusion & Vulnerable Children.,088101,Bullion Lane & Brandon Family Centre,Supplies and Services,304403,Equipment and Materials,05-Feb-2023,000008648593862,AMZNMKTPLACE AMAZON.CO,5999,Other consumables,18.98,3.16,15.82
Children and Young Peoples Services,Head of Early Help Inclusion & Vulnerable Children.,088101,Bullion Lane & Brandon Family Centre,Supplies and Services,304403,Equipment and Materials,05-Feb-2023,000008648593864,AMZNMKTPLACE AMAZON.CO,5999,Other consumables,19.02,3.18,15.84
Children and Young Peoples Services,Head of Early Help Inclusion & Vulnerable Children.,088101,Bullion Lane & Brandon Family Centre,Supplies and Services,304403,Equipment and Materials,05-Feb-2023,000008648593866,AMZNMKTPLACE AMAZON.CO,5999,Other consumables,64.32,10.74,53.58
Children and Young Peoples Services,Head of Early Help Inclusion & Vulnerable Children.,088101,Bullion Lane & Brandon Family Centre,Supplies and Services,304403,Equipment and Materials,05-Feb-2023,000008648593868,AMZNMktplace,5999,Other consumables,22.04,3.67,18.37
Children and Young Peoples Services,Head of Early Help Inclusion & Vulnerable Children.,088101,Bullion Lane & Brandon Family Centre,Supplies and Services,304403,Equipment and Materials,05-Feb-2023,000008648593870,AMZNMktplace,5999,Other consumables,37.98,6.34,31.64
Children and Young Peoples Services,Head of Early Help Inclusion & Vulnerable Children.,088101,Bullion Lane & Brandon Family Centre,Supplies and Services,304403,Equipment and Materials,05-Feb-2023,000008648593872,AMZNMktplace,5999,Other consumables,33.98,5.66,28.32
Children and Young Peoples Services,Head of Early Help Inclusion & Vulnerable Children.,088101,Bullion Lane & Brandon Family Centre,Supplies and Services,304403,Equipment and Materials,05-Feb-2023,000008648593874,AMZNMKTPLACE AMAZON.CO,5999,Other consumables,80.46,13.42,67.04
Children and Young Peoples Services,Head of Early Help Inclusion & Vulnerable Children.,088101,Bullion Lane & Brandon Family Centre,Supplies and Services,304403,Equipment and Materials,05-Feb-2023,000008648593876,AMZNMKTPLACE AMAZON.CO,5999,Other consumables,21.24,3.54,17.70
Children and Young Peoples Services,Head of Early Help Inclusion & Vulnerable Children.,088101,Bullion Lane & Brandon Family Centre,Supplies and Services,304403,Equipment and Materials,05-Feb-2023,000008648593876 - 1,AMZNMKTPLACE AMAZON.CO,5999,Other consumables,0.06,,0.06
Children and Young Peoples Services,Head of Early Help Inclusion & Vulnerable Children.,088101,Bullion Lane & Brandon Family Centre,Supplies and Services,304403,Equipment and Materials,05-Feb-2023,000008648593878,AMZNMKTPLACE AMAZON.CO,5999,Other consumables,27.98,0.00,27.98
Regeneration Economy and Growth,Planning & Housing,031576,B& B - Temp Accom,Supplies and Services,364320,Grants to Voluntary Organisations,05-Feb-2023,000008648593916,Roadchef Durham,7011,Accommodation assistance,15.00,0.00,15.00
Children and Young Peoples Services,Head of Early Help Inclusion & Vulnerable Children.,085957,Secure Management,Supplies and Services,304259,Equipment and Materials,05-Feb-2023,000008656509830,AMZNMKTPLACE AMAZON.CO,5999,Equipment-purchase and rental,18.00,3.00,15.00
Children and Young Peoples Services,Head of Early Help Inclusion & Vulnerable Children.,085957,Secure Management,Supplies and Services,304259,Equipment and Materials,05-Feb-2023,000008656509830 - 1,AMZNMKTPLACE AMAZON.CO,5999,Equipment-purchase and rental,19.99,,19.99
Children and Young Peoples Services,Head of Early Help Inclusion & Vulnerable Children.,088115,Young Parents Programme 088115,Supplies and Services,384302,Miscellaneous Expenses,05-Feb-2023,000008656510410,AMZNMKTPLACE AMAZON.CO,5999,Activity expenses,27.93,4.69,23.24
Children and Young Peoples Services,Head of Early Help Inclusion & Vulnerable Children.,088115,Young Parents Programme 088115,Supplies and Services,384302,Miscellaneous Expenses,05-Feb-2023,000008656510412,AMZNMKTPLACE AMAZON.CO,5999,Activity expenses,7.99,1.33,6.66
Children and Young Peoples Services,Head of Early Help Inclusion & Vulnerable Children.,088101,Bullion Lane & Brandon Family Centre,Supplies and Services,304403,Equipment and Materials,05-Feb-2023,000008656510982,AMZNMKTPLACE AMAZON.CO,5999,Other consumables,155.92,26.00,129.92
Regeneration Economy and Growth,Business Durham CL0850,030689,Inward Investment and Aftercare,Supplies and Services,304403,Equipment and Materials,06-Feb-2023,000008648592618,PROFESSIONAL-MEMBERSHI,5734,Other consumables,4.54,0.00,4.54
Neighbourhoods and Climate Change,Environmental Services,031238,North Pennines - Tees Swale,Supplies and Services,304403,Equipment and Materials,06-Feb-2023,000008648593302,AMZNBusiness 1Q1UG9JL4,5999,Other consumables,114.60,19.10,95.50
Children and Young Peoples Services,Head of Education and Skills,071801,Selby Cottage Childcare Centre,Supplies and Services,324117,Provisions E324,06-Feb-2023,000008656509400,TESCO STORES 2278,5411,Catering costs - provisions,22.50,0.00,22.50
Children and Young Peoples Services,Head of Childrens Social Care,085347,Solo Home The Manse,Transport,215995,Running Costs of Vehicles,06-Feb-2023,000008656509426,GULF WITTON GILBERT,5541,Vehicle running expenses,32.43,0.00,32.43
Regeneration Economy and Growth,Culture Sport and Tourism,011204,Festival and Events,Supplies and Services,304259,Equipment and Materials,06-Feb-2023,000008656509430,DISCLOSURE AND BARRING,9399,Equipment-purchase and rental,18.00,0.00,18.00
Regeneration Economy and Growth,Culture Sport and Tourism,054040,Shildon Sid Chaplain Library,Supplies and Services,304252,Equipment and Materials,06-Feb-2023,000008656509432,AMZNMktplace,5999,Equipment-repairsserviceinsurance,7.78,1.30,6.48
Children and Young Peoples Services,Head of Childrens Social Care,085342,16 Hickstead Rise (previously 9 Cedar Ave),Supplies and Services,328041,Clothing uniforms and laundry E328,06-Feb-2023,000008656509434,ARGOS BISHOP AUCKL,5310,Clothing uniforms and laundry,259.99,0.00,259.99
Children and Young Peoples Services,Head of Childrens Social Care,085342,16 Hickstead Rise (previously 9 Cedar Ave),Supplies and Services,324117,Provisions E324,06-Feb-2023,000008656509438,STARBUCKS BISHOP AUCKL,5499,Catering costs - provisions,12.55,0.00,12.55
Children and Young Peoples Services,Head of Childrens Social Care,085332,Middlestone Moor CU,Supplies and Services,324117,Provisions E324,06-Feb-2023,000008656509444,TESCO STORES 2371,5411,Catering costs - provisions,265.91,0.00,265.91
Children and Young Peoples Services,Head of Early Help Inclusion & Vulnerable Children.,088109,Dean Bank and Tudhoe Family Centre,Supplies and Services,338045,Services,06-Feb-2023,000008656509532,AMZNBusiness 1Q0U55AP4,5999,Legal expenses 338045,41.94,0.00,41.94
Children and Young Peoples Services,Head of Early Help Inclusion & Vulnerable Children.,088109,Dean Bank and Tudhoe Family Centre,Supplies and Services,384237,Miscellaneous Expenses,06-Feb-2023,000008656509534,AMZNBusiness 1Q3GF2AQ4,5999,Recreational exps outings parties,120.62,0.00,120.62
Children and Young Peoples Services,Head of Early Help Inclusion & Vulnerable Children.,088109,Dean Bank and Tudhoe Family Centre,Supplies and Services,384302,Miscellaneous Expenses,06-Feb-2023,000008656509536,AMZNBusiness 1Q4TS4A84,5999,Activity expenses,68.28,0.00,68.28
Children and Young Peoples Services,Head of Early Help Inclusion & Vulnerable Children.,088109,Dean Bank and Tudhoe Family Centre,Supplies and Services,384199,Miscellaneous Expenses,06-Feb-2023,000008656509538,AMZNBusiness 1Q41M4EO4,5999,Other hired and contracted services,131.18,0.00,131.18
Children and Young Peoples Services,Head of Early Help Inclusion & Vulnerable Children.,088109,Dean Bank and Tudhoe Family Centre,Supplies and Services,384302,Miscellaneous Expenses,06-Feb-2023,000008656509540,AMZNBusiness 1Q6NF4EW4,5999,Activity expenses,11.39,0.00,11.39
Children and Young Peoples Services,Head of Childrens Social Care,085331,New Lea Childrens Home,Supplies and Services,328041,Clothing uniforms and laundry E328,06-Feb-2023,000008656509548,CLEARANCE BARGAINS,5310,Clothing uniforms and laundry,149.99,0.00,149.99
Children and Young Peoples Services,Head of Childrens Social Care,085331,New Lea Childrens Home,Supplies and Services,324117,Provisions E324,06-Feb-2023,000008656509552,TESCO STORES 4358,5411,Catering costs - provisions,27.00,0.00,27.00
Children and Young Peoples Services,Head of Early Help Inclusion & Vulnerable Children.,071670,Willington Childrens Centre,Supplies and Services,304259,Equipment and Materials,06-Feb-2023,000008656509558,AMZNMktplace,5999,Equipment-purchase and rental,18.79,3.13,15.66
Children and Young Peoples Services,Head of Childrens Social Care,085511,Emergency Duty Team,Transport,235057,Public Transport,06-Feb-2023,000008656509604,UBER TRIP,4121,Staff travelling,12.99,0.00,12.99
Children and Young Peoples Services,Head of Education and Skills,071733,Shildon Childcare,Supplies and Services,324117,Provisions E324,06-Feb-2023,000008656509636,ASDA GROCERIES ONLINE,5411,Catering costs - provisions,85.59,0.00,85.59
Children and Young Peoples Services,Head of Education and Skills,071733,Shildon Childcare,Supplies and Services,324117,Provisions E324,06-Feb-2023,000008656509640,WM MORRISONS STORE,5411,Catering costs - provisions,4.39,0.00,4.39
Children and Young Peoples Services,Head of Childrens Social Care,085358,Orchard House Sacriston Solo Home,Supplies and Services,304403,Equipment and Materials,06-Feb-2023,000008656509674,AMZNMktplace,5999,Other consumables,12.49,0.00,12.49
Children and Young Peoples Services,Head of Early Help Inclusion & Vulnerable Children.,085801,CDYJS - Support,Supplies and Services,324117,Provisions E324,06-Feb-2023,000008656509688,GREGGS,5462,Catering costs - provisions,10.00,0.00,10.00
Resources BK0010,Digital Services,065481,Technical Services 065481,Supplies and Services,372009,Subscriptions E372,06-Feb-2023,000008656509696,NOMINET UK,7392,Subscriptions 372009,12.00,2.00,10.00
Adult and Health Services,Head of Adults,052953,Training - Social Work,Employees,040149,Recruitment Instruction and Training,06-Feb-2023,000008656509750,Edge Training Ltd,8999,Training-all costs,540.00,0.00,540.00
Children and Young Peoples Services,Head of Childrens Social Care,085341,High Etherley Satelite Home,Supplies and Services,324117,Provisions E324,06-Feb-2023,000008656509788,HERON FOODS CROOK,5411,Catering costs - provisions,78.40,0.00,78.40
Regeneration Economy and Growth,Economic Development Level C,030776,LINKCD Flexible Fund,Supplies and Services,304259,Equipment and Materials,06-Feb-2023,000008656509794,GEN REGISTER OFFICE,9399,Equipment-purchase and rental,14.00,0.00,14.00
Children and Young Peoples Services,Head of Early Help Inclusion & Vulnerable Children.,085957,Secure Management,Supplies and Services,324117,Provisions E324,06-Feb-2023,000008656509834,TESCO STORES 6329,5411,Catering costs - provisions,160.28,0.00,160.28
Children and Young Peoples Services,Head of Childrens Social Care,085347,Solo Home The Manse,Supplies and Services,344033,Telephones,06-Feb-2023,000008656509866,TESCO ONLINE,5999,Telephones general-all costs,179.99,0.00,179.99
Regeneration Economy and Growth,Economic Development Level C,030771,Durham Advance Flexible Fund,Employees,040149,Recruitment Instruction and Training,06-Feb-2023,000008656509880,CONSTRUCTIONCERTIFICAT,8299,Training-all costs,43.00,0.00,43.00
Children and Young Peoples Services,Head of Childrens Social Care,085364,Children Looked After Team 1,Supplies and Services,324117,Provisions E324,06-Feb-2023,000008656509888,ICELAND,5411,Catering costs - provisions,60.00,0.00,60.00
Children and Young Peoples Services,Head of Early Help Inclusion & Vulnerable Children.,085957,Secure Management,Supplies and Services,304259,Equipment and Materials,06-Feb-2023,000008656509894,Amazon MP3,5735,Equipment-purchase and rental,10.49,1.75,8.74
Neighbourhoods and Climate Change,Environmental Services,031228,North Pennines - Fellfoot Forward,Supplies and Services,324117,Provisions E324,06-Feb-2023,000008656509964,HALLBANKGATE HUB LIMIT,5411,Catering costs - provisions,16.79,0.00,16.79
Resources BK0010,HR & Employee Services,010984,Training and Development,Supplies and Services,304999,Equipment and Materials,06-Feb-2023,000008656509986,BRIDGES EVENTS,5815,Misc equipment tools and materials,358.80,0.00,358.80
Children and Young Peoples Services,Head of Childrens Social Care,085331,New Lea Childrens Home,Supplies and Services,328041,Clothing uniforms and laundry E328,06-Feb-2023,000008656510042,POUNDLAND LTD 1597,5310,Clothing uniforms and laundry,6.00,0.00,6.00
Children and Young Peoples Services,Head of Childrens Social Care,085331,New Lea Childrens Home,Supplies and Services,328041,Clothing uniforms and laundry E328,06-Feb-2023,000008656510046,WWW.ARGOS.CO.UK,5311,Clothing uniforms and laundry,22.49,0.00,22.49
Children and Young Peoples Services,Head of Childrens Social Care,085331,New Lea Childrens Home,Supplies and Services,324117,Provisions E324,06-Feb-2023,000008656510050,B&M 519 - CONSETT,5399,Catering costs - provisions,84.07,0.00,84.07
Children and Young Peoples Services,Head of Childrens Social Care,085331,New Lea Childrens Home,Supplies and Services,324117,Provisions E324,06-Feb-2023,000008656510054,B&M 519 - CONSETT,5399,Catering costs - provisions,39.25,0.00,39.25
Children and Young Peoples Services,Head of Childrens Social Care,085331,New Lea Childrens Home,Supplies and Services,324117,Provisions E324,06-Feb-2023,000008656510056,B&M 519 - CONSETT,5399,Catering costs - provisions,21.72,0.00,21.72
Children and Young Peoples Services,Head of Childrens Social Care,085331,New Lea Childrens Home,Supplies and Services,324117,Provisions E324,06-Feb-2023,000008656510060,ASDA SUPERSTORE,5411,Catering costs - provisions,10.00,0.00,10.00
Children and Young Peoples Services,Head of Childrens Social Care,085331,New Lea Childrens Home,Supplies and Services,324117,Provisions E324,06-Feb-2023,000008656510062,WM MORRISONS STORE,5411,Catering costs - provisions,20.26,0.00,20.26
Children and Young Peoples Services,Head of Education and Skills,073911,Pupil Premium,Transport,235057,Public Transport,06-Feb-2023,000008656510070,Trainline.COM,4112,Staff travelling,50.33,0.00,50.33
Children and Young Peoples Services,Head of Childrens Social Care,085332,Middlestone Moor CU,Supplies and Services,328041,Clothing uniforms and laundry E328,06-Feb-2023,000008656510114,WWW.THEWORKS.CO.UK,5310,Clothing uniforms and laundry,77.00,0.00,77.00
Neighbourhoods and Climate Change,Environmental Services,010301,C&G - North Grounds Maintenance,Supplies and Services,304999,Equipment and Materials,06-Feb-2023,000008656510148,Harelaw sawmill delive,5251,Misc equipment tools and materials,153.72,0.00,153.72
Children and Young Peoples Services,Head of Childrens Social Care,085551,Short Break Services-Park Hse Sher,Supplies and Services,324117,Provisions E324,06-Feb-2023,000008656510152,TESCO STORES 2371,5411,Catering costs - provisions,62.78,0.00,62.78
Adult and Health Services,Head of Adults,055643,Hawthorn House LD Respite Unit,Supplies and Services,304403,Equipment and Materials,06-Feb-2023,000008656510196,AMZNMktplace,5999,Other consumables,31.44,5.24,26.20
Adult and Health Services,Head of Adults,055643,Hawthorn House LD Respite Unit,Supplies and Services,304403,Equipment and Materials,06-Feb-2023,000008656510196 - 1,AMZNMktplace,5999,Other consumables,0.03,,0.03
Children and Young Peoples Services,Head of Childrens Social Care,085342,16 Hickstead Rise (previously 9 Cedar Ave),Supplies and Services,348037,Subsistence E348,06-Feb-2023,000008656510232,GREGGS,5812,Subsistence,9.30,0.00,9.30
Children and Young Peoples Services,Head of Education and Skills,075033,DurhamWorks 3,Supplies and Services,364301,Grants to Voluntary Organisations,06-Feb-2023,000008656510236,WWW.GONORTHEAST.CO.UK,4111,Hardship,18.00,0.00,18.00
Children and Young Peoples Services,Head of Education and Skills,075033,DurhamWorks 3,Supplies and Services,364301,Grants to Voluntary Organisations,06-Feb-2023,000008656510240,WWW.GONORTHEAST.CO.UK,4111,Hardship,4.70,0.00,4.70
Children and Young Peoples Services,Head of Education and Skills,075033,DurhamWorks 3,Supplies and Services,364301,Grants to Voluntary Organisations,06-Feb-2023,000008656510244,WWW.GONORTHEAST.CO.UK,4111,Hardship,4.70,0.00,4.70
Children and Young Peoples Services,Head of Education and Skills,075033,DurhamWorks 3,Supplies and Services,364301,Grants to Voluntary Organisations,06-Feb-2023,000008656510248,WWW.GONORTHEAST.CO.UK,4111,Hardship,18.00,0.00,18.00
Children and Young Peoples Services,Head of Education and Skills,075033,DurhamWorks 3,Supplies and Services,364301,Grants to Voluntary Organisations,06-Feb-2023,000008656510252,WWW.GONORTHEAST.CO.UK,4111,Hardship,18.00,0.00,18.00
Children and Young Peoples Services,Head of Education and Skills,075035,DurhamDirections Re-engagement,Supplies and Services,364301,Grants to Voluntary Organisations,06-Feb-2023,000008656510256,TESCO ONLINE,5999,Hardship,29.99,0.00,29.99
Children and Young Peoples Services,Head of Education and Skills,071732,Dean Bank Childcare,Supplies and Services,324117,Provisions E324,06-Feb-2023,000008656510280,CO-OP GROUP 010518,5411,Catering costs - provisions,3.85,0.00,3.85
Children and Young Peoples Services,Head of Education and Skills,071732,Dean Bank Childcare,Supplies and Services,324117,Provisions E324,06-Feb-2023,000008656510286,ASDA GROCERIES ONLINE,5411,Catering costs - provisions,51.10,0.00,51.10
Children and Young Peoples Services,Head of Education and Skills,071732,Dean Bank Childcare,Supplies and Services,324117,Provisions E324,06-Feb-2023,000008656510288,ASDA GROCERIES ONLINE,5411,Catering costs - provisions,-3.00,0.00,-3.00
Children and Young Peoples Services,Head of Early Help Inclusion & Vulnerable Children.,088115,Young Parents Programme 088115,Supplies and Services,384302,Miscellaneous Expenses,06-Feb-2023,000008656510404,AMZNMKTPLACE AMAZON.CO,5999,Activity expenses,17.99,3.00,14.99
Children and Young Peoples Services,Head of Early Help Inclusion & Vulnerable Children.,088115,Young Parents Programme 088115,Supplies and Services,384302,Miscellaneous Expenses,06-Feb-2023,000008656510420,ASDA GROCERIES ONLINE,5411,Activity expenses,149.35,0.00,149.35
Children and Young Peoples Services,Head of Early Help Inclusion & Vulnerable Children.,085965,Barnard,Supplies and Services,304403,Equipment and Materials,06-Feb-2023,000008656510428,AMZNMktplace,5999,Other consumables,27.00,0.00,27.00
Resources BK0010,Digital Services,065335,School Services - Implementations,Supplies and Services,304303,Equipment and Materials,06-Feb-2023,000008656510446,CABLES DIRECT LTD,8999,Network for resale,150.00,0.00,150.00
Resources BK0010,Digital Services,065335,School Services - Implementations,Supplies and Services,304639,Equipment and Materials,06-Feb-2023,000008656510450,ALIEXPRESS,5311,Technicians-supplies,35.37,0.00,35.37
Resources BK0010,Digital Services,065335,School Services - Implementations,Supplies and Services,304639,Equipment and Materials,06-Feb-2023,000008656510454,PAYPAL LAPTOP-LCD,5732,Technicians-supplies,-56.34,0.00,-56.34
Children and Young Peoples Services,Head of Early Help Inclusion & Vulnerable Children.,085952,Secure Education,Supplies and Services,384302,Miscellaneous Expenses,06-Feb-2023,000008656510464,Top Gear Karting,7999,Activity expenses,50.00,0.00,50.00
Children and Young Peoples Services,Head of Early Help Inclusion & Vulnerable Children.,085955,Auckland,Supplies and Services,304259,Equipment and Materials,06-Feb-2023,000008656510466,Amazon.co.uk 1Q0Q89A84,5969,Equipment-purchase and rental,23.98,4.00,19.98
Children and Young Peoples Services,Head of Early Help Inclusion & Vulnerable Children.,085965,Barnard,Supplies and Services,312011,Newspapers books and periodicals E312,06-Feb-2023,000008656510472,Amazon.co.uk 1Q5QX7A04,5969,Books-school library,28.00,0.00,28.00
Children and Young Peoples Services,Head of Early Help Inclusion & Vulnerable Children.,085965,Barnard,Supplies and Services,384302,Miscellaneous Expenses,06-Feb-2023,000008656510474,AMZNMktplace,5999,Activity expenses,36.17,6.03,30.14
Children and Young Peoples Services,Head of Early Help Inclusion & Vulnerable Children.,085957,Secure Management,Premises,145015,Cleaning and Domestic Supplies,06-Feb-2023,000008656510476,VAX LTD,5722,Cleaning and domestic equipment,24.99,0.00,24.99
Children and Young Peoples Services,Head of Childrens Social Care,085333,Coxhoe Satelite Home,Supplies and Services,324117,Provisions E324,06-Feb-2023,000008656510598,TESCO STORES 2916,5411,Catering costs - provisions,83.57,0.00,83.57
Children and Young Peoples Services,Head of Early Help Inclusion & Vulnerable Children.,088100,Durham & CLS Intensive Family Support Team,Supplies and Services,384302,Miscellaneous Expenses,06-Feb-2023,000008656510628,AMZNMktplace,5999,Activity expenses,49.99,8.33,41.66
Children and Young Peoples Services,Head of Early Help Inclusion & Vulnerable Children.,088100,Durham & CLS Intensive Family Support Team,Supplies and Services,384302,Miscellaneous Expenses,06-Feb-2023,000008656510632,AMZNMktplace,5999,Activity expenses,36.94,6.16,30.78
Children and Young Peoples Services,Head of Early Help Inclusion & Vulnerable Children.,088100,Durham & CLS Intensive Family Support Team,Supplies and Services,384302,Miscellaneous Expenses,06-Feb-2023,000008656510636,AMZNMktplace,5999,Activity expenses,5.99,1.00,4.99
Children and Young Peoples Services,Head of Childrens Social Care,085633,Families First Chester-Le-Street,Supplies and Services,338045,Services,06-Feb-2023,000008656510638,HM PASSPORT OFFICE,9399,Legal expenses 338045,53.50,0.00,53.50
Children and Young Peoples Services,Head of Early Help Inclusion & Vulnerable Children.,088100,Durham & CLS Intensive Family Support Team,Supplies and Services,384302,Miscellaneous Expenses,06-Feb-2023,000008656510642,AMZNMktplace,5999,Activity expenses,51.33,8.56,42.77
Regeneration Economy and Growth,Culture Sport and Tourism,054812,Gala Theatre - Catering etc,Supplies and Services,304403,Equipment and Materials,06-Feb-2023,000008656510646,AMZNMktplace,5999,Other consumables,11.89,0.00,11.89
Regeneration Economy and Growth,Culture Sport and Tourism,054812,Gala Theatre - Catering etc,Supplies and Services,328041,Clothing uniforms and laundry E328,06-Feb-2023,000008656510652,POUNDLAND LTD,5310,Clothing uniforms and laundry,5.00,0.00,5.00
Regeneration Economy and Growth,Economic Development Level C,030772,CLLD South,Transport,235057,Public Transport,06-Feb-2023,000008656510724,WALKERGATE CAR PAR,7523,Staff travelling,3.10,0.52,2.58
Regeneration Economy and Growth,Culture Sport and Tourism,054233,Bishop Auckland Town Hall Library,Supplies and Services,324117,Provisions E324,06-Feb-2023,000008656510748,HERON FOODS,5411,Catering costs - provisions,15.04,0.00,15.04
Children and Young Peoples Services,Head of Childrens Social Care,085331,New Lea Childrens Home,Supplies and Services,332047,Printing Stationery and Gen Off Exps,06-Feb-2023,000008656510798,SP THE SHREDDER WARE,5943,Stationery,126.00,0.00,126.00
Resources BK0010,Digital Services,065481,Technical Services 065481,Supplies and Services,304403,Equipment and Materials,06-Feb-2023,000008656510804,AMZNMktplace,5999,Other consumables,38.04,6.34,31.70
Resources BK0010,Digital Services,065481,Technical Services 065481,Supplies and Services,304403,Equipment and Materials,06-Feb-2023,000008656510808,AMZNMktplace,5999,Other consumables,13.71,2.29,11.42
Resources BK0010,Digital Services,065481,Technical Services 065481,Supplies and Services,304403,Equipment and Materials,06-Feb-2023,000008656510814,AMZNMktplace,5999,Other consumables,11.98,0.00,11.98
Resources BK0010,Digital Services,065481,Technical Services 065481,Supplies and Services,304403,Equipment and Materials,06-Feb-2023,000008656510816,AMZNMktplace,5999,Other consumables,29.52,4.92,24.60
Resources BK0010,Digital Services,065481,Technical Services 065481,Supplies and Services,304403,Equipment and Materials,06-Feb-2023,000008656510822,AMZNMktplace,5999,Other consumables,79.99,13.33,66.66
Resources BK0010,Digital Services,065481,Technical Services 065481,Supplies and Services,304403,Equipment and Materials,06-Feb-2023,000008656510824,AMZNMktplace,5999,Other consumables,30.22,5.04,25.18
Resources BK0010,Digital Services,065481,Technical Services 065481,Supplies and Services,304403,Equipment and Materials,06-Feb-2023,000008656510828,AMZNMktplace,5999,Other consumables,49.95,8.35,41.60
Resources BK0010,Digital Services,065481,Technical Services 065481,Supplies and Services,304403,Equipment and Materials,06-Feb-2023,000008656510830,AMZNMktplace,5999,Other consumables,129.98,21.66,108.32
Resources BK0010,Digital Services,065481,Technical Services 065481,Supplies and Services,304403,Equipment and Materials,06-Feb-2023,000008656510834,AMZNMktplace,5999,Other consumables,129.98,21.66,108.32
Resources BK0010,Digital Services,065487,ICT Telephony Recharges,Supplies and Services,304403,Equipment and Materials,06-Feb-2023,000008656510838,AMZNMktplace,5999,Other consumables,129.60,21.60,108.00
Resources BK0010,Digital Services,065487,ICT Telephony Recharges,Supplies and Services,304403,Equipment and Materials,06-Feb-2023,000008656510838 - 1,AMZNMktplace,5999,Other consumables,0.20,,0.20
Neighbourhoods and Climate Change,Environmental Services,010367,C&G - South Grounds Maintenance,Supplies and Services,304221,Equipment and Materials,06-Feb-2023,000008656510850,WWW.TUDORENVIRONMENTAL,5261,Direct materials,324.30,0.00,324.30
Neighbourhoods and Climate Change,Environmental Services,031200,North Pennines Core,Supplies and Services,324117,Provisions E324,06-Feb-2023,000008656510950,SCOTMID CO-OP STANHOPE,5411,Catering costs - provisions,3.90,0.00,3.90
Children and Young Peoples Services,Head of Early Help Inclusion & Vulnerable Children.,088101,Bullion Lane & Brandon Family Centre,Supplies and Services,304403,Equipment and Materials,06-Feb-2023,000008656510976,AMZNMktplace,5999,Other consumables,11.93,1.99,9.94
Children and Young Peoples Services,Head of Early Help Inclusion & Vulnerable Children.,088101,Bullion Lane & Brandon Family Centre,Supplies and Services,304403,Equipment and Materials,06-Feb-2023,000008656510984,AMZNMKTPLACE AMAZON.CO,5999,Other consumables,55.98,0.00,55.98
Regeneration Economy and Growth,Planning & Housing,031576,B& B - Temp Accom,Supplies and Services,364320,Grants to Voluntary Organisations,06-Feb-2023,000008656511004,H52STANLEY,7011,Accommodation assistance,54.00,0.00,54.00
Regeneration Economy and Growth,Planning & Housing,031576,B& B - Temp Accom,Supplies and Services,364320,Grants to Voluntary Organisations,06-Feb-2023,000008656511006,Roadchef Durham,7011,Accommodation assistance,94.00,0.00,94.00
Regeneration Economy and Growth,Planning & Housing,031576,B& B - Temp Accom,Supplies and Services,364320,Grants to Voluntary Organisations,06-Feb-2023,000008656511010,Roadchef Durham,7011,Accommodation assistance,15.00,0.00,15.00
Regeneration Economy and Growth,Planning & Housing,031576,B& B - Temp Accom,Supplies and Services,364320,Grants to Voluntary Organisations,06-Feb-2023,000008656511014,Roadchef Durham,7011,Accommodation assistance,104.00,0.00,104.00
Regeneration Economy and Growth,Planning & Housing,031576,B& B - Temp Accom,Supplies and Services,364320,Grants to Voluntary Organisations,06-Feb-2023,000008656511018,Roadchef Durham,7011,Accommodation assistance,15.00,0.00,15.00
Regeneration Economy and Growth,Planning & Housing,031576,B& B - Temp Accom,Supplies and Services,364320,Grants to Voluntary Organisations,06-Feb-2023,000008656511022,Roadchef Durham,7011,Accommodation assistance,104.00,0.00,104.00
Regeneration Economy and Growth,Planning & Housing,031576,B& B - Temp Accom,Supplies and Services,364320,Grants to Voluntary Organisations,06-Feb-2023,000008656511024,Roadchef Durham,7011,Accommodation assistance,30.00,0.00,30.00
Regeneration Economy and Growth,Planning & Housing,031576,B& B - Temp Accom,Supplies and Services,364320,Grants to Voluntary Organisations,06-Feb-2023,000008656511028,Roadchef Durham,7011,Accommodation assistance,94.00,0.00,94.00
Regeneration Economy and Growth,Planning & Housing,031576,B& B - Temp Accom,Supplies and Services,364320,Grants to Voluntary Organisations,06-Feb-2023,000008656511030,Roadchef Durham,7011,Accommodation assistance,50.00,0.00,50.00
Regeneration Economy and Growth,Planning & Housing,031576,B& B - Temp Accom,Supplies and Services,364320,Grants to Voluntary Organisations,06-Feb-2023,000008656511034,Roadchef Durham,7011,Accommodation assistance,94.00,0.00,94.00
Regeneration Economy and Growth,Planning & Housing,031576,B& B - Temp Accom,Supplies and Services,364320,Grants to Voluntary Organisations,06-Feb-2023,000008656511036,Roadchef Durham,7011,Accommodation assistance,94.00,0.00,94.00
Regeneration Economy and Growth,Planning & Housing,031576,B& B - Temp Accom,Supplies and Services,364320,Grants to Voluntary Organisations,06-Feb-2023,000008656511042,Roadchef Durham,7011,Accommodation assistance,30.00,0.00,30.00
Regeneration Economy and Growth,Planning & Housing,031576,B& B - Temp Accom,Supplies and Services,364320,Grants to Voluntary Organisations,06-Feb-2023,000008656511048,Roadchef Durham,7011,Accommodation assistance,15.00,0.00,15.00
Regeneration Economy and Growth,Planning & Housing,031576,B& B - Temp Accom,Supplies and Services,364320,Grants to Voluntary Organisations,06-Feb-2023,000008656511054,Roadchef Durham,7011,Accommodation assistance,7.50,0.00,7.50
Regeneration Economy and Growth,Corporate Property and Land,010525,Catering - Green Lane,Supplies and Services,324117,Provisions E324,06-Feb-2023,000008656568472,JR HOLLAND FOODSERVICE,5499,Catering costs - provisions,131.97,0.00,131.97
Regeneration Economy and Growth,Corporate Property and Land,011296,Catering - Dunes,Supplies and Services,324117,Provisions E324,06-Feb-2023,000008656568476,JR HOLLAND FOODSERVICE,5499,Catering costs - provisions,31.96,0.00,31.96
Regeneration Economy and Growth,Corporate Property and Land,011296,Catering - Dunes,Supplies and Services,324117,Provisions E324,06-Feb-2023,000008656568478,JR HOLLAND FOODSERVICE,5499,Catering costs - provisions,-31.96,0.00,-31.96
Regeneration Economy and Growth,Corporate Property and Land,030691,Catering - Durham Dales Centre,Supplies and Services,324117,Provisions E324,06-Feb-2023,000008656568480,JR HOLLAND FOODSERVICE,5499,Catering costs - provisions,223.37,0.00,223.37
Adult and Health Services,Head of Adults,055643,Hawthorn House LD Respite Unit,Supplies and Services,324117,Provisions E324,06-Feb-2023,000008656568482,JR HOLLAND FOODSERVICE,5499,Catering costs - provisions,28.61,0.00,28.61
Adult and Health Services,Head of Adults,055643,Hawthorn House LD Respite Unit,Supplies and Services,324117,Provisions E324,06-Feb-2023,000008656568484,JR HOLLAND FOODSERVICE,5499,Catering costs - provisions,38.09,0.00,38.09
Adult and Health Services,Head of Adults,055643,Hawthorn House LD Respite Unit,Supplies and Services,324117,Provisions E324,06-Feb-2023,000008656568486,FREEMAN CATERING BUTCH,5422,Catering costs - provisions,-11.50,0.00,-11.50
Neighbourhoods and Climate Change,Environmental Services,011060,C&G - Hardwick Park Catering,Supplies and Services,324117,Provisions E324,06-Feb-2023,000008656568488,JR HOLLAND FOODSERVICE,5499,Catering costs - provisions,76.68,0.00,76.68
Regeneration Economy and Growth,Corporate Property and Land,021234,Catering - Locomotion,Supplies and Services,324117,Provisions E324,06-Feb-2023,000008656568490,FREEMAN CATERING BUTCH,5422,Catering costs - provisions,61.53,0.00,61.53
Regeneration Economy and Growth,Culture Sport and Tourism,054812,Gala Theatre - Catering etc,Supplies and Services,324117,Provisions E324,06-Feb-2023,000008656568492,FREEMAN CATERING BUTCH,5422,Catering costs - provisions,20.94,0.00,20.94
Regeneration Economy and Growth,Corporate Property and Land,021242,Catering - County Hall,Supplies and Services,324117,Provisions E324,06-Feb-2023,000008656568494,JR HOLLAND FOODSERVICE,5499,Catering costs - provisions,215.98,0.00,215.98
Regeneration Economy and Growth,Corporate Property and Land,021242,Catering - County Hall,Supplies and Services,324117,Provisions E324,06-Feb-2023,000008656568496,JR HOLLAND FOODSERVICE,5499,Catering costs - provisions,32.24,0.00,32.24
Regeneration Economy and Growth,Business Durham CL0850,030689,Inward Investment and Aftercare,Supplies and Services,342222,Computers and Communications,06-Feb-2023,000008660916448,FASTHOSTS,4816,Comp hardware purch-network servers,44.38,0.00,44.38
Regeneration Economy and Growth,Business Durham CL0850,030689,Inward Investment and Aftercare,Supplies and Services,342222,Computers and Communications,06-Feb-2023,000008660916450,FASTHOSTS,4816,Comp hardware purch-network servers,55.74,0.00,55.74
Regeneration Economy and Growth,Business Durham CL0850,030689,Inward Investment and Aftercare,Supplies and Services,342222,Computers and Communications,06-Feb-2023,000008660916452,FASTHOSTS,4816,Comp hardware purch-network servers,6.94,0.00,6.94
Regeneration Economy and Growth,Business Durham CL0850,030689,Inward Investment and Aftercare,Supplies and Services,342222,Computers and Communications,06-Feb-2023,000008660916454,FASTHOSTS,4816,Comp hardware purch-network servers,199.15,0.00,199.15
Children and Young Peoples Services,Head of Childrens Social Care,085511,Emergency Duty Team,Employees,040149,Recruitment Instruction and Training,06-Feb-2023,000008660916618,PREMIER INN,3811,Training-all costs,135.58,0.00,135.58
Adult and Health Services,Head of Adults,055301,Stanley Pathways,Supplies and Services,304403,Equipment and Materials,06-Feb-2023,000008660916916,AMZNMKTPLACE AMAZON.CO,5999,Other consumables,9.72,1.62,8.10
Adult and Health Services,Head of Adults,055301,Stanley Pathways,Supplies and Services,304403,Equipment and Materials,06-Feb-2023,000008660916916 - 1,AMZNMKTPLACE AMAZON.CO,5999,Other consumables,0.04,,0.04
Children and Young Peoples Services,Head of Early Help Inclusion & Vulnerable Children.,085962,Aycliffe Secure - Durham,Supplies and Services,304403,Equipment and Materials,06-Feb-2023,000008660917122,AMZNMKTPLACE AMAZON.CO,5999,Other consumables,6.99,1.17,5.82
Children and Young Peoples Services,Head of Early Help Inclusion & Vulnerable Children.,088101,Bullion Lane & Brandon Family Centre,Supplies and Services,304403,Equipment and Materials,06-Feb-2023,000008660917242,AMZNMKTPLACE AMAZON.CO,5999,Other consumables,49.98,8.34,41.64
Regeneration Economy and Growth,Planning & Housing,031576,B& B - Temp Accom,Supplies and Services,364320,Grants to Voluntary Organisations,06-Feb-2023,000008660917254,HOTEL 52,7011,Accommodation assistance,90.00,0.00,90.00
Regeneration Economy and Growth,Corporate Property and Land,030691,Catering - Durham Dales Centre,Supplies and Services,324117,Provisions E324,06-Feb-2023,000008660991754,BESTWAY WHOLESALE,5300,Catering costs - provisions,73.14,12.19,60.95
Regeneration Economy and Growth,Corporate Property and Land,030691,Catering - Durham Dales Centre,Supplies and Services,324117,Provisions E324,06-Feb-2023,000008660991754 - 1,BESTWAY WHOLESALE,5300,Catering costs - provisions,156.59,,156.59
Regeneration Economy and Growth,Corporate Property and Land,030691,Catering - Durham Dales Centre,Supplies and Services,324117,Provisions E324,06-Feb-2023,000008660991756,BESTWAY WHOLESALE,5300,Catering costs - provisions,3.67,0.61,3.06
Regeneration Economy and Growth,Corporate Property and Land,030691,Catering - Durham Dales Centre,Supplies and Services,324117,Provisions E324,06-Feb-2023,000008660991758,BESTWAY WHOLESALE,5300,Catering costs - provisions,-8.48,0.00,-8.48
Regeneration Economy and Growth,Culture Sport and Tourism,054812,Gala Theatre - Catering etc,Supplies and Services,324117,Provisions E324,06-Feb-2023,000008660991762,BESTWAY WHOLESALE,5300,Catering costs - provisions,70.86,11.81,59.05
Regeneration Economy and Growth,Culture Sport and Tourism,054812,Gala Theatre - Catering etc,Supplies and Services,324117,Provisions E324,06-Feb-2023,000008660991762 - 1,BESTWAY WHOLESALE,5300,Catering costs - provisions,208.02,,208.02
Children and Young Peoples Services,Head of Childrens Social Care,085358,Orchard House Sacriston Solo Home,Supplies and Services,372009,Subscriptions E372,07-Feb-2023,000008656509678,Netflix,4899,Subscriptions 372009,15.99,0.00,15.99
Children and Young Peoples Services,Head of Early Help Inclusion & Vulnerable Children.,085962,Aycliffe Secure - Durham,Supplies and Services,304403,Equipment and Materials,07-Feb-2023,000008656510740,AMZNMktplace,5999,Other consumables,42.08,7.01,35.07
Children and Young Peoples Services,Head of Early Help Inclusion & Vulnerable Children.,085962,Aycliffe Secure - Durham,Supplies and Services,304403,Equipment and Materials,07-Feb-2023,000008656510742,AMZNMktplace,5999,Other consumables,16.99,0.00,16.99
Children and Young Peoples Services,Head of Childrens Social Care,085341,High Etherley Satelite Home,Supplies and Services,324117,Provisions E324,07-Feb-2023,000008660916462,TESCO STORES 6329,5411,Catering costs - provisions,27.61,0.00,27.61
Children and Young Peoples Services,Head of Childrens Social Care,085341,High Etherley Satelite Home,Transfer Payments,515140,Social Services Clients,07-Feb-2023,000008660916464,TESCO STORES 6329,5411,Clothing allowances,40.50,0.00,40.50
Children and Young Peoples Services,Head of Childrens Social Care,085366,Children Looked After Team 3,Supplies and Services,338045,Services,07-Feb-2023,000008660916466,DURHAM COUNTY COUNCIL,9399,Legal expenses 338045,11.00,0.00,11.00
Children and Young Peoples Services,Head of Childrens Social Care,085365,Children Looked After Team 2,Supplies and Services,338045,Services,07-Feb-2023,000008660916468,HM PASSPORT OFFICE,9399,Legal expenses 338045,53.50,0.00,53.50
Children and Young Peoples Services,Head of Childrens Social Care,085365,Children Looked After Team 2,Supplies and Services,338045,Services,07-Feb-2023,000008660916470,HM PASSPORT OFFICE,9399,Legal expenses 338045,53.50,0.00,53.50
Children and Young Peoples Services,Head of Childrens Social Care,085365,Children Looked After Team 2,Supplies and Services,338045,Services,07-Feb-2023,000008660916472,HM PASSPORT OFFICE,9399,Legal expenses 338045,53.50,0.00,53.50
Children and Young Peoples Services,Head of Childrens Social Care,085365,Children Looked After Team 2,Supplies and Services,338045,Services,07-Feb-2023,000008660916474,HM PASSPORT OFFICE,9399,Legal expenses 338045,53.50,0.00,53.50
Children and Young Peoples Services,Head of Childrens Social Care,085622,Families First Ferryhill,Supplies and Services,338045,Services,07-Feb-2023,000008660916476,GEN REGISTER OFFICE,9399,Legal expenses 338045,25.00,0.00,25.00
Children and Young Peoples Services,Head of Education and Skills,071801,Selby Cottage Childcare Centre,Supplies and Services,324117,Provisions E324,07-Feb-2023,000008660916478,TESCO STORES 2371,5411,Catering costs - provisions,133.19,0.00,133.19
Dedicated Schools Grant BG0015,DSG Schools Block,110020,The Woodlands 1100 - Ed Health Needs,Supplies and Services,304259,Equipment and Materials,07-Feb-2023,000008660916484,SPECIALIST CRAFTS LTD,5970,Equipment-purchase and rental,31.06,0.00,31.06
Regeneration Economy and Growth,Planning & Housing,031581,Prevention Fund,Transport,235073,Public Transport,07-Feb-2023,000008660916500,WWW.GONORTHEAST.CO.UK,4111,Travel-clients/students/children,7.00,0.00,7.00
Regeneration Economy and Growth,Culture Sport and Tourism,010605,Woodhouse Close Leisure Complex,Supplies and Services,304403,Equipment and Materials,07-Feb-2023,000008660916502,AMZNMKTPLACE AMAZON.CO,5999,Other consumables,35.49,5.92,29.57
Children and Young Peoples Services,Head of Childrens Social Care,085342,16 Hickstead Rise (previously 9 Cedar Ave),Supplies and Services,304403,Equipment and Materials,07-Feb-2023,000008660916506,AMZNMktplace,5999,Other consumables,31.58,0.00,31.58
Children and Young Peoples Services,Head of Childrens Social Care,085342,16 Hickstead Rise (previously 9 Cedar Ave),Supplies and Services,304403,Equipment and Materials,07-Feb-2023,000008660916508,AMZNMktplace,5999,Other consumables,27.37,0.00,27.37
Children and Young Peoples Services,Head of Childrens Social Care,085342,16 Hickstead Rise (previously 9 Cedar Ave),Supplies and Services,328041,Clothing uniforms and laundry E328,07-Feb-2023,000008660916510,WWW.ARGOS.CO.UK,5311,Clothing uniforms and laundry,30.00,0.00,30.00
Children and Young Peoples Services,Head of Childrens Social Care,085342,16 Hickstead Rise (previously 9 Cedar Ave),Supplies and Services,304999,Equipment and Materials,07-Feb-2023,000008660916512,HOME BARGAINS,5251,Misc equipment tools and materials,28.77,0.00,28.77
Children and Young Peoples Services,Head of Childrens Social Care,085342,16 Hickstead Rise (previously 9 Cedar Ave),Supplies and Services,304403,Equipment and Materials,07-Feb-2023,000008660916514,AMZNMktplace,5999,Other consumables,7.98,0.00,7.98
Children and Young Peoples Services,Head of Childrens Social Care,085342,16 Hickstead Rise (previously 9 Cedar Ave),Supplies and Services,304403,Equipment and Materials,07-Feb-2023,000008660916516,AMZNMktplace,5999,Other consumables,31.58,0.00,31.58
Children and Young Peoples Services,Head of Childrens Social Care,085342,16 Hickstead Rise (previously 9 Cedar Ave),Supplies and Services,304403,Equipment and Materials,07-Feb-2023,000008660916518,AMZNMktplace,5999,Other consumables,37.98,0.00,37.98
Children and Young Peoples Services,Head of Childrens Social Care,085342,16 Hickstead Rise (previously 9 Cedar Ave),Supplies and Services,324117,Provisions E324,07-Feb-2023,000008660916520,SAINSBURYS S/MKTS,5411,Catering costs - provisions,8.00,0.00,8.00
Children and Young Peoples Services,Head of Childrens Social Care,085347,Solo Home The Manse,Supplies and Services,304403,Equipment and Materials,07-Feb-2023,000008660916526,AMZNMktplace,5999,Other consumables,29.76,0.00,29.76
Children and Young Peoples Services,Head of Childrens Social Care,085347,Solo Home The Manse,Supplies and Services,324117,Provisions E324,07-Feb-2023,000008660916528,ALDI 12 774,5411,Catering costs - provisions,157.79,0.00,157.79
Regeneration Economy and Growth,Culture Sport and Tourism,054775,Durham Town Hall 054775,Supplies and Services,304259,Equipment and Materials,07-Feb-2023,000008660916534,AMZNMktplace,5999,Equipment-purchase and rental,32.99,0.00,32.99
Regeneration Economy and Growth,Culture Sport and Tourism,054040,Shildon Sid Chaplain Library,Supplies and Services,304252,Equipment and Materials,07-Feb-2023,000008660916536,AMZNMktplace,5999,Equipment-repairsserviceinsurance,7.78,1.30,6.48
Regeneration Economy and Growth,Culture Sport and Tourism,054604,Seven Hills Spennymoor,Supplies and Services,332001,Printing Stationery and Gen Off Exps,07-Feb-2023,000008660916538,QUADIENT UK LTD,5111,General office expenses,500.00,0.00,500.00
Children and Young Peoples Services,Head of Childrens Social Care,085342,16 Hickstead Rise (previously 9 Cedar Ave),Supplies and Services,348037,Subsistence E348,07-Feb-2023,000008660916544,KFC-CONSETT DT,5814,Subsistence,18.46,0.00,18.46
Children and Young Peoples Services,Head of Childrens Social Care,085342,16 Hickstead Rise (previously 9 Cedar Ave),Supplies and Services,324117,Provisions E324,07-Feb-2023,000008660916546,TESCO STORES 2916,5411,Catering costs - provisions,76.09,0.00,76.09
Children and Young Peoples Services,Head of Childrens Social Care,085342,16 Hickstead Rise (previously 9 Cedar Ave),Supplies and Services,324117,Provisions E324,07-Feb-2023,000008660916548,STARBUCKS CONSETT,5499,Catering costs - provisions,12.40,0.00,12.40
Children and Young Peoples Services,Head of Early Help Inclusion & Vulnerable Children.,088109,Dean Bank and Tudhoe Family Centre,Supplies and Services,384302,Miscellaneous Expenses,07-Feb-2023,000008660916574,AMZNMktplace,5999,Activity expenses,26.40,4.40,22.00
Children and Young Peoples Services,Head of Early Help Inclusion & Vulnerable Children.,088109,Dean Bank and Tudhoe Family Centre,Supplies and Services,384302,Miscellaneous Expenses,07-Feb-2023,000008660916574 - 1,AMZNMktplace,5999,Activity expenses,0.05,,0.05
Children and Young Peoples Services,Head of Early Help Inclusion & Vulnerable Children.,088109,Dean Bank and Tudhoe Family Centre,Supplies and Services,384302,Miscellaneous Expenses,07-Feb-2023,000008660916576,AMZNBusiness 1Q11G71A4,5999,Activity expenses,6.99,0.00,6.99
Children and Young Peoples Services,Head of Early Help Inclusion & Vulnerable Children.,088109,Dean Bank and Tudhoe Family Centre,Supplies and Services,384302,Miscellaneous Expenses,07-Feb-2023,000008660916578,AMZNBusiness 1Q74E31E4,5999,Activity expenses,45.22,0.00,45.22
Children and Young Peoples Services,Head of Early Help Inclusion & Vulnerable Children.,088109,Dean Bank and Tudhoe Family Centre,Supplies and Services,384302,Miscellaneous Expenses,07-Feb-2023,000008660916580,AMZNMktplace,5999,Activity expenses,45.12,7.52,37.60
Children and Young Peoples Services,Head of Early Help Inclusion & Vulnerable Children.,088109,Dean Bank and Tudhoe Family Centre,Supplies and Services,384302,Miscellaneous Expenses,07-Feb-2023,000008660916582,AMZNMktplace,5999,Activity expenses,11.28,1.88,9.40
Children and Young Peoples Services,Head of Early Help Inclusion & Vulnerable Children.,088109,Dean Bank and Tudhoe Family Centre,Supplies and Services,384302,Miscellaneous Expenses,07-Feb-2023,000008660916584,AMZNBusiness 1Q7RZ6P54,5999,Activity expenses,148.58,0.00,148.58
Children and Young Peoples Services,Head of Early Help Inclusion & Vulnerable Children.,088109,Dean Bank and Tudhoe Family Centre,Supplies and Services,304403,Equipment and Materials,07-Feb-2023,000008660916586,AMZNMktplace,5999,Other consumables,9.77,1.63,8.14
Children and Young Peoples Services,Head of Childrens Social Care,085511,Emergency Duty Team,Transport,235057,Public Transport,07-Feb-2023,000008660916616,GAR HOTEL RES,4722,Staff travelling,60.53,0.00,60.53
Children and Young Peoples Services,Head of Early Help Inclusion & Vulnerable Children.,088111,Easington Horden & Seascape Family Centre,Supplies and Services,304259,Equipment and Materials,07-Feb-2023,000008660916638,IKEA LTD SHOP ONLINE,5712,Equipment-purchase and rental,665.00,0.00,665.00
Resources BK0010,Digital Services,065481,Technical Services 065481,Supplies and Services,372009,Subscriptions E372,07-Feb-2023,000008660916640,NOMINET UK,7392,Subscriptions 372009,12.00,2.00,10.00
Resources BK0010,Digital Services,065481,Technical Services 065481,Supplies and Services,372009,Subscriptions E372,07-Feb-2023,000008660916642,NOMINET UK,7392,Subscriptions 372009,12.00,2.00,10.00
Resources BK0010,Digital Services,065481,Technical Services 065481,Supplies and Services,372009,Subscriptions E372,07-Feb-2023,000008660916644,NOMINET UK,7392,Subscriptions 372009,12.00,2.00,10.00
Resources BK0010,Digital Services,065481,Technical Services 065481,Supplies and Services,372009,Subscriptions E372,07-Feb-2023,000008660916646,NOMINET UK,7392,Subscriptions 372009,12.00,2.00,10.00
Resources BK0010,Digital Services,065481,Technical Services 065481,Supplies and Services,372009,Subscriptions E372,07-Feb-2023,000008660916648,NOMINET UK,7392,Subscriptions 372009,12.00,2.00,10.00
Regeneration Economy and Growth,Economic Development Level C,030776,LINKCD Flexible Fund,Supplies and Services,328041,Clothing uniforms and laundry E328,07-Feb-2023,000008660916672,NEXT DIRECTORY,5651,Clothing uniforms and laundry,20.95,0.00,20.95
Children and Young Peoples Services,Head of Early Help Inclusion & Vulnerable Children.,085957,Secure Management,Supplies and Services,304259,Equipment and Materials,07-Feb-2023,000008660916686,AMZNMktplace,5999,Equipment-purchase and rental,272.52,0.00,272.52
Children and Young Peoples Services,Head of Early Help Inclusion & Vulnerable Children.,085957,Secure Management,Transfer Payments,515002,Social Services Clients,07-Feb-2023,000008660916688,Boohoo.com UK Ltd,5611,Pocket money,150.50,0.00,150.50
Children and Young Peoples Services,Head of Early Help Inclusion & Vulnerable Children.,085957,Secure Management,Transfer Payments,515002,Social Services Clients,07-Feb-2023,000008660916690,Boohoo.com UK Ltd,5611,Pocket money,97.10,0.00,97.10
Children and Young Peoples Services,Head of Early Help Inclusion & Vulnerable Children.,085957,Secure Management,Transfer Payments,515002,Social Services Clients,07-Feb-2023,000008660916692,JD Sports Fashion PLC,5655,Pocket money,148.00,0.00,148.00
Children and Young Peoples Services,Head of Early Help Inclusion & Vulnerable Children.,085957,Secure Management,Transfer Payments,515002,Social Services Clients,07-Feb-2023,000008660916694,JD Sports Fashion PLC,5655,Pocket money,58.99,0.00,58.99
Children and Young Peoples Services,Head of Early Help Inclusion & Vulnerable Children.,085957,Secure Management,Transfer Payments,515002,Social Services Clients,07-Feb-2023,000008660916696,JD Sports Fashion PLC,5655,Pocket money,245.00,0.00,245.00
Children and Young Peoples Services,Head of Early Help Inclusion & Vulnerable Children.,085957,Secure Management,Transfer Payments,515002,Social Services Clients,07-Feb-2023,000008660916698,Flannels,5999,Pocket money,91.99,0.00,91.99
Children and Young Peoples Services,Head of Early Help Inclusion & Vulnerable Children.,085957,Secure Management,Transfer Payments,515002,Social Services Clients,07-Feb-2023,000008660916700,SPORTSDIRECT.COM,5655,Pocket money,134.98,0.00,134.98
Children and Young Peoples Services,Head of Early Help Inclusion & Vulnerable Children.,085957,Secure Management,Supplies and Services,304259,Equipment and Materials,07-Feb-2023,000008660916702,AMZNMktplace,5999,Equipment-purchase and rental,15.90,2.65,13.25
Children and Young Peoples Services,Head of Early Help Inclusion & Vulnerable Children.,085957,Secure Management,Supplies and Services,304259,Equipment and Materials,07-Feb-2023,000008660916704,AMZNMktplace,5999,Equipment-purchase and rental,8.99,0.00,8.99
Children and Young Peoples Services,Head of Early Help Inclusion & Vulnerable Children.,085957,Secure Management,Supplies and Services,304259,Equipment and Materials,07-Feb-2023,000008660916706,AMZNMktplace,5999,Equipment-purchase and rental,9.99,0.00,9.99
Regeneration Economy and Growth,Economic Development Level C,030771,Durham Advance Flexible Fund,Supplies and Services,304999,Equipment and Materials,07-Feb-2023,000008660916712,WWW.ARGOS.CO.UK,5311,Misc equipment tools and materials,320.00,0.00,320.00
Children and Young Peoples Services,Head of Childrens Social Care,085364,Children Looked After Team 1,Supplies and Services,338048,Services,07-Feb-2023,000008660916744,HMCTS DURHAM012W,9222,Court costs 338048,100.00,0.00,100.00
Children and Young Peoples Services,Head of Childrens Social Care,085364,Children Looked After Team 1,Supplies and Services,338048,Services,07-Feb-2023,000008660916746,HMCTS DURHAM012W,9222,Court costs 338048,100.00,0.00,100.00
Children and Young Peoples Services,Head of Childrens Social Care,085364,Children Looked After Team 1,Supplies and Services,304259,Equipment and Materials,07-Feb-2023,000008660916748,DARLINGTON BOROUGH COU,9399,Equipment-purchase and rental,11.00,0.00,11.00
Children and Young Peoples Services,Head of Early Help Inclusion & Vulnerable Children.,085955,Auckland,Transfer Payments,515002,Social Services Clients,07-Feb-2023,000008660916750,JD Sports Fashion PLC,5655,Pocket money,-22.00,0.00,-22.00
Neighbourhoods and Climate Change,Environmental Services,010367,C&G - South Grounds Maintenance,Supplies and Services,304221,Equipment and Materials,07-Feb-2023,000008660916770,MKM PETERLEE,5211,Direct materials,107.32,0.00,107.32
Children and Young Peoples Services,Head of Childrens Social Care,085551,Short Break Services-Park Hse Sher,Supplies and Services,324117,Provisions E324,07-Feb-2023,000008660916774,TESCO STORES,5411,Catering costs - provisions,39.95,0.00,39.95
Children and Young Peoples Services,Head of Childrens Social Care,085622,Families First Ferryhill,Supplies and Services,364301,Grants to Voluntary Organisations,07-Feb-2023,000008660916792,trainline,4112,Hardship,69.89,0.00,69.89
Children and Young Peoples Services,Head of Early Help Inclusion & Vulnerable Children.,088106,Ferryhill & N. Aycliffe Intensive Family Support Team,Supplies and Services,364301,Grants to Voluntary Organisations,07-Feb-2023,000008660916794,SumUp Galaxy Taxis,4121,Hardship,56.65,0.00,56.65
Children and Young Peoples Services,Head of Early Help Inclusion & Vulnerable Children.,088106,Ferryhill & N. Aycliffe Intensive Family Support Team,Supplies and Services,364301,Grants to Voluntary Organisations,07-Feb-2023,000008660916796,ARGOS LTD,5310,Hardship,30.95,0.00,30.95
Regeneration Economy and Growth,Economic Development Level C,030771,Durham Advance Flexible Fund,Transport,235057,Public Transport,07-Feb-2023,000008660916812,WWW.GONORTHEAST.CO.UK,4111,Staff travelling,4.90,0.00,4.90
Regeneration Economy and Growth,Economic Development Level C,030771,Durham Advance Flexible Fund,Supplies and Services,348037,Subsistence E348,07-Feb-2023,000008660916814,CHESTER LE STREET,5814,Subsistence,2.25,0.00,2.25
Regeneration Economy and Growth,Economic Development Level C,030771,Durham Advance Flexible Fund,Supplies and Services,348037,Subsistence E348,07-Feb-2023,000008660916816,CHESTER LE STREET,5814,Subsistence,3.50,0.00,3.50
Regeneration Economy and Growth,Economic Development Level C,030771,Durham Advance Flexible Fund,Supplies and Services,324117,Provisions E324,07-Feb-2023,000008660916818,STARBUCKS CONSETT,5499,Catering costs - provisions,3.45,0.00,3.45
Neighbourhoods and Climate Change,Environmental Services,010301,C&G - North Grounds Maintenance,Supplies and Services,324117,Provisions E324,07-Feb-2023,000008660916848,J VAN VLIET GATESHEAD,5399,Catering costs - provisions,48.45,0.00,48.45
Adult and Health Services,Head of Adults,055643,Hawthorn House LD Respite Unit,Supplies and Services,304403,Equipment and Materials,07-Feb-2023,000008660916896,AMZNBusiness 1Q7X99PY4,5999,Other consumables,3.20,0.53,2.67
Children and Young Peoples Services,Head of Education and Skills,075035,DurhamDirections Re-engagement,Supplies and Services,364301,Grants to Voluntary Organisations,07-Feb-2023,000008660916918,WWW.GONORTHEAST.CO.UK,4111,Hardship,19.50,0.00,19.50
Children and Young Peoples Services,Head of Education and Skills,075035,DurhamDirections Re-engagement,Supplies and Services,364301,Grants to Voluntary Organisations,07-Feb-2023,000008660916920,WWW.GONORTHEAST.CO.UK,4111,Hardship,4.70,0.00,4.70
Children and Young Peoples Services,Head of Education and Skills,075035,DurhamDirections Re-engagement,Supplies and Services,364301,Grants to Voluntary Organisations,07-Feb-2023,000008660916922,WWW.GONORTHEAST.CO.UK,4111,Hardship,4.70,0.00,4.70
Children and Young Peoples Services,Head of Education and Skills,075035,DurhamDirections Re-engagement,Supplies and Services,364301,Grants to Voluntary Organisations,07-Feb-2023,000008660916924,WWW.GONORTHEAST.CO.UK,4111,Hardship,4.70,0.00,4.70
Children and Young Peoples Services,Head of Education and Skills,075035,DurhamDirections Re-engagement,Supplies and Services,364301,Grants to Voluntary Organisations,07-Feb-2023,000008660916926,WWW.GONORTHEAST.CO.UK,4111,Hardship,18.00,0.00,18.00
Children and Young Peoples Services,Head of Education and Skills,075035,DurhamDirections Re-engagement,Supplies and Services,364301,Grants to Voluntary Organisations,07-Feb-2023,000008660916928,WWW.GONORTHEAST.CO.UK,4111,Hardship,4.70,0.00,4.70
Children and Young Peoples Services,Head of Education and Skills,075035,DurhamDirections Re-engagement,Supplies and Services,364301,Grants to Voluntary Organisations,07-Feb-2023,000008660916930,WWW.GONORTHEAST.CO.UK,4111,Hardship,4.70,0.00,4.70
Children and Young Peoples Services,Head of Education and Skills,075035,DurhamDirections Re-engagement,Supplies and Services,364301,Grants to Voluntary Organisations,07-Feb-2023,000008660916932,WWW.GONORTHEAST.CO.UK,4111,Hardship,4.70,0.00,4.70
Children and Young Peoples Services,Head of Education and Skills,075035,DurhamDirections Re-engagement,Supplies and Services,364301,Grants to Voluntary Organisations,07-Feb-2023,000008660916934,WWW.GONORTHEAST.CO.UK,4111,Hardship,18.00,0.00,18.00
Children and Young Peoples Services,Head of Education and Skills,075033,DurhamWorks 3,Supplies and Services,364301,Grants to Voluntary Organisations,07-Feb-2023,000008660916936,MIDDLESBROUGH COUNCIL,9399,Hardship,11.00,0.00,11.00
Resources BK0010,Procurement Sales & Business Services,069800,Corporate Procurement 069800,Supplies and Services,304403,Equipment and Materials,07-Feb-2023,000008660916938,ADOBE PRODUCTS,5734,Other consumables,196.01,0.00,196.01
Neighbourhoods and Climate Change,Environmental Services,031249,North Pennines - Nature for Climate,Transport,215995,Running Costs of Vehicles,07-Feb-2023,000008660916976,HALFORDS E.COMM,5533,Vehicle running expenses,69.98,0.00,69.98
Regeneration Economy and Growth,Corporate Property and Land,011003,FM-Civic Bldgs-County Hall Durham,Supplies and Services,304403,Equipment and Materials,07-Feb-2023,000008660916978,AMZNMktplace,5999,Other consumables,34.79,5.80,28.99
Children and Young Peoples Services,Head of Education and Skills,078563,16-19 Bursary for Vulnerable Groups,Transport,235073,Public Transport,07-Feb-2023,000008660916996,WWW.GONORTHEAST.CO.UK,4111,Travel-clients/students/children,7.00,0.00,7.00
Children and Young Peoples Services,Head of Education and Skills,078563,16-19 Bursary for Vulnerable Groups,Transport,235073,Public Transport,07-Feb-2023,000008660916998,WWW.GONORTHEAST.CO.UK,4111,Travel-clients/students/children,7.00,0.00,7.00
Children and Young Peoples Services,Head of Education and Skills,078550,Discretionary Learning Support,Transport,235073,Public Transport,07-Feb-2023,000008660917000,WWW.GONORTHEAST.CO.UK,4111,Travel-clients/students/children,30.00,0.00,30.00
Children and Young Peoples Services,Head of Education and Skills,078550,Discretionary Learning Support,Transport,235073,Public Transport,07-Feb-2023,000008660917002,WWW.GONORTHEAST.CO.UK,4111,Travel-clients/students/children,1.40,0.00,1.40
Children and Young Peoples Services,Head of Education and Skills,078550,Discretionary Learning Support,Transport,235073,Public Transport,07-Feb-2023,000008660917004,WWW.GONORTHEAST.CO.UK,4111,Travel-clients/students/children,1.40,0.00,1.40
Children and Young Peoples Services,Head of Education and Skills,078550,Discretionary Learning Support,Transport,235073,Public Transport,07-Feb-2023,000008660917006,WWW.GONORTHEAST.CO.UK,4111,Travel-clients/students/children,7.00,0.00,7.00
Children and Young Peoples Services,Head of Education and Skills,078550,Discretionary Learning Support,Transport,235073,Public Transport,07-Feb-2023,000008660917008,WWW.GONORTHEAST.CO.UK,4111,Travel-clients/students/children,7.00,0.00,7.00
Children and Young Peoples Services,Head of Early Help Inclusion & Vulnerable Children.,074000,National Supporting Families Programme,Transfer Payments,525033,Other,07-Feb-2023,000008660917010,FRANKS THE FLOORING ST,5713,Grants to individuals,250.00,0.00,250.00
Children and Young Peoples Services,Head of Early Help Inclusion & Vulnerable Children.,073986,Reducing Parental Conflict Programme,Supplies and Services,324117,Provisions E324,07-Feb-2023,000008660917012,ASDA STORES LTD,5411,Catering costs - provisions,62.79,0.00,62.79
Resources BK0010,Digital Services,065335,School Services - Implementations,Supplies and Services,304639,Equipment and Materials,07-Feb-2023,000008660917014,TOOLSTATION UK,5251,Technicians-supplies,17.59,0.00,17.59
Regeneration Economy and Growth,Economic Development Level C,030771,Durham Advance Flexible Fund,Transport,235057,Public Transport,07-Feb-2023,000008660917016,WALKERGATE CAR PAR,7523,Staff travelling,3.10,0.52,2.58
Children and Young Peoples Services,Head of Early Help Inclusion & Vulnerable Children.,085965,Barnard,Supplies and Services,384302,Miscellaneous Expenses,07-Feb-2023,000008660917018,AMZNMktplace,5999,Activity expenses,6.46,1.08,5.38
Children and Young Peoples Services,Head of Early Help Inclusion & Vulnerable Children.,085965,Barnard,Supplies and Services,384302,Miscellaneous Expenses,07-Feb-2023,000008660917020,AMZNMktplace,5999,Activity expenses,3.97,0.00,3.97
Children and Young Peoples Services,Head of Early Help Inclusion & Vulnerable Children.,085957,Secure Management,Supplies and Services,304259,Equipment and Materials,07-Feb-2023,000008660917022,Amazon.co.uk 1Q5NV2P54,5969,Equipment-purchase and rental,17.99,3.00,14.99
Children and Young Peoples Services,Head of Early Help Inclusion & Vulnerable Children.,085957,Secure Management,Supplies and Services,304259,Equipment and Materials,07-Feb-2023,000008660917024,Amazon.co.uk 1Q77L0PL4,5969,Equipment-purchase and rental,17.99,3.00,14.99
Children and Young Peoples Services,Head of Early Help Inclusion & Vulnerable Children.,085957,Secure Management,Supplies and Services,304259,Equipment and Materials,07-Feb-2023,000008660917026,AMZNMktplace,5999,Equipment-purchase and rental,19.99,3.33,16.66
Regeneration Economy and Growth,Planning & Housing,031704,Care Connect - CCTV Countywide,Supplies and Services,384956,Miscellaneous Expenses,07-Feb-2023,000008660917028,SECURITY INDUSTRY AUTH,9399,Licences,190.00,0.00,190.00
Children and Young Peoples Services,Head of Childrens Social Care,085351,Framwellgate Moor CU,Supplies and Services,304999,Equipment and Materials,07-Feb-2023,000008660917066,PlaystationNetwork,5818,Misc equipment tools and materials,3.17,0.00,3.17
Children and Young Peoples Services,Head of Childrens Social Care,085351,Framwellgate Moor CU,Supplies and Services,304999,Equipment and Materials,07-Feb-2023,000008660917068,PlaystationNetwork,5818,Misc equipment tools and materials,6.49,0.00,6.49
Children and Young Peoples Services,Head of Childrens Social Care,085333,Coxhoe Satelite Home,Supplies and Services,324117,Provisions E324,07-Feb-2023,000008660917070,SAINSBURY`S S/MKT,5411,Catering costs - provisions,95.27,0.00,95.27
Regeneration Economy and Growth,Culture Sport and Tourism,011263,Louisa Centre 011263,Supplies and Services,304999,Equipment and Materials,07-Feb-2023,000008660917120,MAIN BROTHERS,5251,Misc equipment tools and materials,6.99,0.00,6.99
Children and Young Peoples Services,Head of Early Help Inclusion & Vulnerable Children.,085962,Aycliffe Secure - Durham,Supplies and Services,304403,Equipment and Materials,07-Feb-2023,000008660917124,AMZNMktplace,5999,Other consumables,41.95,6.99,34.96
Regeneration Economy and Growth,Culture Sport and Tourism,054233,Bishop Auckland Town Hall Library,Supplies and Services,324117,Provisions E324,07-Feb-2023,000008660917128,WM MORRISONS STORE,5411,Catering costs - provisions,67.73,0.00,67.73
Resources BK0010,Procurement Sales & Business Services,069800,Corporate Procurement 069800,Employees,040149,Recruitment Instruction and Training,07-Feb-2023,000008660917154,INSTITUTE OF DIRECTORS,8699,Training-all costs,"1,854.00",0.00,1854.00
Resources BK0010,Digital Services,065256,Nodes/Circuits,Supplies and Services,304403,Equipment and Materials,07-Feb-2023,000008660917156,AMZNMktplace,5999,Other consumables,16.32,2.72,13.60
Resources BK0010,Digital Services,065256,Nodes/Circuits,Supplies and Services,304403,Equipment and Materials,07-Feb-2023,000008660917156 - 1,AMZNMktplace,5999,Other consumables,0.04,,0.04
Resources BK0010,Digital Services,065256,Nodes/Circuits,Supplies and Services,304403,Equipment and Materials,07-Feb-2023,000008660917158,AMZNMktplace,5999,Other consumables,13.48,2.25,11.23
Resources BK0010,Digital Services,065256,Nodes/Circuits,Supplies and Services,304403,Equipment and Materials,07-Feb-2023,000008660917160,AMZNMktplace,5999,Other consumables,50.44,0.00,50.44
Resources BK0010,Digital Services,065256,Nodes/Circuits,Supplies and Services,304403,Equipment and Materials,07-Feb-2023,000008660917162,AMZNMktplace,5999,Other consumables,14.87,2.48,12.39
Resources BK0010,Digital Services,065256,Nodes/Circuits,Supplies and Services,304403,Equipment and Materials,07-Feb-2023,000008660917164,AMZNMktplace,5999,Other consumables,5.55,0.93,4.62
Resources BK0010,Digital Services,065256,Nodes/Circuits,Supplies and Services,304403,Equipment and Materials,07-Feb-2023,000008660917166,AMZNMktplace,5999,Other consumables,24.98,4.16,20.82
Resources BK0010,Digital Services,065256,Nodes/Circuits,Supplies and Services,304403,Equipment and Materials,07-Feb-2023,000008660917168,AMZNMktplace,5999,Other consumables,5.44,0.91,4.53
Resources BK0010,Digital Services,065256,Nodes/Circuits,Supplies and Services,304403,Equipment and Materials,07-Feb-2023,000008660917170,AMZNMktplace,5999,Other consumables,35.93,6.00,29.93
Resources BK0010,Digital Services,065256,Nodes/Circuits,Supplies and Services,304403,Equipment and Materials,07-Feb-2023,000008660917172,AMZNMktplace,5999,Other consumables,56.38,9.40,46.98
Children and Young Peoples Services,Head of Early Help Inclusion & Vulnerable Children.,088111,Easington Horden & Seascape Family Centre,Supplies and Services,384302,Miscellaneous Expenses,07-Feb-2023,000008660917178,BAKER ROSS,5970,Activity expenses,238.37,0.00,238.37
Children and Young Peoples Services,Head of Early Help Inclusion & Vulnerable Children.,071543,Seascape Childrens Centre,Supplies and Services,304403,Equipment and Materials,07-Feb-2023,000008660917180,AMZNMktplace,5999,Other consumables,12.94,0.00,12.94
Children and Young Peoples Services,Head of Early Help Inclusion & Vulnerable Children.,088111,Easington Horden & Seascape Family Centre,Supplies and Services,304649,Equipment and Materials,07-Feb-2023,000008660917182,AMZNMktplace,5999,Toys,102.53,0.00,102.53
Neighbourhoods and Climate Change,Environmental Services,010367,C&G - South Grounds Maintenance,Supplies and Services,304999,Equipment and Materials,07-Feb-2023,000008660917188,NEW ROW FARM NURSERIES,780,Misc equipment tools and materials,336.00,0.00,336.00
Regeneration Economy and Growth,REG - Central Costs,030001,Corporate Director - Regeneration Economy & Growth,Supplies and Services,384073,Miscellaneous Expenses,07-Feb-2023,000008660917190,AMZNMktplace,5999,Catering - meetings,31.96,0.00,31.96
Regeneration Economy and Growth,REG - Central Costs,030001,Corporate Director - Regeneration Economy & Growth,Supplies and Services,384073,Miscellaneous Expenses,07-Feb-2023,000008660917192,AMZNMktplace,5999,Catering - meetings,35.96,0.00,35.96
Resources BK0010,Digital Services,065432,Web Development Group,Supplies and Services,342033,Computers and Communications,07-Feb-2023,000008660917194,WPMU DEV INCSUBFEE.COM,7372,Computer hardware,15.83,0.00,15.83
Regeneration Economy and Growth,Communications Management,060270,Communications and Marketing,Supplies and Services,336005,Advertising E336,07-Feb-2023,000008660917196,LINKEDIN ADS 0929934,7311,Advertising other than for staff,129.98,0.00,129.98
Neighbourhoods and Climate Change,Environmental Services,011171,Nei.Prot - Allotments,Supplies and Services,304221,Equipment and Materials,07-Feb-2023,000008660917204,TOOLSTATION LTD,5211,Direct materials,22.68,0.00,22.68
Children and Young Peoples Services,Head of Early Help Inclusion & Vulnerable Children.,085963,Maple House,Supplies and Services,324117,Provisions E324,07-Feb-2023,000008660917244,TESCO STORES 2916,5411,Catering costs - provisions,129.05,0.00,129.05
Regeneration Economy and Growth,Corporate Property and Land,030691,Catering - Durham Dales Centre,Supplies and Services,324117,Provisions E324,07-Feb-2023,000008660917250,TESCO STORES 6329,5411,Catering costs - provisions,23.90,0.00,23.90
Regeneration Economy and Growth,Corporate Property and Land,030691,Catering - Durham Dales Centre,Supplies and Services,324117,Provisions E324,07-Feb-2023,000008660917252,TESCO STORES 6329,5411,Catering costs - provisions,55.62,0.00,55.62
Regeneration Economy and Growth,Planning & Housing,031581,Prevention Fund,Transport,235057,Public Transport,07-Feb-2023,000008660917256,UBER TRIP,4121,Staff travelling,27.25,0.00,27.25
Regeneration Economy and Growth,Planning & Housing,031581,Prevention Fund,Transport,235057,Public Transport,07-Feb-2023,000008660917258,UBER TRIP,4121,Staff travelling,11.71,0.00,11.71
Regeneration Economy and Growth,Planning & Housing,031581,Prevention Fund,Transport,235057,Public Transport,07-Feb-2023,000008660917260,UBER TRIP,4121,Staff travelling,12.05,0.00,12.05
Regeneration Economy and Growth,Planning & Housing,031576,B& B - Temp Accom,Supplies and Services,364320,Grants to Voluntary Organisations,07-Feb-2023,000008660917262,H52STANLEY,7011,Accommodation assistance,108.00,0.00,108.00
Regeneration Economy and Growth,Corporate Property and Land,011275,Catering -Durham Leadership Centre,Supplies and Services,324117,Provisions E324,07-Feb-2023,000008660991748,JR HOLLAND FOODSERVICE,5499,Catering costs - provisions,110.65,0.00,110.65
Regeneration Economy and Growth,Culture Sport and Tourism,011265,Empire Theatre (Operations),Supplies and Services,324117,Provisions E324,07-Feb-2023,000008660991750,JR HOLLAND FOODSERVICE,5499,Catering costs - provisions,23.08,0.00,23.08
Regeneration Economy and Growth,Corporate Property and Land,011296,Catering - Dunes,Supplies and Services,324117,Provisions E324,07-Feb-2023,000008660991752,JR HOLLAND FOODSERVICE,5499,Catering costs - provisions,90.31,0.00,90.31
Regeneration Economy and Growth,Culture Sport and Tourism,054235,Bishop Auckland Town Hall Cafe,Supplies and Services,324117,Provisions E324,07-Feb-2023,000008660991760,JR HOLLAND FOODSERVICE,5499,Catering costs - provisions,623.06,0.00,623.06
Regeneration Economy and Growth,Culture Sport and Tourism,054812,Gala Theatre - Catering etc,Supplies and Services,324117,Provisions E324,07-Feb-2023,000008660991764,JR HOLLAND FOODSERVICE,5499,Catering costs - provisions,98.14,0.00,98.14
Regeneration Economy and Growth,Corporate Property and Land,021242,Catering - County Hall,Supplies and Services,324117,Provisions E324,07-Feb-2023,000008660991766,JR HOLLAND FOODSERVICE,5499,Catering costs - provisions,54.00,0.00,54.00
Regeneration Economy and Growth,Business Durham CL0850,030689,Inward Investment and Aftercare,Supplies and Services,342222,Computers and Communications,07-Feb-2023,000008666311188,FASTHOSTS,4816,Comp hardware purch-network servers,6.94,0.00,6.94
Children and Young Peoples Services,Head of Early Help Inclusion & Vulnerable Children.,088109,Dean Bank and Tudhoe Family Centre,Supplies and Services,384302,Miscellaneous Expenses,07-Feb-2023,000008666311502,AMZNMKTPLACE AMAZON.CO,5999,Activity expenses,38.78,6.47,32.31
Children and Young Peoples Services,Head of Early Help Inclusion & Vulnerable Children.,088109,Dean Bank and Tudhoe Family Centre,Supplies and Services,384302,Miscellaneous Expenses,07-Feb-2023,000008666311506,AMZNMKTPLACE AMAZON.CO,5999,Activity expenses,17.98,3.00,14.98
Children and Young Peoples Services,Head of Early Help Inclusion & Vulnerable Children.,085957,Secure Management,Transfer Payments,515002,Social Services Clients,07-Feb-2023,000008666311700,AMZNMKTPLACE AMAZON.CO,5999,Pocket money,10.39,1.73,8.66
Children and Young Peoples Services,Head of Early Help Inclusion & Vulnerable Children.,085957,Secure Management,Supplies and Services,304259,Equipment and Materials,07-Feb-2023,000008666311702,AMZNMKTPLACE AMAZON.CO,5999,Equipment-purchase and rental,6.49,0.00,6.49
Children and Young Peoples Services,Head of Childrens Social Care,085347,Solo Home The Manse,Supplies and Services,304999,Equipment and Materials,07-Feb-2023,000008666311750,STARBUCKS,5815,Misc equipment tools and materials,18.05,0.00,18.05
Resources BK0010,Digital Services,065481,Technical Services 065481,Supplies and Services,304403,Equipment and Materials,07-Feb-2023,000008666312424,RS COMPONENTS,5065,Other consumables,73.06,0.00,73.06
Children and Young Peoples Services,Head of Early Help Inclusion & Vulnerable Children.,088111,Easington Horden & Seascape Family Centre,Supplies and Services,384302,Miscellaneous Expenses,07-Feb-2023,000008666312452,AMZNMKTPLACE AMAZON.CO,5999,Activity expenses,25.46,0.00,25.46
Children and Young Peoples Services,Head of Childrens Social Care,085341,High Etherley Satelite Home,Supplies and Services,304403,Equipment and Materials,07-Feb-2023,000008666312538,AMZNMKTPLACE AMAZON.CO,5999,Other consumables,19.99,3.33,16.66
Children and Young Peoples Services,Head of Childrens Social Care,085341,High Etherley Satelite Home,Supplies and Services,304403,Equipment and Materials,07-Feb-2023,000008666312544,AMZNMKTPLACE AMAZON.CO,5999,Other consumables,8.99,1.50,7.49
Neighbourhoods and Climate Change,Environmental Services,011060,C&G - Hardwick Park Catering,Supplies and Services,324117,Provisions E324,07-Feb-2023,000008666378526,BESTWAY WHOLESALE,5300,Catering costs - provisions,129.30,21.55,107.75
Neighbourhoods and Climate Change,Environmental Services,011060,C&G - Hardwick Park Catering,Supplies and Services,324117,Provisions E324,07-Feb-2023,000008666378526 - 1,BESTWAY WHOLESALE,5300,Catering costs - provisions,195.93,,195.93
Neighbourhoods and Climate Change,Environmental Services,011060,C&G - Hardwick Park Catering,Supplies and Services,324117,Provisions E324,07-Feb-2023,000008666378528,BESTWAY WHOLESALE,5300,Catering costs - provisions,9.90,1.65,8.25
Neighbourhoods and Climate Change,Environmental Services,011060,C&G - Hardwick Park Catering,Supplies and Services,324117,Provisions E324,07-Feb-2023,000008666378528 - 1,BESTWAY WHOLESALE,5300,Catering costs - provisions,7.55,,7.55
Regeneration Economy and Growth,Corporate Property and Land,021234,Catering - Locomotion,Supplies and Services,324117,Provisions E324,07-Feb-2023,000008666378532,BESTWAY WHOLESALE,5300,Catering costs - provisions,268.08,44.68,223.40
Regeneration Economy and Growth,Corporate Property and Land,021234,Catering - Locomotion,Supplies and Services,324117,Provisions E324,07-Feb-2023,000008666378532 - 1,BESTWAY WHOLESALE,5300,Catering costs - provisions,31.47,,31.47
Regeneration Economy and Growth,Corporate Property and Land,021324,Catering - Meadowfield,Supplies and Services,324117,Provisions E324,07-Feb-2023,000008666378544,BESTWAY WHOLESALE,5300,Catering costs - provisions,258.96,43.16,215.80
Regeneration Economy and Growth,Corporate Property and Land,021324,Catering - Meadowfield,Supplies and Services,324117,Provisions E324,07-Feb-2023,000008666378544 - 1,BESTWAY WHOLESALE,5300,Catering costs - provisions,160.58,,160.58
Regeneration Economy and Growth,Business Durham CL0850,030689,Inward Investment and Aftercare,Supplies and Services,342033,Computers and Communications,08-Feb-2023,000008660916456,STK Shutterstock,7333,Computer hardware,19.00,0.00,19.00
Children and Young Peoples Services,Head of Early Help Inclusion & Vulnerable Children.,088106,Ferryhill & N. Aycliffe Intensive Family Support Team,Supplies and Services,384302,Miscellaneous Expenses,08-Feb-2023,000008660916798,AMZNMktplace,5999,Activity expenses,34.88,5.81,29.07
Resources BK0010,Digital Services,065432,Web Development Group,Supplies and Services,342033,Computers and Communications,08-Feb-2023,000008660917198,WPMU DEV INCSUBFEE.COM,7372,Computer hardware,0.44,0.00,0.44
Children and Young Peoples Services,Head of Childrens Social Care,085364,Children Looked After Team 1,Supplies and Services,340001,Postages E340,08-Feb-2023,000008666311204,POST OFFICE COUNTER,9402,Postages,4.53,0.00,4.53
Children and Young Peoples Services,Head of Childrens Social Care,085368,Children Looked After Team 5,Supplies and Services,338045,Services,08-Feb-2023,000008666311206,HM PASSPORT OFFICE,9399,Legal expenses 338045,53.50,0.00,53.50
Children and Young Peoples Services,Head of Childrens Social Care,085368,Children Looked After Team 5,Supplies and Services,338045,Services,08-Feb-2023,000008666311208,HM PASSPORT OFFICE,9399,Legal expenses 338045,53.50,0.00,53.50
Children and Young Peoples Services,Head of Childrens Social Care,085366,Children Looked After Team 3,Supplies and Services,338045,Services,08-Feb-2023,000008666311212,GEN REGISTER OFFICE,9399,Legal expenses 338045,11.00,0.00,11.00
Children and Young Peoples Services,Head of Education and Skills,071801,Selby Cottage Childcare Centre,Supplies and Services,304999,Equipment and Materials,08-Feb-2023,000008666311224,Amazon Prime 1Q4OK9XV4,5968,Misc equipment tools and materials,8.99,1.50,7.49
Children and Young Peoples Services,Head of Education and Skills,071801,Selby Cottage Childcare Centre,Supplies and Services,324117,Provisions E324,08-Feb-2023,000008666311226,TESCO STORES 2278,5411,Catering costs - provisions,32.40,0.00,32.40
Children and Young Peoples Services,Head of Education and Skills,071801,Selby Cottage Childcare Centre,Supplies and Services,304403,Equipment and Materials,08-Feb-2023,000008666311230,AMZNMktplace,5999,Other consumables,4.99,0.83,4.16
Dedicated Schools Grant BG0015,DSG Schools Block,110013,The Woodlands 1100 - Primary,Supplies and Services,312011,Newspapers books and periodicals E312,08-Feb-2023,000008666311260,SP COLLINS,5942,Books-school library,352.95,0.00,352.95
Dedicated Schools Grant BG0015,DSG Schools Block,110013,The Woodlands 1100 - Primary,Supplies and Services,312011,Newspapers books and periodicals E312,08-Feb-2023,000008666311262,SP COLLINS,5942,Books-school library,244.95,0.00,244.95
Children and Young Peoples Services,Head of Education and Skills,075034,Youth Futures Foundation,Supplies and Services,364301,Grants to Voluntary Organisations,08-Feb-2023,000008666311280,WWW.GONORTHEAST.CO.UK,4111,Hardship,6.40,0.00,6.40
Children and Young Peoples Services,Head of Education and Skills,075034,Youth Futures Foundation,Supplies and Services,364301,Grants to Voluntary Organisations,08-Feb-2023,000008666311286,WWW.GONORTHEAST.CO.UK,4111,Hardship,6.40,0.00,6.40
Children and Young Peoples Services,Head of Education and Skills,075034,Youth Futures Foundation,Supplies and Services,364301,Grants to Voluntary Organisations,08-Feb-2023,000008666311292,WWW.GONORTHEAST.CO.UK,4111,Hardship,6.40,0.00,6.40
Children and Young Peoples Services,Head of Education and Skills,075034,Youth Futures Foundation,Supplies and Services,364301,Grants to Voluntary Organisations,08-Feb-2023,000008666311296,WWW.GONORTHEAST.CO.UK,4111,Hardship,6.40,0.00,6.40
Children and Young Peoples Services,Head of Education and Skills,075034,Youth Futures Foundation,Supplies and Services,364301,Grants to Voluntary Organisations,08-Feb-2023,000008666311298,TRUELOVETATTOO.CO.UK,7299,Hardship,350.00,0.00,350.00
Children and Young Peoples Services,Head of Education and Skills,075034,Youth Futures Foundation,Supplies and Services,364301,Grants to Voluntary Organisations,08-Feb-2023,000008666311302,ARRIVA UK BUS,4131,Hardship,8.00,0.00,8.00
Children and Young Peoples Services,Head of Education and Skills,075034,Youth Futures Foundation,Supplies and Services,364301,Grants to Voluntary Organisations,08-Feb-2023,000008666311304,ARRIVA UK BUS,4131,Hardship,8.00,0.00,8.00
Children and Young Peoples Services,Head of Education and Skills,075034,Youth Futures Foundation,Supplies and Services,364301,Grants to Voluntary Organisations,08-Feb-2023,000008666311306,NEXT DIRECTORY,5651,Hardship,36.95,0.00,36.95
Children and Young Peoples Services,Head of Childrens Social Care,085342,16 Hickstead Rise (previously 9 Cedar Ave),Supplies and Services,308011,Furniture,08-Feb-2023,000008666311310,Dunelm SoftFurnishings,5712,Furniture repair and replacement,15.95,0.00,15.95
Children and Young Peoples Services,Head of Childrens Social Care,085342,16 Hickstead Rise (previously 9 Cedar Ave),Supplies and Services,308011,Furniture,08-Feb-2023,000008666311314,IKEA LTD SHOP ONLINE,5712,Furniture repair and replacement,131.00,0.00,131.00
Children and Young Peoples Services,Head of Childrens Social Care,085342,16 Hickstead Rise (previously 9 Cedar Ave),Supplies and Services,328041,Clothing uniforms and laundry E328,08-Feb-2023,000008666311316,ARGOS LTD,5310,Clothing uniforms and laundry,111.80,0.00,111.80
Children and Young Peoples Services,Head of Childrens Social Care,085342,16 Hickstead Rise (previously 9 Cedar Ave),Supplies and Services,324117,Provisions E324,08-Feb-2023,000008666311318,B&M 681 - DURHAM,5399,Catering costs - provisions,2.78,0.00,2.78
Children and Young Peoples Services,Head of Childrens Social Care,085342,16 Hickstead Rise (previously 9 Cedar Ave),Supplies and Services,324117,Provisions E324,08-Feb-2023,000008666311322,TESCO STORES 2371,5411,Catering costs - provisions,18.55,0.00,18.55
Children and Young Peoples Services,Head of Childrens Social Care,085342,16 Hickstead Rise (previously 9 Cedar Ave),Supplies and Services,308011,Furniture,08-Feb-2023,000008666311324,DUNELM LTD,5714,Furniture repair and replacement,15.50,0.00,15.50
Regeneration Economy and Growth,Culture Sport and Tourism,054820,Gala Theatre - Overheads,Supplies and Services,304252,Equipment and Materials,08-Feb-2023,000008666311360,AMZNMktplace,5999,Equipment-repairsserviceinsurance,44.25,7.38,36.87
Regeneration Economy and Growth,Culture Sport and Tourism,054820,Gala Theatre - Overheads,Supplies and Services,304252,Equipment and Materials,08-Feb-2023,000008666311362,AMZNMktplace,5999,Equipment-repairsserviceinsurance,18.99,0.00,18.99
Regeneration Economy and Growth,Culture Sport and Tourism,054820,Gala Theatre - Overheads,Supplies and Services,304252,Equipment and Materials,08-Feb-2023,000008666311366,AMZNMktplace,5999,Equipment-repairsserviceinsurance,4.98,0.83,4.15
Children and Young Peoples Services,Head of Childrens Social Care,085342,16 Hickstead Rise (previously 9 Cedar Ave),Supplies and Services,324117,Provisions E324,08-Feb-2023,000008666311390,TESCO STORES 2916,5411,Catering costs - provisions,37.30,0.00,37.30
Children and Young Peoples Services,Head of Childrens Social Care,085334,West Rainton Satelite Home,Supplies and Services,324117,Provisions E324,08-Feb-2023,000008666311424,TESCO STORES 2371,5411,Catering costs - provisions,23.50,0.00,23.50
Children and Young Peoples Services,Head of Childrens Social Care,085334,West Rainton Satelite Home,Supplies and Services,324117,Provisions E324,08-Feb-2023,000008666311428,TESCO STORES 2371,5411,Catering costs - provisions,102.79,0.00,102.79
Regeneration Economy and Growth,Planning & Housing,031634,LOCAL LETTINGS AGENCY,Supplies and Services,308011,Furniture,08-Feb-2023,000008666311450,RSM PROPERTY,6513,Furniture repair and replacement,45.00,0.00,45.00
Neighbourhoods and Climate Change,Environmental Services,031200,North Pennines Core,Supplies and Services,324117,Provisions E324,08-Feb-2023,000008666311476,SCOTMID CO-OP STANHOPE,5411,Catering costs - provisions,22.75,0.00,22.75
Children and Young Peoples Services,Head of Early Help Inclusion & Vulnerable Children.,088109,Dean Bank and Tudhoe Family Centre,Supplies and Services,384302,Miscellaneous Expenses,08-Feb-2023,000008666311498,AMZNMktplace,5999,Activity expenses,109.90,18.35,91.55
Children and Young Peoples Services,Head of Early Help Inclusion & Vulnerable Children.,071492,One Point - Central,Supplies and Services,384700,Miscellaneous Expenses,08-Feb-2023,000008666311510,RHINO UK,5976,Miscellaneous grants,90.47,0.00,90.47
Children and Young Peoples Services,Head of Early Help Inclusion & Vulnerable Children.,071492,One Point - Central,Supplies and Services,384700,Miscellaneous Expenses,08-Feb-2023,000008666311512,SENSORY TOYS WAREHOUS,5947,Miscellaneous grants,81.00,0.00,81.00
Resources BK0010,Digital Services,065481,Technical Services 065481,Supplies and Services,372009,Subscriptions E372,08-Feb-2023,000008666311590,NOMINET UK,7392,Subscriptions 372009,12.00,2.00,10.00
Children and Young Peoples Services,Head of Education and Skills,071732,Dean Bank Childcare,Supplies and Services,328041,Clothing uniforms and laundry E328,08-Feb-2023,000008666311596,ARGOS SEDGEFIELD,5310,Clothing uniforms and laundry,30.00,0.00,30.00
Children and Young Peoples Services,Head of Education and Skills,071732,Dean Bank Childcare,Supplies and Services,324117,Provisions E324,08-Feb-2023,000008666311602,SAINSBURYS S/MKTS,5411,Catering costs - provisions,27.45,0.00,27.45
Adult and Health Services,Head of Adults,055302,Durham Pathways,Supplies and Services,324117,Provisions E324,08-Feb-2023,000008666311608,SAINSBURYS S/MKTS,5411,Catering costs - provisions,3.00,0.00,3.00
Regeneration Economy and Growth,Culture Sport and Tourism,054813,Gala Theatre - Technical,Supplies and Services,304259,Equipment and Materials,08-Feb-2023,000008666311614,WWW.FLINTS.CO.UK,5691,Equipment-purchase and rental,156.46,0.00,156.46
Neighbourhoods and Climate Change,Environmental Services,011060,C&G - Hardwick Park Catering,Supplies and Services,304083,Equipment and Materials,08-Feb-2023,000008666311626,WWW.THECHALKBOARD.CO,5399,Catering equipment,132.00,0.00,132.00
Neighbourhoods and Climate Change,Environmental Services,026591,C&G - Hardwick Park,Supplies and Services,304259,Equipment and Materials,08-Feb-2023,000008666311630,WWW.MAD4TOOLS.COM,5072,Equipment-purchase and rental,23.91,0.00,23.91
Neighbourhoods and Climate Change,Environmental Services,026591,C&G - Hardwick Park,Supplies and Services,304259,Equipment and Materials,08-Feb-2023,000008666311632,WWW.SCREWFIX.COM,5211,Equipment-purchase and rental,42.99,0.00,42.99
Children and Young Peoples Services,Head of Early Help Inclusion & Vulnerable Children.,085962,Aycliffe Secure - Durham,Supplies and Services,304403,Equipment and Materials,08-Feb-2023,000008666311638,AMZ Fairy EU,5999,Other consumables,-56.98,-9.50,-47.48
Children and Young Peoples Services,Head of Childrens Social Care,085341,High Etherley Satelite Home,Supplies and Services,324117,Provisions E324,08-Feb-2023,000008666311654,774 026,5411,Catering costs - provisions,77.13,0.00,77.13
Children and Young Peoples Services,Head of Early Help Inclusion & Vulnerable Children.,085957,Secure Management,Transfer Payments,515002,Social Services Clients,08-Feb-2023,000008666311682,Nike GBP,5655,Pocket money,119.95,0.00,119.95
Children and Young Peoples Services,Head of Early Help Inclusion & Vulnerable Children.,085957,Secure Management,Supplies and Services,304259,Equipment and Materials,08-Feb-2023,000008666311686,AMZNMktplace,5999,Equipment-purchase and rental,9.73,1.62,8.11
Children and Young Peoples Services,Head of Early Help Inclusion & Vulnerable Children.,085957,Secure Management,Supplies and Services,304259,Equipment and Materials,08-Feb-2023,000008666311688,AMZNMktplace,5999,Equipment-purchase and rental,43.98,0.00,43.98
Children and Young Peoples Services,Head of Early Help Inclusion & Vulnerable Children.,085957,Secure Management,Transfer Payments,515002,Social Services Clients,08-Feb-2023,000008666311692,Amazon.co.uk 1Q8OZ8V24,5969,Pocket money,85.82,14.30,71.52
Children and Young Peoples Services,Head of Early Help Inclusion & Vulnerable Children.,085957,Secure Management,Supplies and Services,304259,Equipment and Materials,08-Feb-2023,000008666311694,Amazon.co.uk 1Q87E4VV4,5969,Equipment-purchase and rental,42.91,7.15,35.76
Neighbourhoods and Climate Change,Environmental Services,010301,C&G - North Grounds Maintenance,Supplies and Services,304999,Equipment and Materials,08-Feb-2023,000008666311716,GRALANDS WOODWORK SUPP,5251,Misc equipment tools and materials,13.29,0.00,13.29
Children and Young Peoples Services,Head of Childrens Social Care,085364,Children Looked After Team 1,Supplies and Services,304403,Equipment and Materials,08-Feb-2023,000008666311762,AMZNMktplace,5999,Other consumables,39.92,0.00,39.92
Children and Young Peoples Services,Head of Early Help Inclusion & Vulnerable Children.,085956,Lumley,Supplies and Services,304405,Equipment and Materials,08-Feb-2023,000008666311774,Etsy.com - PatchAndSti,5699,Medical supplies,8.50,0.00,8.50
Children and Young Peoples Services,Head of Early Help Inclusion & Vulnerable Children.,085956,Lumley,Supplies and Services,332047,Printing Stationery and Gen Off Exps,08-Feb-2023,000008666311782,AMZNMktplace,5999,Stationery,23.95,3.99,19.96
Children and Young Peoples Services,Head of Early Help Inclusion & Vulnerable Children.,085956,Lumley,Transfer Payments,515002,Social Services Clients,08-Feb-2023,000008666311786,PRETTYLITTLETHING.COM,5691,Pocket money,45.00,0.00,45.00
Children and Young Peoples Services,Head of Early Help Inclusion & Vulnerable Children.,085956,Lumley,Supplies and Services,304405,Equipment and Materials,08-Feb-2023,000008666311788,AMZNMKTPLACE AMAZON.CO,5999,Medical supplies,8.97,0.00,8.97
Children and Young Peoples Services,Head of Early Help Inclusion & Vulnerable Children.,085956,Lumley,Transfer Payments,515002,Social Services Clients,08-Feb-2023,000008666311792,AMZNMKTPLACE AMAZON.CO,5999,Pocket money,3.98,0.00,3.98
Children and Young Peoples Services,Head of Early Help Inclusion & Vulnerable Children.,085956,Lumley,Transfer Payments,515002,Social Services Clients,08-Feb-2023,000008666311794,AMZNMKTPLACE AMAZON.CO,5999,Pocket money,20.64,3.44,17.20
Children and Young Peoples Services,Head of Early Help Inclusion & Vulnerable Children.,085956,Lumley,Transfer Payments,515002,Social Services Clients,08-Feb-2023,000008666311794 - 1,AMZNMKTPLACE AMAZON.CO,5999,Pocket money,13.97,,13.97
Children and Young Peoples Services,Head of Early Help Inclusion & Vulnerable Children.,085956,Lumley,Transfer Payments,515002,Social Services Clients,08-Feb-2023,000008666311798,AMZNMKTPLACE AMAZON.CO,5999,Pocket money,30.76,5.13,25.63
Children and Young Peoples Services,Head of Early Help Inclusion & Vulnerable Children.,085956,Lumley,Supplies and Services,332047,Printing Stationery and Gen Off Exps,08-Feb-2023,000008666311802,AMZNMKTPLACE AMAZON.CO,5999,Stationery,8.99,1.50,7.49
Children and Young Peoples Services,Head of Early Help Inclusion & Vulnerable Children.,085956,Lumley,Supplies and Services,332047,Printing Stationery and Gen Off Exps,08-Feb-2023,000008666311806,AMZNMktplace,5999,Stationery,10.96,1.83,9.13
Children and Young Peoples Services,Head of Childrens Social Care,085551,Short Break Services-Park Hse Sher,Supplies and Services,304221,Equipment and Materials,08-Feb-2023,000008666311822,WARD BROS(PLANT HIRE)L,7394,Direct materials,288.00,0.00,288.00
Children and Young Peoples Services,Head of Childrens Social Care,085552,Services for Disabled Children,Transport,235057,Public Transport,08-Feb-2023,000008666311848,trainline,4112,Staff travelling,93.53,0.00,93.53
Children and Young Peoples Services,Head of Early Help Inclusion & Vulnerable Children.,088106,Ferryhill & N. Aycliffe Intensive Family Support Team,Supplies and Services,384302,Miscellaneous Expenses,08-Feb-2023,000008666311850,AMZNMktplace,5999,Activity expenses,9.15,0.00,9.15
Children and Young Peoples Services,Head of Childrens Social Care,085622,Families First Ferryhill,Transport,235057,Public Transport,08-Feb-2023,000008666311852,Trainline.COM,4112,Staff travelling,21.90,0.00,21.90
Regeneration Economy and Growth,Economic Development Level C,030771,Durham Advance Flexible Fund,Supplies and Services,348037,Subsistence E348,08-Feb-2023,000008666311864,CHESTER LE STREET,5814,Subsistence,3.50,0.00,3.50
Children and Young Peoples Services,Head of Childrens Social Care,085551,Short Break Services-Park Hse Sher,Supplies and Services,304999,Equipment and Materials,08-Feb-2023,000008666311898,THE BOUNCE HOUSE,7929,Misc equipment tools and materials,43.40,0.00,43.40
Children and Young Peoples Services,Head of Childrens Social Care,085551,Short Break Services-Park Hse Sher,Supplies and Services,304999,Equipment and Materials,08-Feb-2023,000008666311902,THE BOUNCE HOUSE,7929,Misc equipment tools and materials,21.00,0.00,21.00
Children and Young Peoples Services,Head of Childrens Social Care,085551,Short Break Services-Park Hse Sher,Supplies and Services,324117,Provisions E324,08-Feb-2023,000008666311904,J FREEMAN & SONS LTD,5499,Catering costs - provisions,134.97,0.00,134.97
Regeneration Economy and Growth,Economic Development Level C,030554,International Relations 030554,Supplies and Services,304403,Equipment and Materials,08-Feb-2023,000008666311916,MAXWELLS D I Y,5231,Other consumables,16.00,0.00,16.00
